Workbook

Sheet pronospc
B1: Gagnant | C1: =SUMPRODUCT((C$9:C$1524=$X$9:$X$1524)*(C$9:C$1524>0 )*1) -> 337 | D1: =SUMPRODUCT((D$13:D$1524=$X$13:$X$1524)*(D$13:D$1524>0 )*1) -> 203 | E1: 162 | F1: 141 | G1: 126 | H1: 97 | I1: 71 | J1: 64 | K1: 68 | L1: 60 | M1: 58 | N1: 28 | O1: 28 | P1: 29 | Q1: 16 | R1: 16 | S1: 5 | T1: 3 | U1: 0 | V1: 0 | W1: =SUM(C1:V1) -> 1512 | X1: 1 | Y1: 2 | Z1: 3 | AA1: 4 | AB1: 5 | AC1: 6 | AD1: 7 | AE1: 8 | AF1: 9 | AG1: 10 | AH1: 11 | AI1: 12 | AJ1: 13 | AK1: 14 | AL1: 15 | AM1: 16 | AN1: 17 | AO1: 18 | AP1: 19 | AQ1: 20
B2: Place 2 | C2: =SUMPRODUCT((C$13:C$1524=$Y$13:$Y$1524)*(C$13:C$1524>0 )*1) -> 219 | D2: 178 | E2: 163 | F2: 135 | G2: 155 | H2: 125 | I2: 89 | J2: 90 | K2: 88 | L2: 67 | M2: 48 | N2: 45 | O2: 37 | P2: 26 | Q2: 25 | R2: 13 | S2: 6 | T2: 3 | U2: 0 | V2: 0 | W2: =SUM(C2:V2) -> 1512 | X2: =C1/MAX($A$13:$A$996) -> 0.3424796748 | Y2: 0.206300813 | Z2: 0.1646341463 | AA2: 0.1432926829 | AB2: 0.1280487805 | AC2: 0.09857723577 | AD2: 0.07215447154 | AE2: 0.06504065041 | AF2: 0.06910569106 | AG2: 0.06097560976 | AH2: 0.05894308943 | AI2: 0.02845528455 | AJ2: 0.02845528455 | AK2: 0.02947154472 | AL2: 0.0162601626 | AM2: 0.0162601626 | AN2: 0.005081300813 | AO2: 0.003048780488 | AP2: 0 | AQ2: 0
B3: Placé 3 | C3: =SUMPRODUCT((C$13:C$1524=$Z$13:$Z$1524)*(C$13:C$1524>0 )*1) -> 153 | D3: 176 | E3: 139 | F3: 145 | G3: 124 | H3: 105 | I3: 123 | J3: 119 | K3: 88 | L3: 67 | M3: 56 | N3: 56 | O3: 44 | P3: 39 | Q3: 33 | R3: 31 | S3: 9 | T3: 6 | U3: 0 | V3: 0 | W3: =SUM(C3:V3) -> 1513 | X3: =C6/MAX($A$13:$A$996) -> 0.7205284553 | Y3: 0.5660569106 | Z3: 0.4715447154 | AA3: 0.4278455285 | AB3: 0.4115853659 | AC3: 0.3323170732 | AD3: 0.287601626 | AE3: 0.2774390244 | AF3: 0.2479674797 | AG3: 0.1971544715 | AH3: 0.1646341463 | AI3: 0.131097561 | AJ3: 0.1107723577 | AK3: 0.09552845528 | AL3: 0.07520325203 | AM3: 0.06097560976 | AN3: 0.02032520325 | AO3: 0.01219512195 | AP3: 0 | AQ3: 0
B4: Placé 4 | C4: =SUMPRODUCT((C$13:C$1524=$AA$13:$AA$1524)*(C$13:C$1524>0 )*1) -> 104 | D4: 124 | E4: 149 | F4: 133 | G4: 125 | H4: 133 | I4: 105 | J4: 101 | K4: 109 | L4: 84 | M4: 79 | N4: 65 | O4: 59 | P4: 54 | Q4: 48 | R4: 19 | S4: 13 | T4: 5 | U4: 1 | V4: 1 | W4: =SUM(C4:V4) -> 1511
B5: Placé 5 | C5: =SUMPRODUCT((C$13:C$1524=$AB$13:$AB$1524)*(C$13:C$1524>0 )*1) -> 91 | D5: 109 | E5: 126 | F5: 133 | G5: 101 | H5: 132 | I5: 96 | J5: 118 | K5: 113 | L5: 92 | M5: 99 | N5: 84 | O5: 80 | P5: 40 | Q5: 43 | R5: 37 | S5: 10 | T5: 7 | U5: 0 | V5: 0 | W5: =SUM(C5:V5) -> 1511
B6: Total Placé | C6: =SUM(C1:C3) -> 709 | D6: 557 | E6: 464 | F6: 421 | G6: 405 | H6: 327 | I6: 283 | J6: 273 | K6: 244 | L6: 194 | M6: 162 | N6: 129 | O6: 109 | P6: 94 | Q6: 74 | R6: 60 | S6: 20 | T6: 12 | U6: 0 | V6: 0
B7: total multi | C7: =SUM(C1:C4) -> 813 | D7: =SUM(D1:D4) -> 681 | E7: 613 | F7: 554 | G7: 530 | H7: 460 | I7: 388 | J7: 374 | K7: 353 | L7: 278 | M7: 241 | N7: 194 | O7: 168 | P7: 148 | Q7: 122 | R7: 79 | S7: 33 | T7: 17 | U7: 1 | V7: 1
B8: total quinté | C8: =SUM(C1:C5) -> 904 | D8: =SUM(D1:D5) -> 790 | E8: 739 | F8: 687 | G8: 631 | H8: 592 | I8: 484 | J8: 492 | K8: 466 | L8: 370 | M8: 340 | N8: 278 | O8: 248 | P8: 188 | Q8: 165 | R8: 116 | S8: 43 | T8: 24 | U8: 1 | V8: 1
A9: N° | B9: Dates | C9: 1 | D9: 2 | E9: 3 | F9: 4 | G9: 5 | H9: 6 | I9: 7 | J9: 8 | K9: 9 | L9: 10 | M9: 11 | N9: 12 | O9: 13 | P9: 14 | Q9: 15 | R9: 16 | S9: 17 | T9: 18 | U9: 19 | V9: 20
C11: =INDEX('[1]ecart P (2)'!H4:H2999,MATCH(9^9,'[1]ecart P (2)'!H4:H30006,1)) -> 0 | D11: =INDEX('[1]ecart P (2)'!I4:I2999,MATCH(9^9,'[1]ecart P (2)'!I4:I30006,1)) -> 0 | E11: =INDEX('[1]ecart P (2)'!J4:J2999,MATCH(9^9,'[1]ecart P (2)'!J4:J30006,1)) -> 3 | F11: =INDEX('[1]ecart P (2)'!K4:K2999,MATCH(9^9,'[1]ecart P (2)'!K4:K30006,1)) -> 1 | G11: =INDEX('[1]ecart P (2)'!L4:L2999,MATCH(9^9,'[1]ecart P (2)'!L4:L30006,1)) -> 22 | H11: =INDEX('[1]ecart P (2)'!M4:M2999,MATCH(9^9,'[1]ecart P (2)'!M4:M30006,1)) -> 0 | I11: =INDEX('[1]ecart P (2)'!N4:N2999,MATCH(9^9,'[1]ecart P (2)'!N4:N30006,1)) -> 1 | J11: =INDEX('[1]ecart P (2)'!O4:O2999,MATCH(9^9,'[1]ecart P (2)'!O4:O30006,1)) -> 0 | K11: =INDEX('[1]ecart P (2)'!P4:P2999,MATCH(9^9,'[1]ecart P (2)'!P4:P30006,1)) -> 0 | L11: =INDEX('[1]ecart P (2)'!Q4:Q2999,MATCH(9^9,'[1]ecart P (2)'!Q4:Q30006,1)) -> 12 | M11: =INDEX('[1]ecart P (2)'!R4:R2999,MATCH(9^9,'[1]ecart P (2)'!R4:R30006,1)) -> 8 | N11: =INDEX('[1]ecart P (2)'!S4:S2999,MATCH(9^9,'[1]ecart P (2)'!S4:S30006,1)) -> 14 | O11: =INDEX('[1]ecart P (2)'!T4:T2999,MATCH(9^9,'[1]ecart P (2)'!T4:T30006,1)) -> 15 | P11: =INDEX('[1]ecart P (2)'!U4:U2999,MATCH(9^9,'[1]ecart P (2)'!U4:U30006,1)) -> 4 | Q11: =INDEX('[1]ecart P (2)'!V4:V2999,MATCH(9^9,'[1]ecart P (2)'!V4:V30006,1)) -> 17 | R11: =INDEX('[1]ecart P (2)'!W4:W2999,MATCH(9^9,'[1]ecart P (2)'!W4:W30006,1)) -> 4 | S11: =INDEX('[1]ecart P (2)'!X4:X2999,MATCH(9^9,'[1]ecart P (2)'!X4:X30006,1)) -> 8 | T11: =INDEX('[1]ecart P (2)'!Y4:Y2999,MATCH(9^9,'[1]ecart P (2)'!Y4:Y30006,1)) -> 75 | U11: =INDEX('[1]ecart P (2)'!Z4:Z2999,MATCH(9^9,'[1]ecart P (2)'!Z4:Z30006,1)) -> 56 | V11: =INDEX('[1]ecart P (2)'!AA4:AA2999,MATCH(9^9,'[1]ecart P (2)'!AA4:AA30006,1)) -> 36 | X11: Ecart Placé
C12: =INDEX('[1]ecart G (2)'!H5:H3000,MATCH(9^9,'[1]ecart G (2)'!H5:H3000,1)) -> 3 | D12: =INDEX('[1]ecart G (2)'!I5:I3000,MATCH(9^9,'[1]ecart G (2)'!I5:I3000,1)) -> 1 | E12: =INDEX('[1]ecart G (2)'!J5:J3000,MATCH(9^9,'[1]ecart G (2)'!J5:J3000,1)) -> 13 | F12: =INDEX('[1]ecart G (2)'!K5:K3000,MATCH(9^9,'[1]ecart G (2)'!K5:K3000,1)) -> 17 | G12: =INDEX('[1]ecart G (2)'!L5:L3000,MATCH(9^9,'[1]ecart G (2)'!L5:L3000,1)) -> 25 | H12: =INDEX('[1]ecart G (2)'!M5:M3000,MATCH(9^9,'[1]ecart G (2)'!M5:M3000,1)) -> 16 | I12: =INDEX('[1]ecart G (2)'!N5:N3000,MATCH(9^9,'[1]ecart G (2)'!N5:N3000,1)) -> 102 | J12: =INDEX('[1]ecart G (2)'!O5:O3000,MATCH(9^9,'[1]ecart G (2)'!O5:O3000,1)) -> 6 | K12: =INDEX('[1]ecart G (2)'!P5:P3000,MATCH(9^9,'[1]ecart G (2)'!P5:P3000,1)) -> 54 | L12: =INDEX('[1]ecart G (2)'!Q5:Q3000,MATCH(9^9,'[1]ecart G (2)'!Q5:Q3000,1)) -> 20 | M12: =INDEX('[1]ecart G (2)'!R5:R3000,MATCH(9^9,'[1]ecart G (2)'!R5:R3000,1)) -> 10 | N12: =INDEX('[1]ecart G (2)'!S5:S3000,MATCH(9^9,'[1]ecart G (2)'!S5:S3000,1)) -> 66 | O12: =INDEX('[1]ecart G (2)'!T5:T3000,MATCH(9^9,'[1]ecart G (2)'!T5:T3000,1)) -> 37 | P12: =INDEX('[1]ecart G (2)'!U5:U3000,MATCH(9^9,'[1]ecart G (2)'!U5:U3000,1)) -> 7 | Q12: =INDEX('[1]ecart G (2)'!V5:V3000,MATCH(9^9,'[1]ecart G (2)'!V5:V3000,1)) -> 199 | R12: =INDEX('[1]ecart G (2)'!W5:W3000,MATCH(9^9,'[1]ecart G (2)'!W5:W3000,1)) -> 41 | S12: =INDEX('[1]ecart G (2)'!X5:X3000,MATCH(9^9,'[1]ecart G (2)'!X5:X3000,1)) -> 45 | T12: =INDEX('[1]ecart G (2)'!Y5:Y3000,MATCH(9^9,'[1]ecart G (2)'!Y5:Y3000,1)) -> 98 | U12: =INDEX('[1]ecart G (2)'!Z5:Z3000,MATCH(9^9,'[1]ecart G (2)'!Z5:Z3000,1)) -> 62 | V12: =INDEX('[1]ecart G (2)'!AA5:AA3000,MATCH(9^9,'[1]ecart G (2)'!AA5:AA3000,1)) -> 26 | X12: Ecart Gagnant
A13: =IF(COUNTA(C13:AB13)<17,"",MAX(A$12:A12)+1) -> 1 | B13: 2013-11-01 | C13: 16 | D13: 11 | E13: 14 | F13: 15 | G13: 6 | H13: 3 | I13: 7 | J13: 12 | K13: 4 | L13: 13 | M13: 9 | N13: 10 | O13: 1 | P13: 5 | Q13: 2 | R13: 8 | X13: =VLOOKUP(B13,[1]generale!A$16:B$1160,2,0) -> 9 | Y13: =VLOOKUP(B13,[1]generale!A$16:C$1160,3,0) -> 10 | Z13: =VLOOKUP(B13,[1]generale!A$16:D$1160,4,0) -> 14 | AA13: =VLOOKUP(B13,[1]generale!A$16:E$1160,5,0) -> 11 | AB13: =VLOOKUP(B13,[1]generale!A$16:G$1160,6,0) -> 6 | AC13: =[1]generale!G318 -> P | AD13: =IF(COUNTIF($C13:$V13,X13)=0,"X",INDEX($C$9:$V$9,MATCH(X13,$C13:$V13,0))) -> 11 | AE13: =IF(COUNTIF($C13:$V13,Y13)=0,"X",INDEX($C$9:$V$9,MATCH(Y13,$C13:$V13,0))) -> 12 | AF13: 3 | AG13: 2 | AH13: 5
A14: =IF(COUNTA(C14:AB14)<17,"",MAX(A$12:A13)+1) -> 2 | B14: 2013-11-02 | C14: 6 | D14: 9 | E14: 2 | F14: 16 | G14: 5 | H14: 4 | I14: 1 | J14: 4 | K14: 10 | L14: 3 | M14: 11 | N14: 13 | O14: 8 | P14: 15 | Q14: 14 | R14: 7 | S14: 12 | X14: =VLOOKUP(B14,[1]generale!A$16:B$1160,2,0) -> 6 | Y14: =VLOOKUP(B14,[1]generale!A$16:C$1160,3,0) -> 3 | Z14: =VLOOKUP(B14,[1]generale!A$16:D$1160,4,0) -> 1 | AA14: =VLOOKUP(B14,[1]generale!A$16:E$1160,5,0) -> 2 | AB14: =VLOOKUP(B14,[1]generale!A$16:G$1160,6,0) -> 12 | AC14: =[1]generale!G319 -> O | AD14: 1 | AE14: 10 | AF14: 7 | AG14: 3 | AH14: 17
A15: =IF(COUNTA(C15:AB15)<17,"",MAX(A$12:A14)+1) -> 3 | B15: 2013-11-03 | C15: 1 | D15: 14 | E15: 11 | F15: 4 | G15: 7 | H15: 12 | I15: 5 | J15: 13 | K15: 6 | L15: 3 | M15: 8 | N15: 2 | O15: 10 | P15: 9 | X15: =VLOOKUP(B15,[1]generale!A$16:B$1160,2,0) -> 1 | Y15: =VLOOKUP(B15,[1]generale!A$16:C$1160,3,0) -> 14 | Z15: =VLOOKUP(B15,[1]generale!A$16:D$1160,4,0) -> 11 | AA15: =VLOOKUP(B15,[1]generale!A$16:E$1160,5,0) -> 5 | AB15: =VLOOKUP(B15,[1]generale!A$16:G$1160,6,0) -> 3 | AC15: =[1]generale!G320 -> O | AD15: 1 | AE15: 2 | AF15: 3 | AG15: 7 | AH15: 10
A16: =IF(COUNTA(C16:AB16)<17,"",MAX(A$12:A15)+1) -> 4 | B16: 2013-11-04 | C16: 8 | D16: 6 | E16: 15 | F16: 3 | G16: 1 | H16: 9 | I16: 4 | J16: 12 | K16: 7 | L16: 5 | M16: 2 | N16: 10 | O16: 11 | P16: 13 | Q16: 14 | R16: 16 | X16: =VLOOKUP(B16,[1]generale!A$16:B$1160,2,0) -> 8 | Y16: =VLOOKUP(B16,[1]generale!A$16:C$1160,3,0) -> 9 | Z16: =VLOOKUP(B16,[1]generale!A$16:D$1160,4,0) -> 15 | AA16: =VLOOKUP(B16,[1]generale!A$16:E$1160,5,0) -> 7 | AB16: =VLOOKUP(B16,[1]generale!A$16:G$1160,6,0) -> 3 | AC16: =[1]generale!G321 -> T | AD16: 1 | AE16: 6 | AF16: 3 | AG16: 9 | AH16: 4
A17: =IF(COUNTA(C17:AB17)<17,"",MAX(A$12:A16)+1) -> 5 | B17: 2013-11-06 | C17: 11 | D17: 7 | E17: 12 | F17: 13 | G17: 6 | H17: 14 | I17: 5 | J17: 9 | K17: 3 | L17: 1 | M17: 8 | N17: 2 | O17: 4 | P17: 10 | Q17: 15 | R17: 16 | X17: =VLOOKUP(B17,[1]generale!A$16:B$1160,2,0) -> 12 | Y17: =VLOOKUP(B17,[1]generale!A$16:C$1160,3,0) -> 14 | Z17: =VLOOKUP(B17,[1]generale!A$16:D$1160,4,0) -> 7 | AA17: =VLOOKUP(B17,[1]generale!A$16:E$1160,5,0) -> 13 | AB17: =VLOOKUP(B17,[1]generale!A$16:G$1160,6,0) -> 11 | AC17: =[1]generale!G322 -> T | AD17: 3 | AE17: 6 | AF17: 2 | AG17: 4 | AH17: 1
A18: =IF(COUNTA(C18:AB18)<17,"",MAX(A$12:A17)+1) -> 6 | B18: 2013-11-07 | C18: 4 | D18: 7 | E18: 2 | F18: 8 | G18: 3 | H18: 13 | I18: 16 | J18: 5 | K18: 12 | L18: 17 | M18: 14 | N18: 9 | O18: 1 | P18: 6 | Q18: 10 | R18: 11 | X18: =VLOOKUP(B18,[1]generale!A$16:B$1160,2,0) -> 2 | Y18: =VLOOKUP(B18,[1]generale!A$16:C$1160,3,0) -> 5 | Z18: =VLOOKUP(B18,[1]generale!A$16:D$1160,4,0) -> 3 | AA18: =VLOOKUP(B18,[1]generale!A$16:E$1160,5,0) -> 4 | AB18: =VLOOKUP(B18,[1]generale!A$16:G$1160,6,0) -> 1 | AC18: =[1]generale!G323 -> T | AD18: 3 | AE18: 8 | AF18: 5 | AG18: 1 | AH18: 13
A19: =IF(COUNTA(C19:AB19)<17,"",MAX(A$12:A18)+1) -> 7 | B19: 2013-11-08 | C19: 14 | D19: 11 | E19: 13 | F19: 16 | G19: 15 | H19: 5 | I19: 7 | J19: 4 | K19: 8 | L19: 10 | M19: 2 | N19: 9 | O19: 12 | P19: 6 | Q19: 3 | R19: 1 | X19: =VLOOKUP(B19,[1]generale!A$16:B$1160,2,0) -> 14 | Y19: =VLOOKUP(B19,[1]generale!A$16:C$1160,3,0) -> 11 | Z19: =VLOOKUP(B19,[1]generale!A$16:D$1160,4,0) -> 4 | AA19: =VLOOKUP(B19,[1]generale!A$16:E$1160,5,0) -> 16 | AB19: =VLOOKUP(B19,[1]generale!A$16:G$1160,6,0) -> 15 | AC19: =[1]generale!G324 -> T | AD19: 1 | AE19: 2 | AF19: 8 | AG19: 4 | AH19: 5
A20: =IF(COUNTA(C20:AB20)<17,"",MAX(A$12:A19)+1) -> 8 | B20: 2013-11-09 | C20: 3 | D20: 2 | E20: 8 | F20: 4 | G20: 12 | H20: 5 | I20: 16 | J20: 11 | K20: 18 | L20: 6 | M20: 1 | N20: 13 | O20: 15 | P20: 7 | Q20: 17 | R20: 14 | X20: =VLOOKUP(B20,[1]generale!A$16:B$1160,2,0) -> 2 | Y20: =VLOOKUP(B20,[1]generale!A$16:C$1160,3,0) -> 8 | Z20: =VLOOKUP(B20,[1]generale!A$16:D$1160,4,0) -> 16 | AA20: =VLOOKUP(B20,[1]generale!A$16:E$1160,5,0) -> 18 | AB20: =VLOOKUP(B20,[1]generale!A$16:G$1160,6,0) -> 12 | AC20: =[1]generale!G325 -> P | AD20: 2 | AE20: 3 | AF20: 7 | AG20: 9 | AH20: 5
A21: =IF(COUNTA(C21:AB21)<17,"",MAX(A$12:A20)+1) -> 9 | B21: 2013-11-10 | C21: 1 | D21: 8 | E21: 10 | F21: 3 | G21: 14 | H21: 6 | I21: 2 | J21: 12 | K21: 15 | L21: 9 | M21: 7 | N21: 16 | O21: 4 | P21: 5 | Q21: 13 | R21: 17 | X21: =VLOOKUP(B21,[1]generale!A$16:B$1160,2,0) -> 12 | Y21: =VLOOKUP(B21,[1]generale!A$16:C$1160,3,0) -> 15 | Z21: =VLOOKUP(B21,[1]generale!A$16:D$1160,4,0) -> 6 | AA21: =VLOOKUP(B21,[1]generale!A$16:E$1160,5,0) -> 13 | AB21: =VLOOKUP(B21,[1]generale!A$16:G$1160,6,0) -> 5 | AC21: =[1]generale!G326 -> O | AD21: 8 | AE21: 9 | AF21: 6 | AG21: 15 | AH21: 14
A22: =IF(COUNTA(C22:AB22)<17,"",MAX(A$12:A21)+1) -> 10 | B22: 2013-11-11 | C22: 7 | D22: 2 | E22: 4 | F22: 6 | G22: 3 | H22: 15 | I22: 10 | J22: 9 | K22: 1 | L22: 12 | M22: 8 | N22: 11 | O22: 5 | P22: 16 | Q22: 14 | R22: 13 | X22: =VLOOKUP(B22,[1]generale!A$16:B$1160,2,0) -> 7 | Y22: =VLOOKUP(B22,[1]generale!A$16:C$1160,3,0) -> 10 | Z22: =VLOOKUP(B22,[1]generale!A$16:D$1160,4,0) -> 2 | AA22: =VLOOKUP(B22,[1]generale!A$16:E$1160,5,0) -> 12 | AB22: =VLOOKUP(B22,[1]generale!A$16:G$1160,6,0) -> 11 | AC22: =[1]generale!G327 -> P | AD22: 1 | AE22: 7 | AF22: 2 | AG22: 10 | AH22: 12
A23: =IF(COUNTA(C23:AB23)<17,"",MAX(A$12:A22)+1) -> 11 | B23: 2013-11-12 | C23: 6 | D23: 9 | E23: 3 | F23: 8 | G23: 1 | H23: 4 | I23: 5 | J23: 10 | K23: 7 | L23: 2 | M23: 11 | N23: 13 | O23: 15 | P23: 16 | Q23: 14 | R23: 18 | X23: =VLOOKUP(B23,[1]generale!A$16:B$1160,2,0) -> 3 | Y23: =VLOOKUP(B23,[1]generale!A$16:C$1160,3,0) -> 6 | Z23: =VLOOKUP(B23,[1]generale!A$16:D$1160,4,0) -> 7 | AA23: =VLOOKUP(B23,[1]generale!A$16:E$1160,5,0) -> 8 | AB23: =VLOOKUP(B23,[1]generale!A$16:G$1160,6,0) -> 9 | AC23: =[1]generale!G328 -> P | AD23: 3 | AE23: 1 | AF23: 9 | AG23: 4 | AH23: 2
A24: 12 | B24: 2013-11-13 | C24: 9 | D24: 11 | E24: 3 | F24: 13 | G24: 5 | H24: 6 | I24: 1 | J24: 8 | K24: 15 | L24: 4 | M24: 10 | N24: 2 | O24: 7 | P24: 12 | Q24: 16 | R24: 14 | X24: =VLOOKUP(B24,[1]generale!A$16:B$1160,2,0) -> 9 | Y24: =VLOOKUP(B24,[1]generale!A$16:C$1160,3,0) -> 11 | Z24: =VLOOKUP(B24,[1]generale!A$16:D$1160,4,0) -> 13 | AA24: =VLOOKUP(B24,[1]generale!A$16:E$1160,5,0) -> 6 | AB24: =VLOOKUP(B24,[1]generale!A$16:G$1160,6,0) -> 1 | AC24: =[1]generale!G329 -> T | AD24: 1 | AE24: 2 | AF24: 4 | AG24: 6 | AH24: 7
A25: 13 | B25: 2013-11-14 | C25: 2 | D25: 6 | E25: 8 | F25: 3 | G25: 4 | H25: 9 | I25: 16 | J25: 12 | K25: 5 | L25: 1 | M25: 7 | N25: 10 | O25: 11 | P25: 13 | Q25: 14 | R25: 15 | X25: =VLOOKUP(B25,[1]generale!A$16:B$1160,2,0) -> 8 | Y25: =VLOOKUP(B25,[1]generale!A$16:C$1160,3,0) -> 12 | Z25: =VLOOKUP(B25,[1]generale!A$16:D$1160,4,0) -> 6 | AA25: =VLOOKUP(B25,[1]generale!A$16:E$1160,5,0) -> 5 | AB25: =VLOOKUP(B25,[1]generale!A$16:G$1160,6,0) -> 4 | AC25: =[1]generale!G330 -> T | AD25: 3 | AE25: 8 | AF25: 2 | AG25: 9 | AH25: 5
A26: =IF(COUNTA(C26:AB26)<17,"",MAX(A$12:A25)+1) -> 14 | B26: 2013-11-15 | C26: 11 | D26: 15 | E26: 3 | F26: 1 | G26: 10 | H26: 7 | I26: 5 | J26: 6 | K26: 13 | L26: 14 | M26: 12 | N26: 16 | O26: 2 | P26: 4 | Q26: 8 | R26: 9 | X26: =VLOOKUP(B26,[1]generale!A$16:B$1160,2,0) -> 5 | Y26: =VLOOKUP(B26,[1]generale!A$16:C$1160,3,0) -> 15 | Z26: =VLOOKUP(B26,[1]generale!A$16:D$1160,4,0) -> 11 | AA26: =VLOOKUP(B26,[1]generale!A$16:E$1160,5,0) -> 3 | AB26: =VLOOKUP(B26,[1]generale!A$16:G$1160,6,0) -> 16 | AC26: =[1]generale!G331 -> T | AD26: 7 | AE26: 2 | AF26: 1 | AG26: 3 | AH26: 12
A27: =IF(COUNTA(C27:AB27)<17,"",MAX(A$12:A26)+1) -> 15 | B27: 2013-11-16 | C27: 14 | D27: 12 | E27: 3 | F27: 8 | G27: 9 | H27: 11 | I27: 1 | J27: 5 | K27: 7 | L27: 4 | M27: 6 | N27: 10 | O27: 13 | P27: 2 | Q27: 15 | R27: 16 | X27: =VLOOKUP(B27,[1]generale!A$16:B$1160,2,0) -> 14 | Y27: =VLOOKUP(B27,[1]generale!A$16:C$1160,3,0) -> 9 | Z27: =VLOOKUP(B27,[1]generale!A$16:D$1160,4,0) -> 12 | AA27: =VLOOKUP(B27,[1]generale!A$16:E$1160,5,0) -> 5 | AB27: =VLOOKUP(B27,[1]generale!A$16:G$1160,6,0) -> 1 | AC27: =[1]generale!G332 -> T | AD27: 1 | AE27: 5 | AF27: 2 | AG27: 8 | AH27: 7
A28: =IF(COUNTA(C28:AB28)<17,"",MAX(A$12:A27)+1) -> 16 | B28: 2013-11-17 | C28: 6 | D28: 1 | E28: 3 | F28: 12 | G28: 4 | H28: 14 | I28: 2 | J28: 7 | K28: 11 | L28: 10 | M28: 9 | N28: 8 | O28: 15 | P28: 5 | Q28: 13 | X28: =VLOOKUP(B28,[1]generale!A$16:B$1160,2,0) -> 6 | Y28: =VLOOKUP(B28,[1]generale!A$16:C$1160,3,0) -> 8 | Z28: =VLOOKUP(B28,[1]generale!A$16:D$1160,4,0) -> 3 | AA28: =VLOOKUP(B28,[1]generale!A$16:E$1160,5,0) -> 1 | AB28: =VLOOKUP(B28,[1]generale!A$16:G$1160,6,0) -> 7 | AC28: =[1]generale!G333 -> O | AD28: 1 | AE28: 12 | AF28: 3 | AG28: 2 | AH28: 8
A29: =IF(COUNTA(C29:AB29)<17,"",MAX(A$12:A28)+1) -> 17 | B29: 2013-11-18 | C29: 9 | D29: 4 | E29: 12 | F29: 8 | G29: 16 | H29: 14 | I29: 10 | J29: 17 | K29: 2 | L29: 15 | M29: 6 | N29: 11 | O29: 1 | P29: 3 | Q29: 5 | R29: 7 | X29: =VLOOKUP(B29,[1]generale!A$16:B$1160,2,0) -> 4 | Y29: =VLOOKUP(B29,[1]generale!A$16:C$1160,3,0) -> 8 | Z29: =VLOOKUP(B29,[1]generale!A$16:D$1160,4,0) -> 12 | AA29: =VLOOKUP(B29,[1]generale!A$16:E$1160,5,0) -> 9 | AB29: =VLOOKUP(B29,[1]generale!A$16:G$1160,6,0) -> 10 | AC29: =[1]generale!G334 -> T | AD29: 2 | AE29: 4 | AF29: 3 | AG29: 1 | AH29: 7
A30: =IF(COUNTA(C30:AB30)<17,"",MAX(A$12:A29)+1) -> 18 | B30: 2013-11-19 | C30: 4 | D30: 7 | E30: 10 | F30: 2 | G30: 5 | H30: 12 | I30: 1 | J30: 9 | K30: 15 | L30: 14 | M30: 11 | N30: 8 | O30: 16 | P30: 3 | Q30: 13 | R30: 6 | X30: =VLOOKUP(B30,[1]generale!A$16:B$1160,2,0) -> 3 | Y30: =VLOOKUP(B30,[1]generale!A$16:C$1160,3,0) -> 14 | Z30: =VLOOKUP(B30,[1]generale!A$16:D$1160,4,0) -> 15 | AA30: =VLOOKUP(B30,[1]generale!A$16:E$1160,5,0) -> 10 | AB30: =VLOOKUP(B30,[1]generale!A$16:G$1160,6,0) -> 8 | AC30: =[1]generale!G335 -> P | AD30: 14 | AE30: 10 | AF30: 9 | AG30: 3 | AH30: 12
A31: =IF(COUNTA(C31:AB31)<17,"",MAX(A$12:A30)+1) -> 19 | B31: 2013-11-20 | C31: 9 | D31: 14 | E31: 6 | F31: 8 | G31: 5 | H31: 3 | I31: 16 | J31: 12 | K31: 11 | L31: 7 | M31: 1 | N31: 4 | O31: 2 | P31: 13 | Q31: 10 | R31: 15 | X31: =VLOOKUP(B31,[1]generale!A$16:B$1160,2,0) -> 5 | Y31: =VLOOKUP(B31,[1]generale!A$16:C$1160,3,0) -> 6 | Z31: =VLOOKUP(B31,[1]generale!A$16:D$1160,4,0) -> 9 | AA31: =VLOOKUP(B31,[1]generale!A$16:E$1160,5,0) -> 8 | AB31: =VLOOKUP(B31,[1]generale!A$16:G$1160,6,0) -> 14 | AC31: =[1]generale!G336 -> T | AD31: 5 | AE31: 3 | AF31: 1 | AG31: 4 | AH31: 2
A32: =IF(COUNTA(C32:AB32)<17,"",MAX(A$12:A31)+1) -> 20 | B32: 2013-11-21 | C32: 8 | D32: 1 | E32: 10 | F32: 5 | G32: 14 | H32: 13 | I32: 4 | J32: 6 | K32: 11 | L32: 2 | M32: 7 | N32: 18 | O32: 16 | P32: 17 | Q32: 9 | R32: 12 | S32: 3 | X32: =VLOOKUP(B32,[1]generale!A$16:B$1160,2,0) -> 2 | Y32: =VLOOKUP(B32,[1]generale!A$16:C$1160,3,0) -> 16 | Z32: =VLOOKUP(B32,[1]generale!A$16:D$1160,4,0) -> 7 | AA32: =VLOOKUP(B32,[1]generale!A$16:E$1160,5,0) -> 14 | AB32: =VLOOKUP(B32,[1]generale!A$16:G$1160,6,0) -> 3 | AC32: =[1]generale!G337 -> P | AD32: 10 | AE32: 13 | AF32: 11 | AG32: 5 | AH32: 17
A33: =IF(COUNTA(C33:AB33)<17,"",MAX(A$12:A32)+1) -> 21 | B33: 2013-11-22 | C33: 15 | D33: 16 | E33: 12 | F33: 9 | G33: 6 | H33: 5 | I33: 11 | J33: 8 | K33: 13 | L33: 7 | M33: 10 | N33: 14 | O33: 4 | P33: 3 | Q33: 1 | R33: 2 | X33: =VLOOKUP(B33,[1]generale!A$16:B$1160,2,0) -> 16 | Y33: =VLOOKUP(B33,[1]generale!A$16:C$1160,3,0) -> 15 | Z33: =VLOOKUP(B33,[1]generale!A$16:D$1160,4,0) -> 9 | AA33: =VLOOKUP(B33,[1]generale!A$16:E$1160,5,0) -> 7 | AB33: =VLOOKUP(B33,[1]generale!A$16:G$1160,6,0) -> 10 | AC33: =[1]generale!G338 -> T | AD33: 2 | AE33: 1 | AF33: 4 | AG33: 10 | AH33: 11
A34: =IF(COUNTA(C34:AB34)<17,"",MAX(A$12:A33)+1) -> 22 | B34: 2013-11-23 | C34: 14 | D34: 7 | E34: 10 | F34: 11 | G34: 9 | H34: 15 | I34: 5 | J34: 8 | K34: 6 | L34: 12 | M34: 2 | N34: 1 | O34: 3 | P34: 4 | Q34: 13 | R34: 16 | X34: =VLOOKUP(B34,[1]generale!A$16:B$1160,2,0) -> 14 | Y34: =VLOOKUP(B34,[1]generale!A$16:C$1160,3,0) -> 3 | Z34: =VLOOKUP(B34,[1]generale!A$16:D$1160,4,0) -> 8 | AA34: =VLOOKUP(B34,[1]generale!A$16:E$1160,5,0) -> 15 | AB34: =VLOOKUP(B34,[1]generale!A$16:G$1160,6,0) -> 7 | AC34: =[1]generale!G339 -> T | AD34: 1 | AE34: 13 | AF34: 8 | AG34: 6 | AH34: 2
A35: =IF(COUNTA(C35:AB35)<17,"",MAX(A$12:A34)+1) -> 23 | B35: 2013-11-24 | C35: 7 | D35: 6 | E35: 14 | F35: 8 | G35: 5 | H35: 1 | I35: 16 | J35: 3 | K35: 10 | L35: 2 | M35: 4 | N35: 11 | O35: 13 | P35: 18 | Q35: 15 | R35: 9 | X35: =VLOOKUP(B35,[1]generale!A$16:B$1160,2,0) -> 7 | Y35: =VLOOKUP(B35,[1]generale!A$16:C$1160,3,0) -> 8 | Z35: =VLOOKUP(B35,[1]generale!A$16:D$1160,4,0) -> 14 | AA35: =VLOOKUP(B35,[1]generale!A$16:E$1160,5,0) -> 6 | AB35: =VLOOKUP(B35,[1]generale!A$16:G$1160,6,0) -> 10 | AC35: =[1]generale!G340 -> O | AD35: 1 | AE35: 4 | AF35: 3 | AG35: 2 | AH35: 9
A36: =IF(COUNTA(C36:AB36)<17,"",MAX(A$12:A35)+1) -> 24 | B36: 2013-11-25 | C36: 11 | D36: 3 | E36: 2 | F36: 10 | G36: 17 | H36: 8 | I36: 9 | J36: 18 | K36: 13 | L36: 16 | M36: 15 | N36: 6 | O36: 7 | P36: 5 | Q36: 14 | R36: 1 | X36: =VLOOKUP(B36,[1]generale!A$16:B$1160,2,0) -> 17 | Y36: =VLOOKUP(B36,[1]generale!A$16:C$1160,3,0) -> 2 | Z36: =VLOOKUP(B36,[1]generale!A$16:D$1160,4,0) -> 3 | AA36: =VLOOKUP(B36,[1]generale!A$16:E$1160,5,0) -> 9 | AB36: =VLOOKUP(B36,[1]generale!A$16:G$1160,6,0) -> 6 | AC36: =[1]generale!G341 -> T | AD36: 5 | AE36: 3 | AF36: 2 | AG36: 7 | AH36: 12
A37: =IF(COUNTA(C37:AB37)<17,"",MAX(A$12:A36)+1) -> 25 | B37: 2013-11-26 | C37: 2 | D37: 12 | E37: 1 | F37: 9 | G37: 7 | H37: 6 | I37: 17 | J37: 8 | K37: 10 | L37: 3 | M37: 16 | N37: 15 | O37: 14 | P37: 13 | Q37: 11 | R37: 5 | X37: =VLOOKUP(B37,[1]generale!A$16:B$1160,2,0) -> 15 | Y37: =VLOOKUP(B37,[1]generale!A$16:C$1160,3,0) -> 12 | Z37: =VLOOKUP(B37,[1]generale!A$16:D$1160,4,0) -> 10 | AA37: =VLOOKUP(B37,[1]generale!A$16:E$1160,5,0) -> 16 | AB37: =VLOOKUP(B37,[1]generale!A$16:G$1160,6,0) -> 9 | AC37: =[1]generale!G342 -> P | AD37: 12 | AE37: 2 | AF37: 9 | AG37: 11 | AH37: 4
A38: =IF(COUNTA(C38:AB38)<17,"",MAX(A$12:A37)+1) -> 26 | B38: 2013-11-27 | C38: 9 | D38: 15 | E38: 3 | F38: 5 | G38: 6 | H38: 13 | I38: 11 | J38: 17 | K38: 2 | L38: 14 | M38: 12 | N38: 10 | O38: 1 | P38: 16 | Q38: 4 | R38: 7 | X38: =VLOOKUP(B38,[1]generale!A$16:B$1160,2,0) -> 15 | Y38: =VLOOKUP(B38,[1]generale!A$16:C$1160,3,0) -> 2 | Z38: =VLOOKUP(B38,[1]generale!A$16:D$1160,4,0) -> 5 | AA38: =VLOOKUP(B38,[1]generale!A$16:E$1160,5,0) -> 7 | AB38: =VLOOKUP(B38,[1]generale!A$16:G$1160,6,0) -> 13 | AC38: =[1]generale!G343 -> T | AD38: 2 | AE38: 9 | AF38: 4 | AG38: 16 | AH38: 6
A39: =IF(COUNTA(C39:AB39)<17,"",MAX(A$12:A38)+1) -> 27 | B39: 2013-11-28 | C39: 2 | D39: 4 | E39: 16 | F39: 1 | G39: 6 | H39: 8 | I39: 12 | J39: 5 | K39: 10 | L39: 7 | M39: 17 | N39: 11 | O39: 13 | P39: 15 | Q39: 3 | R39: 9 | X39: =VLOOKUP(B39,[1]generale!A$16:B$1160,2,0) -> 2 | Y39: =VLOOKUP(B39,[1]generale!A$16:C$1160,3,0) -> 6 | Z39: =VLOOKUP(B39,[1]generale!A$16:D$1160,4,0) -> 12 | AA39: =VLOOKUP(B39,[1]generale!A$16:E$1160,5,0) -> 3 | AB39: =VLOOKUP(B39,[1]generale!A$16:G$1160,6,0) -> 10 | AC39: =[1]generale!G344 -> T | AD39: 1 | AE39: 5 | AF39: 7 | AG39: 15 | AH39: 9
A40: =IF(COUNTA(C40:AB40)<17,"",MAX(A$12:A39)+1) -> 28 | B40: 2013-11-29 | C40: 14 | D40: 4 | E40: 16 | F40: 11 | G40: 10 | H40: 9 | I40: 13 | J40: 15 | K40: 1 | L40: 12 | M40: 6 | N40: 8 | O40: 3 | P40: 5 | Q40: 7 | R40: 2 | X40: =VLOOKUP(B40,[1]generale!A$16:B$1160,2,0) -> 14 | Y40: =VLOOKUP(B40,[1]generale!A$16:C$1160,3,0) -> 6 | Z40: =VLOOKUP(B40,[1]generale!A$16:D$1160,4,0) -> 12 | AA40: =VLOOKUP(B40,[1]generale!A$16:E$1160,5,0) -> 9 | AB40: =VLOOKUP(B40,[1]generale!A$16:G$1160,6,0) -> 4 | AC40: =[1]generale!G345 -> T | AD40: 1 | AE40: 11 | AF40: 10 | AG40: 6 | AH40: 2
A41: =IF(COUNTA(C41:AB41)<17,"",MAX(A$12:A40)+1) -> 29 | B41: 2013-11-30 | C41: 16 | D41: 2 | E41: 3 | F41: 14 | G41: 12 | H41: 15 | I41: 18 | J41: 13 | K41: 10 | L41: 9 | M41: 5 | N41: 8 | O41: 11 | P41: 19 | Q41: 20 | R41: 7 | X41: =VLOOKUP(B41,[1]generale!A$16:B$1160,2,0) -> 12 | Y41: =VLOOKUP(B41,[1]generale!A$16:C$1160,3,0) -> 2 | Z41: =VLOOKUP(B41,[1]generale!A$16:D$1160,4,0) -> 14 | AA41: =VLOOKUP(B41,[1]generale!A$16:E$1160,5,0) -> 9 | AB41: =VLOOKUP(B41,[1]generale!A$16:G$1160,6,0) -> 15 | AC41: =[1]generale!G346 -> T | AD41: 5 | AE41: 2 | AF41: 4 | AG41: 10 | AH41: 6
A42: =IF(COUNTA(C42:AB42)<17,"",MAX(A$12:A41)+1) -> 30 | B42: 2013-12-01 | C42: 9 | D42: 6 | E42: 11 | F42: 5 | G42: 8 | H42: 16 | I42: 4 | J42: 10 | K42: 3 | L42: 7 | M42: 17 | N42: 13 | O42: 14 | P42: 12 | Q42: 1 | R42: 2 | X42: =VLOOKUP(B42,[1]generale!A$16:B$1160,2,0) -> 12 | Y42: =VLOOKUP(B42,[1]generale!A$16:C$1160,3,0) -> 6 | Z42: =VLOOKUP(B42,[1]generale!A$16:D$1160,4,0) -> 17 | AA42: =VLOOKUP(B42,[1]generale!A$16:E$1160,5,0) -> 14 | AB42: =VLOOKUP(B42,[1]generale!A$16:G$1160,6,0) -> 5 | AC42: =[1]generale!G347 -> T | AD42: 14 | AE42: 2 | AF42: 11 | AG42: 13 | AH42: 4
A43: =IF(COUNTA(C43:AB43)<17,"",MAX(A$12:A42)+1) -> 31 | B43: 2013-12-02 | C43: 16 | D43: 18 | E43: 11 | F43: 17 | G43: 8 | H43: 15 | I43: 7 | J43: 12 | K43: 14 | L43: 9 | M43: 13 | N43: 6 | O43: 5 | P43: 1 | Q43: 2 | R43: 3 | X43: =VLOOKUP(B43,[1]generale!A$16:B$1160,2,0) -> 16 | Y43: =VLOOKUP(B43,[1]generale!A$16:C$1160,3,0) -> 14 | Z43: =VLOOKUP(B43,[1]generale!A$16:D$1160,4,0) -> 9 | AA43: =VLOOKUP(B43,[1]generale!A$16:E$1160,5,0) -> 17 | AB43: =VLOOKUP(B43,[1]generale!A$16:G$1160,6,0) -> 12 | AC43: =[1]generale!G348 -> T | AD43: 1 | AE43: 9 | AF43: 10 | AG43: 4 | AH43: 8
A44: =IF(COUNTA(C44:AB44)<17,"",MAX(A$12:A43)+1) -> 32 | B44: 2013-12-03 | C44: 16 | D44: 11 | E44: 6 | F44: 13 | G44: 15 | H44: 4 | I44: 12 | J44: 7 | K44: 9 | L44: 14 | M44: 8 | N44: 3 | O44: 1 | P44: 2 | Q44: 5 | R44: 10 | X44: =VLOOKUP(B44,[1]generale!A$16:B$1160,2,0) -> 16 | Y44: =VLOOKUP(B44,[1]generale!A$16:C$1160,3,0) -> 11 | Z44: =VLOOKUP(B44,[1]generale!A$16:D$1160,4,0) -> 3 | AA44: =VLOOKUP(B44,[1]generale!A$16:E$1160,5,0) -> 6 | AB44: =VLOOKUP(B44,[1]generale!A$16:G$1160,6,0) -> 8 | AC44: =[1]generale!G349 -> T | AD44: 1 | AE44: 2 | AF44: 12 | AG44: 3 | AH44: 11
A45: =IF(COUNTA(C45:AB45)<17,"",MAX(A$12:A44)+1) -> 33 | B45: 2013-12-04 | C45: 14 | D45: 8 | E45: 12 | F45: 11 | G45: 4 | H45: 13 | I45: 10 | J45: 9 | K45: 6 | L45: 7 | M45: 2 | N45: 5 | O45: 15 | P45: 1 | Q45: 3 | X45: =VLOOKUP(B45,[1]generale!A$16:B$1160,2,0) -> 12 | Y45: =VLOOKUP(B45,[1]generale!A$16:C$1160,3,0) -> 8 | Z45: =VLOOKUP(B45,[1]generale!A$16:D$1160,4,0) -> 11 | AA45: =VLOOKUP(B45,[1]generale!A$16:E$1160,5,0) -> 10 | AB45: =VLOOKUP(B45,[1]generale!A$16:G$1160,6,0) -> 13 | AC45: =[1]generale!G350 -> T | AD45: 3 | AE45: 2 | AF45: 4 | AG45: 7 | AH45: 6
A46: =IF(COUNTA(C46:AB46)<17,"",MAX(A$12:A45)+1) -> 34 | B46: 2013-12-05 | C46: 2 | D46: 9 | E46: 7 | F46: 15 | G46: 1 | H46: 11 | I46: 6 | J46: 8 | K46: 3 | L46: 13 | M46: 5 | N46: 16 | O46: 17 | P46: 14 | Q46: 4 | R46: 10 | X46: =VLOOKUP(B46,[1]generale!A$16:B$1160,2,0) -> 11 | Y46: =VLOOKUP(B46,[1]generale!A$16:C$1160,3,0) -> 9 | Z46: =VLOOKUP(B46,[1]generale!A$16:D$1160,4,0) -> 6 | AA46: =VLOOKUP(B46,[1]generale!A$16:E$1160,5,0) -> 13 | AB46: =VLOOKUP(B46,[1]generale!A$16:G$1160,6,0) -> 1 | AC46: =[1]generale!G351 -> T | AD46: 6 | AE46: 2 | AF46: 7 | AG46: 10 | AH46: 5
A47: =IF(COUNTA(C47:AB47)<17,"",MAX(A$12:A46)+1) -> 35 | B47: 2013-12-06 | C47: 13 | D47: 9 | E47: 4 | F47: 8 | G47: 3 | H47: 10 | I47: 11 | J47: 6 | K47: 7 | L47: 15 | M47: 5 | N47: 1 | O47: 12 | P47: 2 | Q47: 14 | R47: 16 | X47: =VLOOKUP(B47,[1]generale!A$16:B$1160,2,0) -> 8 | Y47: =VLOOKUP(B47,[1]generale!A$16:C$1160,3,0) -> 11 | Z47: =VLOOKUP(B47,[1]generale!A$16:D$1160,4,0) -> 10 | AA47: =VLOOKUP(B47,[1]generale!A$16:E$1160,5,0) -> 13 | AB47: =VLOOKUP(B47,[1]generale!A$16:G$1160,6,0) -> 15 | AC47: =[1]generale!G352 -> T | AD47: 4 | AE47: 7 | AF47: 6 | AG47: 1 | AH47: 10
A48: =IF(COUNTA(C48:AB48)<17,"",MAX(A$12:A47)+1) -> 36 | B48: 2013-12-07 | C48: 10 | D48: 15 | E48: 2 | F48: 9 | G48: 14 | H48: 5 | I48: 3 | J48: 8 | K48: 4 | L48: 13 | M48: 1 | N48: 7 | O48: 12 | P48: 6 | Q48: 11 | X48: =VLOOKUP(B48,[1]generale!A$16:B$1160,2,0) -> 1 | Y48: =VLOOKUP(B48,[1]generale!A$16:C$1160,3,0) -> 2 | Z48: =VLOOKUP(B48,[1]generale!A$16:D$1160,4,0) -> 5 | AA48: =VLOOKUP(B48,[1]generale!A$16:E$1160,5,0) -> 3 | AB48: =VLOOKUP(B48,[1]generale!A$16:G$1160,6,0) -> 10 | AC48: =[1]generale!G353 -> T | AD48: 11 | AE48: 3 | AF48: 6 | AG48: 7 | AH48: 1
A49: =IF(COUNTA(C49:AB49)<17,"",MAX(A$12:A48)+1) -> 37 | B49: 2013-12-08 | C49: 12 | D49: 10 | E49: 15 | F49: 13 | G49: 14 | H49: 2 | I49: 3 | J49: 9 | K49: 5 | L49: 7 | M49: 8 | N49: 4 | O49: 11 | P49: 1 | Q49: 6 | X49: =VLOOKUP(B49,[1]generale!A$16:B$1160,2,0) -> 9 | Y49: =VLOOKUP(B49,[1]generale!A$16:C$1160,3,0) -> 3 | Z49: =VLOOKUP(B49,[1]generale!A$16:D$1160,4,0) -> 6 | AA49: =VLOOKUP(B49,[1]generale!A$16:E$1160,5,0) -> 4 | AB49: =VLOOKUP(B49,[1]generale!A$16:G$1160,6,0) -> 7 | AC49: =[1]generale!G354 -> T | AD49: 8 | AE49: 7 | AF49: 15 | AG49: 12 | AH49: 10
A50: =IF(COUNTA(C50:AB50)<17,"",MAX(A$12:A49)+1) -> 38 | B50: 2013-12-09 | C50: 7 | D50: 4 | E50: 8 | F50: 13 | G50: 1 | H50: 5 | I50: 14 | J50: 11 | K50: 2 | L50: 15 | M50: 13 | N50: 3 | O50: 6 | P50: 9 | Q50: 10 | R50: 16 | X50: =VLOOKUP(B50,[1]generale!A$16:B$1160,2,0) -> 16 | Y50: =VLOOKUP(B50,[1]generale!A$16:C$1160,3,0) -> 15 | Z50: =VLOOKUP(B50,[1]generale!A$16:D$1160,4,0) -> 13 | AA50: =VLOOKUP(B50,[1]generale!A$16:E$1160,5,0) -> 8 | AB50: =VLOOKUP(B50,[1]generale!A$16:G$1160,6,0) -> 4 | AC50: =[1]generale!G355 -> O | AD50: 16 | AE50: 10 | AF50: 4 | AG50: 3 | AH50: 2
A51: =IF(COUNTA(C51:AB51)<17,"",MAX(A$12:A50)+1) -> 39 | B51: 2013-12-10 | C51: 7 | D51: 3 | E51: 8 | F51: 9 | G51: 12 | H51: 4 | I51: 14 | J51: 5 | K51: 11 | L51: 16 | M51: 6 | N51: 2 | O51: 1 | P51: 10 | Q51: 13 | R51: 15 | X51: =VLOOKUP(B51,[1]generale!A$16:B$1160,2,0) -> 8 | Y51: =VLOOKUP(B51,[1]generale!A$16:C$1160,3,0) -> 7 | Z51: =VLOOKUP(B51,[1]generale!A$16:D$1160,4,0) -> 3 | AA51: =VLOOKUP(B51,[1]generale!A$16:E$1160,5,0) -> 4 | AB51: =VLOOKUP(B51,[1]generale!A$16:G$1160,6,0) -> 12 | AC51: =[1]generale!G356 -> T | AD51: 3 | AE51: 1 | AF51: 2 | AG51: 6 | AH51: 5
A52: =IF(COUNTA(C52:AB52)<17,"",MAX(A$12:A51)+1) -> 40 | B52: 2013-12-11 | C52: 14 | D52: 12 | E52: 17 | F52: np | G52: 16 | H52: 13 | I52: 20 | J52: 6 | K52: 3 | L52: 19 | M52: 5 | N52: 8 | O52: 18 | P52: 2 | Q52: 1 | R52: 4 | X52: =VLOOKUP(B52,[1]generale!A$16:B$1160,2,0) -> 14 | Y52: =VLOOKUP(B52,[1]generale!A$16:C$1160,3,0) -> 18 | Z52: =VLOOKUP(B52,[1]generale!A$16:D$1160,4,0) -> 12 | AA52: =VLOOKUP(B52,[1]generale!A$16:E$1160,5,0) -> 17 | AB52: =VLOOKUP(B52,[1]generale!A$16:G$1160,6,0) -> 19 | AC52: =[1]generale!G357 -> T | AD52: 1 | AE52: 13 | AF52: 2 | AG52: 3 | AH52: 10
A53: =IF(COUNTA(C53:AB53)<17,"",MAX(A$12:A52)+1) -> 41 | B53: 2013-12-12 | C53: 5 | D53: 4 | E53: 15 | F53: 7 | G53: 11 | H53: 6 | I53: 1 | J53: 10 | K53: 8 | L53: 16 | M53: 9 | N53: 3 | O53: 14 | P53: 2 | Q53: 12 | R53: 13 | X53: =VLOOKUP(B53,[1]generale!A$16:B$1160,2,0) -> 7 | Y53: =VLOOKUP(B53,[1]generale!A$16:C$1160,3,0) -> 5 | Z53: =VLOOKUP(B53,[1]generale!A$16:D$1160,4,0) -> 8 | AA53: =VLOOKUP(B53,[1]generale!A$16:E$1160,5,0) -> 16 | AB53: =VLOOKUP(B53,[1]generale!A$16:G$1160,6,0) -> 4 | AC53: =[1]generale!G358 -> T | AD53: 4 | AE53: 1 | AF53: 9 | AG53: 10 | AH53: 2
A54: =IF(COUNTA(C54:AB54)<17,"",MAX(A$12:A53)+1) -> 42 | B54: 2013-12-13 | C54: 11 | D54: 13 | E54: 19 | F54: 12 | G54: 6 | H54: 18 | I54: 7 | J54: 17 | K54: 16 | L54: 8 | M54: 4 | N54: 9 | O54: 2 | P54: 14 | Q54: 1 | R54: 3 | X54: =VLOOKUP(B54,[1]generale!A$16:B$1160,2,0) -> 19 | Y54: =VLOOKUP(B54,[1]generale!A$16:C$1160,3,0) -> 18 | Z54: =VLOOKUP(B54,[1]generale!A$16:D$1160,4,0) -> 7 | AA54: =VLOOKUP(B54,[1]generale!A$16:E$1160,5,0) -> 13 | AB54: =VLOOKUP(B54,[1]generale!A$16:G$1160,6,0) -> 11 | AC54: =[1]generale!G359 -> T | AD54: 3 | AE54: 6 | AF54: 7 | AG54: 2 | AH54: 1
A55: =IF(COUNTA(C55:AB55)<17,"",MAX(A$12:A54)+1) -> 43 | B55: 2013-12-14 | C55: 8 | D55: 6 | E55: 11 | F55: 1 | G55: 2 | H55: 7 | I55: 15 | J55: 14 | K55: 5 | L55: 17 | M55: 13 | N55: 4 | O55: 9 | P55: 3 | Q55: 10 | R55: 12 | X55: =VLOOKUP(B55,[1]generale!A$16:B$1160,2,0) -> 11 | Y55: =VLOOKUP(B55,[1]generale!A$16:C$1160,3,0) -> 7 | Z55: =VLOOKUP(B55,[1]generale!A$16:D$1160,4,0) -> 14 | AA55: =VLOOKUP(B55,[1]generale!A$16:E$1160,5,0) -> 1 | AB55: =VLOOKUP(B55,[1]generale!A$16:G$1160,6,0) -> 8 | AC55: =[1]generale!G360 -> T | AD55: 3 | AE55: 6 | AF55: 8 | AG55: 4 | AH55: 1
A56: =IF(COUNTA(C56:AB56)<17,"",MAX(A$12:A55)+1) -> 44 | B56: 2013-12-15 | C56: 3 | D56: 5 | E56: 2 | F56: 10 | G56: 16 | H56: 8 | I56: 12 | J56: 14 | K56: 9 | L56: 7 | M56: 13 | N56: 11 | O56: 1 | P56: 4 | Q56: 6 | R56: 15 | X56: =VLOOKUP(B56,[1]generale!A$16:B$1160,2,0) -> 3 | Y56: =VLOOKUP(B56,[1]generale!A$16:C$1160,3,0) -> 5 | Z56: =VLOOKUP(B56,[1]generale!A$16:D$1160,4,0) -> 16 | AA56: =VLOOKUP(B56,[1]generale!A$16:E$1160,5,0) -> 8 | AB56: =VLOOKUP(B56,[1]generale!A$16:G$1160,6,0) -> 10 | AC56: =[1]generale!G361 -> T | AD56: 1 | AE56: 2 | AF56: 5 | AG56: 6 | AH56: 4
A57: =IF(COUNTA(C57:AB57)<17,"",MAX(A$12:A56)+1) -> 45 | B57: 2013-12-16 | C57: 8 | D57: 11 | E57: 9 | F57: 7 | G57: 5 | H57: 2 | I57: 3 | J57: 4 | K57: 6 | L57: 15 | M57: 14 | N57: 10 | O57: 12 | P57: 13 | Q57: 16 | R57: 1 | X57: =VLOOKUP(B57,[1]generale!A$16:B$1160,2,0) -> 8 | Y57: =VLOOKUP(B57,[1]generale!A$16:C$1160,3,0) -> 11 | Z57: =VLOOKUP(B57,[1]generale!A$16:D$1160,4,0) -> 3 | AA57: =VLOOKUP(B57,[1]generale!A$16:E$1160,5,0) -> 15 | AB57: =VLOOKUP(B57,[1]generale!A$16:G$1160,6,0) -> 9 | AC57: =[1]generale!G362 -> O | AD57: 1 | AE57: 2 | AF57: 7 | AG57: 10 | AH57: 3
A58: =IF(COUNTA(C58:AB58)<17,"",MAX(A$12:A57)+1) -> 46 | B58: 2013-12-17 | C58: 3 | D58: 5 | E58: 7 | F58: 2 | G58: 4 | H58: 11 | I58: 6 | J58: 8 | K58: 1 | L58: 13 | M58: 10 | N58: 12 | O58: 16 | P58: 9 | Q58: 14 | R58: 15 | X58: =VLOOKUP(B58,[1]generale!A$16:B$1160,2,0) -> 8 | Y58: =VLOOKUP(B58,[1]generale!A$16:C$1160,3,0) -> 10 | Z58: =VLOOKUP(B58,[1]generale!A$16:D$1160,4,0) -> 4 | AA58: =VLOOKUP(B58,[1]generale!A$16:E$1160,5,0) -> 11 | AB58: =VLOOKUP(B58,[1]generale!A$16:G$1160,6,0) -> 7 | AC58: =[1]generale!G363 -> O | AD58: 8 | AE58: 11 | AF58: 5 | AG58: 6 | AH58: 3
A59: =IF(COUNTA(C59:AB59)<17,"",MAX(A$12:A58)+1) -> 47 | B59: 2013-12-18 | C59: 3 | D59: 12 | E59: 4 | F59: 8 | G59: 13 | H59: 10 | I59: 1 | J59: 11 | K59: 14 | L59: 16 | M59: 18 | N59: 6 | O59: 15 | P59: 2 | Q59: 5 | R59: 7 | S59: 9 | T59: 17 | X59: =VLOOKUP(B59,[1]generale!A$16:B$1160,2,0) -> 11 | Y59: =VLOOKUP(B59,[1]generale!A$16:C$1160,3,0) -> 3 | Z59: =VLOOKUP(B59,[1]generale!A$16:D$1160,4,0) -> 14 | AA59: =VLOOKUP(B59,[1]generale!A$16:E$1160,5,0) -> 1 | AB59: =VLOOKUP(B59,[1]generale!A$16:G$1160,6,0) -> 10 | AC59: =[1]generale!G364 -> T | AD59: 8 | AE59: 1 | AF59: 9 | AG59: 7 | AH59: 6
A60: =IF(COUNTA(C60:AB60)<17,"",MAX(A$12:A59)+1) -> 48 | B60: 2013-12-19 | C60: 8 | D60: 15 | E60: 13 | F60: 12 | G60: 7 | H60: 14 | I60: 6 | J60: 4 | K60: 2 | L60: 11 | M60: 10 | N60: 5 | O60: 9 | P60: 16 | Q60: 1 | R60: 3 | X60: =VLOOKUP(B60,[1]generale!A$16:B$1160,2,0) -> 8 | Y60: =VLOOKUP(B60,[1]generale!A$16:C$1160,3,0) -> 13 | Z60: =VLOOKUP(B60,[1]generale!A$16:D$1160,4,0) -> 4 | AA60: =VLOOKUP(B60,[1]generale!A$16:E$1160,5,0) -> 14 | AB60: =VLOOKUP(B60,[1]generale!A$16:G$1160,6,0) -> 15 | AC60: =[1]generale!G365 -> T | AD60: 1 | AE60: 3 | AF60: 8 | AG60: 6 | AH60: 2
A61: =IF(COUNTA(C61:AB61)<17,"",MAX(A$12:A60)+1) -> 49 | B61: 2013-12-20 | C61: 9 | D61: 11 | E61: 18 | F61: 15 | G61: 17 | H61: 8 | I61: 3 | J61: 14 | K61: 1 | L61: 12 | M61: 16 | N61: 2 | O61: 4 | P61: 5 | Q61: 6 | R61: 7 | S61: 10 | T61: 13 | X61: =VLOOKUP(B61,[1]generale!A$16:B$1160,2,0) -> 14 | Y61: =VLOOKUP(B61,[1]generale!A$16:C$1160,3,0) -> 9 | Z61: =VLOOKUP(B61,[1]generale!A$16:D$1160,4,0) -> 17 | AA61: =VLOOKUP(B61,[1]generale!A$16:E$1160,5,0) -> 15 | AB61: =VLOOKUP(B61,[1]generale!A$16:G$1160,6,0) -> 3 | AC61: =[1]generale!G366 -> T | AD61: 8 | AE61: 1 | AF61: 5 | AG61: 4 | AH61: 7
A62: =IF(COUNTA(C62:AB62)<17,"",MAX(A$12:A61)+1) -> 50 | B62: 2013-12-21 | C62: 8 | D62: 5 | E62: 9 | F62: 16 | G62: 1 | H62: 13 | I62: 6 | J62: 14 | K62: 12 | L62: 3 | M62: 4 | N62: 10 | O62: 15 | P62: 18 | Q62: 17 | R62: 11 | S62: 2 | T62: 7 | X62: =VLOOKUP(B62,[1]generale!A$16:B$1160,2,0) -> 5 | Y62: =VLOOKUP(B62,[1]generale!A$16:C$1160,3,0) -> 1 | Z62: =VLOOKUP(B62,[1]generale!A$16:D$1160,4,0) -> 14 | AA62: =VLOOKUP(B62,[1]generale!A$16:E$1160,5,0) -> 12 | AB62: =VLOOKUP(B62,[1]generale!A$16:G$1160,6,0) -> 18 | AC62: =[1]generale!G367 -> T | AD62: 2 | AE62: 5 | AF62: 8 | AG62: 9 | AH62: 14
A63: =IF(COUNTA(C63:AB63)<17,"",MAX(A$12:A62)+1) -> 51 | B63: 2013-12-22 | C63: 2 | D63: 4 | E63: 5 | F63: 1 | G63: 11 | H63: 10 | I63: 3 | J63: 6 | K63: 13 | L63: 8 | M63: 9 | N63: 17 | O63: 14 | P63: 15 | Q63: 12 | R63: 7 | S63: 16 | T63: 18 | X63: =VLOOKUP(B63,[1]generale!A$16:B$1160,2,0) -> 4 | Y63: =VLOOKUP(B63,[1]generale!A$16:C$1160,3,0) -> 2 | Z63: =VLOOKUP(B63,[1]generale!A$16:D$1160,4,0) -> 15 | AA63: =VLOOKUP(B63,[1]generale!A$16:E$1160,5,0) -> 9 | AB63: =VLOOKUP(B63,[1]generale!A$16:G$1160,6,0) -> 10 | AC63: =[1]generale!G368 -> T | AD63: =IF(COUNTIF($C63:$V63,X63)=0,"X",INDEX($C$9:$V$9,MATCH(X63,$C63:$V63,0))) -> 2 | AE63: 1 | AF63: 14 | AG63: 11 | AH63: 6
A64: =IF(COUNTA(C64:AB64)<17,"",MAX(A$12:A63)+1) -> 52 | B64: 2013-12-23 | C64: 16 | D64: 14 | E64: 9 | F64: 6 | G64: 7 | H64: 12 | I64: 15 | J64: 5 | K64: 11 | L64: 13 | M64: 2 | N64: 3 | O64: 8 | P64: 4 | Q64: 10 | X64: =VLOOKUP(B64,[1]generale!A$16:B$1160,2,0) -> 16 | Y64: =VLOOKUP(B64,[1]generale!A$16:C$1160,3,0) -> 5 | Z64: =VLOOKUP(B64,[1]generale!A$16:D$1160,4,0) -> 12 | AA64: =VLOOKUP(B64,[1]generale!A$16:E$1160,5,0) -> 11 | AB64: =VLOOKUP(B64,[1]generale!A$16:G$1160,6,0) -> 10 | AC64: =[1]generale!G369 -> P | AD64: 1 | AE64: 8 | AF64: 6 | AG64: 9 | AH64: 15
A65: =IF(COUNTA(C65:AB65)<17,"",MAX(A$12:A64)+1) -> 53 | B65: 2013-12-24 | C65: 7 | D65: 13 | E65: 6 | F65: 10 | G65: 4 | H65: 11 | I65: 12 | J65: 5 | K65: 8 | L65: 1 | M65: 9 | N65: 2 | O65: 3 | X65: =VLOOKUP(B65,[1]generale!A$16:B$1160,2,0) -> 10 | Y65: =VLOOKUP(B65,[1]generale!A$16:C$1160,3,0) -> 4 | Z65: =VLOOKUP(B65,[1]generale!A$16:D$1160,4,0) -> 13 | AA65: =VLOOKUP(B65,[1]generale!A$16:E$1160,5,0) -> 11 | AB65: =VLOOKUP(B65,[1]generale!A$16:G$1160,6,0) -> 12 | AC65: =[1]generale!G370 -> T | AD65: 4 | AE65: 5 | AF65: 2 | AG65: 6 | AH65: 7
A66: =IF(COUNTA(C66:AB66)<17,"",MAX(A$12:A65)+1) -> 54 | B66: 2013-12-25 | C66: 9 | D66: 17 | E66: 7 | F66: 8 | G66: 6 | H66: 5 | I66: 10 | J66: 11 | K66: 19 | L66: 3 | M66: 14 | N66: 12 | O66: 4 | P66: 18 | Q66: 1 | R66: 2 | S66: 13 | T66: 15 | U66: 16 | X66: =VLOOKUP(B66,[1]generale!A$16:B$1160,2,0) -> 17 | Y66: =VLOOKUP(B66,[1]generale!A$16:C$1160,3,0) -> 5 | Z66: =VLOOKUP(B66,[1]generale!A$16:D$1160,4,0) -> 9 | AA66: =VLOOKUP(B66,[1]generale!A$16:E$1160,5,0) -> 7 | AB66: =VLOOKUP(B66,[1]generale!A$16:G$1160,6,0) -> 19 | AC66: =[1]generale!G371 -> T | AD66: 2 | AE66: 6 | AF66: 1 | AG66: 3 | AH66: 9
A67: =IF(COUNTA(C67:AB67)<17,"",MAX(A$12:A66)+1) -> 55 | B67: 2013-12-26 | C67: 7 | D67: 4 | E67: 14 | F67: 8 | G67: 12 | H67: 2 | I67: 9 | J67: 16 | K67: 11 | L67: 15 | M67: 1 | N67: 13 | O67: 6 | P67: 10 | Q67: 5 | R67: 3 | X67: =VLOOKUP(B67,[1]generale!A$16:B$1160,2,0) -> 13 | Y67: =VLOOKUP(B67,[1]generale!A$16:C$1160,3,0) -> 12 | Z67: =VLOOKUP(B67,[1]generale!A$16:D$1160,4,0) -> 14 | AA67: =VLOOKUP(B67,[1]generale!A$16:E$1160,5,0) -> 4 | AB67: =VLOOKUP(B67,[1]generale!A$16:G$1160,6,0) -> 3 | AC67: =[1]generale!G372 -> O | AD67: 12 | AE67: 5 | AF67: 3 | AG67: 2 | AH67: 16
A68: =IF(COUNTA(C68:AB68)<17,"",MAX(A$12:A67)+1) -> 56 | B68: 2013-12-27 | C68: 10 | D68: 9 | E68: 15 | F68: 16 | G68: 12 | H68: 17 | I68: 2 | J68: 3 | K68: 8 | L68: 11 | M68: 6 | N68: 5 | O68: 13 | P68: 14 | Q68: 1 | R68: 4 | S68: 7 | X68: =VLOOKUP(B68,[1]generale!A$16:B$1160,2,0) -> 15 | Y68: =VLOOKUP(B68,[1]generale!A$16:C$1160,3,0) -> 10 | Z68: =VLOOKUP(B68,[1]generale!A$16:D$1160,4,0) -> 17 | AA68: =VLOOKUP(B68,[1]generale!A$16:E$1160,5,0) -> 9 | AB68: =VLOOKUP(B68,[1]generale!A$16:G$1160,6,0) -> 5 | AC68: =[1]generale!G373 -> T | AD68: 3 | AE68: 1 | AF68: 6 | AG68: 2 | AH68: 12
A69: =IF(COUNTA(C69:AB69)<17,"",MAX(A$12:A68)+1) -> 57 | B69: 2013-12-28 | C69: 6 | D69: 20 | E69: 5 | F69: 10 | G69: 2 | H69: 3 | I69: 12 | J69: 14 | K69: 11 | L69: 15 | M69: 7 | N69: 19 | O69: 18 | P69: 16 | Q69: 8 | R69: 17 | S69: 1 | T69: 4 | U69: 9 | V69: 13 | X69: =VLOOKUP(B69,[1]generale!A$16:B$1160,2,0) -> 6 | Y69: =VLOOKUP(B69,[1]generale!A$16:C$1160,3,0) -> 3 | Z69: =VLOOKUP(B69,[1]generale!A$16:D$1160,4,0) -> 5 | AA69: =VLOOKUP(B69,[1]generale!A$16:E$1160,5,0) -> 2 | AB69: =VLOOKUP(B69,[1]generale!A$16:G$1160,6,0) -> 20 | AC69: =[1]generale!G374 -> T | AD69: 1 | AE69: 6 | AF69: 3 | AG69: 5 | AH69: 2
A70: =IF(COUNTA(C70:AB70)<17,"",MAX(A$12:A69)+1) -> 58 | B70: 2013-12-29 | C70: 1 | D70: 6 | E70: 4 | F70: 3 | G70: 15 | H70: 11 | I70: 12 | J70: 7 | K70: 14 | L70: 5 | M70: 8 | N70: 2 | O70: 9 | P70: 10 | Q70: 13 | R70: 16 | S70: 17 | X70: =VLOOKUP(B70,[1]generale!A$16:B$1160,2,0) -> 6 | Y70: =VLOOKUP(B70,[1]generale!A$16:C$1160,3,0) -> 1 | Z70: =VLOOKUP(B70,[1]generale!A$16:D$1160,4,0) -> 11 | AA70: =VLOOKUP(B70,[1]generale!A$16:E$1160,5,0) -> 7 | AB70: =VLOOKUP(B70,[1]generale!A$16:G$1160,6,0) -> 8 | AC70: =[1]generale!G375 -> T | AD70: 2 | AE70: 1 | AF70: 6 | AG70: 8 | AH70: 11
A71: =IF(COUNTA(C71:AB71)<17,"",MAX(A$12:A70)+1) -> 59 | B71: 2013-12-30 | C71: 1 | D71: 3 | E71: 8 | F71: 9 | G71: 11 | H71: 4 | I71: 13 | J71: 10 | K71: 5 | L71: 7 | M71: 15 | N71: 6 | O71: 12 | P71: 2 | Q71: 16 | R71: 14 | X71: =VLOOKUP(B71,[1]generale!A$16:B$1160,2,0) -> 1 | Y71: =VLOOKUP(B71,[1]generale!A$16:C$1160,3,0) -> 9 | Z71: =VLOOKUP(B71,[1]generale!A$16:D$1160,4,0) -> 8 | AA71: =VLOOKUP(B71,[1]generale!A$16:E$1160,5,0) -> 4 | AB71: =VLOOKUP(B71,[1]generale!A$16:G$1160,6,0) -> 5 | AC71: =[1]generale!G376 -> T | AD71: 1 | AE71: 4 | AF71: 3 | AG71: 6 | AH71: 9
A72: =IF(COUNTA(C72:AB72)<17,"",MAX(A$12:A71)+1) -> 60 | B72: 2013-12-31 | C72: 11 | D72: 9 | E72: 13 | F72: 17 | G72: 16 | H72: 10 | I72: 5 | J72: 18 | K72: 6 | L72: 3 | M72: 15 | N72: 12 | O72: 8 | P72: 1 | Q72: 14 | R72: 2 | S72: 4 | T72: 7 | X72: =VLOOKUP(B72,[1]generale!A$16:B$1160,2,0) -> 17 | Y72: =VLOOKUP(B72,[1]generale!A$16:C$1160,3,0) -> 9 | Z72: =VLOOKUP(B72,[1]generale!A$16:D$1160,4,0) -> 15 | AA72: =VLOOKUP(B72,[1]generale!A$16:E$1160,5,0) -> 13 | AB72: =VLOOKUP(B72,[1]generale!A$16:G$1160,6,0) -> 12 | AC72: =[1]generale!G377 -> T | AD72: 4 | AE72: 2 | AF72: 11 | AG72: 3 | AH72: 12
A73: =IF(COUNTA(C73:AB73)<17,"",MAX(A$12:A72)+1) -> 61 | B73: 2014-01-01 | C73: 18 | D73: 20 | E73: 8 | F73: 9 | G73: 13 | H73: 3 | I73: 12 | J73: 17 | K73: 4 | L73: 6 | M73: 16 | N73: 19 | O73: 10 | P73: 2 | Q73: 15 | R73: 11 | S73: 1 | T73: 14 | U73: 5 | V73: 7 | X73: =VLOOKUP(B73,[1]generale!A$16:B$1160,2,0) -> 12 | Y73: =VLOOKUP(B73,[1]generale!A$16:C$1160,3,0) -> 8 | Z73: =VLOOKUP(B73,[1]generale!A$16:D$1160,4,0) -> 9 | AA73: =VLOOKUP(B73,[1]generale!A$16:E$1160,5,0) -> 13 | AB73: =VLOOKUP(B73,[1]generale!A$16:G$1160,6,0) -> 3 | AC73: =[1]generale!G378 -> T | AD73: 7 | AE73: 3 | AF73: 4 | AG73: 5 | AH73: 6
A74: =IF(COUNTA(C74:AB74)<17,"",MAX(A$12:A73)+1) -> 62 | B74: 2014-01-02 | C74: 8 | D74: 9 | E74: 12 | F74: 3 | G74: 13 | H74: 7 | I74: 4 | J74: 1 | K74: 6 | L74: 5 | M74: 15 | N74: 10 | O74: 2 | P74: 14 | Q74: 17 | R74: 11 | S74: 16 | T74: 18 | X74: =VLOOKUP(B74,[1]generale!A$16:B$1160,2,0) -> 12 | Y74: =VLOOKUP(B74,[1]generale!A$16:C$1160,3,0) -> 15 | Z74: =VLOOKUP(B74,[1]generale!A$16:D$1160,4,0) -> 9 | AA74: =VLOOKUP(B74,[1]generale!A$16:E$1160,5,0) -> 6 | AB74: =VLOOKUP(B74,[1]generale!A$16:G$1160,6,0) -> 13 | AC74: =[1]generale!G379 -> O | AD74: 3 | AE74: 11 | AF74: 2 | AG74: 9 | AH74: 5
A75: =IF(COUNTA(C75:AB75)<17,"",MAX(A$12:A74)+1) -> 63 | B75: 2014-01-03 | C75: 14 | D75: 4 | E75: 16 | F75: 4 | G75: 11 | H75: 5 | I75: 3 | J75: 8 | K75: 15 | L75: 6 | M75: 13 | N75: 9 | O75: 12 | P75: 7 | Q75: 10 | R75: 1 | X75: =VLOOKUP(B75,[1]generale!A$16:B$1160,2,0) -> 16 | Y75: =VLOOKUP(B75,[1]generale!A$16:C$1160,3,0) -> 15 | Z75: =VLOOKUP(B75,[1]generale!A$16:D$1160,4,0) -> 3 | AA75: =VLOOKUP(B75,[1]generale!A$16:E$1160,5,0) -> 11 | AB75: =VLOOKUP(B75,[1]generale!A$16:G$1160,6,0) -> 1 | AC75: =[1]generale!G380 -> P | AD75: 3 | AE75: 9 | AF75: 7 | AG75: 5 | AH75: 16
A76: =IF(COUNTA(C76:AB76)<17,"",MAX(A$12:A75)+1) -> 64 | B76: 2014-01-04 | C76: 7 | D76: 15 | E76: 5 | F76: 6 | G76: 13 | H76: 11 | I76: 1 | J76: 8 | K76: 2 | L76: 10 | M76: 3 | N76: 16 | O76: 9 | P76: 14 | Q76: 4 | R76: 12 | X76: =VLOOKUP(B76,[1]generale!A$16:B$1160,2,0) -> 5 | Y76: =VLOOKUP(B76,[1]generale!A$16:C$1160,3,0) -> 15 | Z76: =VLOOKUP(B76,[1]generale!A$16:D$1160,4,0) -> 13 | AA76: =VLOOKUP(B76,[1]generale!A$16:E$1160,5,0) -> 11 | AB76: =VLOOKUP(B76,[1]generale!A$16:G$1160,6,0) -> 3 | AC76: =[1]generale!G381 -> T | AD76: 3 | AE76: 2 | AF76: 5 | AG76: 6 | AH76: 11
A77: =IF(COUNTA(C77:AB77)<17,"",MAX(A$12:A76)+1) -> 65 | B77: 2014-01-05 | C77: 2 | D77: 15 | E77: 5 | F77: 1 | G77: 9 | H77: 3 | I77: 12 | J77: 6 | K77: 4 | L77: 7 | M77: 11 | N77: 14 | O77: 13 | P77: 10 | Q77: 8 | R77: 16 | X77: =VLOOKUP(B77,[1]generale!A$16:B$1160,2,0) -> 15 | Y77: =VLOOKUP(B77,[1]generale!A$16:C$1160,3,0) -> 3 | Z77: =VLOOKUP(B77,[1]generale!A$16:D$1160,4,0) -> 14 | AA77: =VLOOKUP(B77,[1]generale!A$16:E$1160,5,0) -> 1 | AB77: =VLOOKUP(B77,[1]generale!A$16:G$1160,6,0) -> 5 | AC77: =[1]generale!G382 -> T | AD77: 2 | AE77: 6 | AF77: 12 | AG77: 4 | AH77: 3
A78: =IF(COUNTA(C78:AB78)<17,"",MAX(A$12:A77)+1) -> 66 | B78: 2014-01-06 | C78: 14 | D78: 15 | E78: 13 | F78: 3 | G78: 9 | H78: 11 | I78: 17 | J78: 2 | K78: 5 | L78: 12 | M78: 4 | N78: 6 | O78: 8 | P78: 1 | Q78: 7 | R78: 10 | S78: 16 | T78: 18 | X78: =VLOOKUP(B78,[1]generale!A$16:B$1160,2,0) -> 3 | Y78: =VLOOKUP(B78,[1]generale!A$16:C$1160,3,0) -> 11 | Z78: =VLOOKUP(B78,[1]generale!A$16:D$1160,4,0) -> 15 | AA78: =VLOOKUP(B78,[1]generale!A$16:E$1160,5,0) -> 17 | AB78: =VLOOKUP(B78,[1]generale!A$16:G$1160,6,0) -> 4 | AC78: =[1]generale!G383 -> T | AD78: 4 | AE78: 6 | AF78: 2 | AG78: 7 | AH78: 11
A79: =IF(COUNTA(C79:AB79)<17,"",MAX(A$12:A78)+1) -> 67 | B79: 2014-01-07 | C79: 9 | D79: 12 | E79: 10 | F79: 8 | G79: 14 | H79: 19 | I79: 6 | J79: 17 | K79: 5 | L79: 16 | M79: 2 | N79: 11 | O79: 18 | P79: 4 | Q79: 1 | R79: 3 | S79: 7 | T79: 13 | U79: 15 | X79: =VLOOKUP(B79,[1]generale!A$16:B$1160,2,0) -> 12 | Y79: =VLOOKUP(B79,[1]generale!A$16:C$1160,3,0) -> 19 | Z79: =VLOOKUP(B79,[1]generale!A$16:D$1160,4,0) -> 8 | AA79: =VLOOKUP(B79,[1]generale!A$16:E$1160,5,0) -> 9 | AB79: =VLOOKUP(B79,[1]generale!A$16:G$1160,6,0) -> 6 | AC79: =[1]generale!G384 -> T | AD79: 2 | AE79: 6 | AF79: 4 | AG79: 1 | AH79: 7
A80: =IF(COUNTA(C80:AB80)<17,"",MAX(A$12:A79)+1) -> 68 | B80: 2014-01-08 | C80: 15 | D80: 16 | E80: 13 | F80: 2 | G80: 9 | H80: 7 | I80: 1 | J80: 5 | K80: 14 | L80: 10 | M80: 18 | N80: 3 | O80: 6 | P80: 12 | Q80: 11 | R80: 4 | S80: 8 | T80: 17 | X80: =VLOOKUP(B80,[1]generale!A$16:B$1160,2,0) -> 9 | Y80: =VLOOKUP(B80,[1]generale!A$16:C$1160,3,0) -> 1 | Z80: =VLOOKUP(B80,[1]generale!A$16:D$1160,4,0) -> 7 | AA80: =VLOOKUP(B80,[1]generale!A$16:E$1160,5,0) -> 14 | AB80: =VLOOKUP(B80,[1]generale!A$16:G$1160,6,0) -> 15 | AC80: =[1]generale!G385 -> T | AD80: 5 | AE80: 7 | AF80: 6 | AG80: 9 | AH80: 1
A81: =IF(COUNTA(C81:AB81)<17,"",MAX(A$12:A80)+1) -> 69 | B81: 2014-01-09 | C81: 7 | D81: 5 | E81: 12 | F81: 8 | G81: 9 | H81: 1 | I81: 4 | J81: 10 | K81: 13 | L81: 3 | M81: 2 | N81: 6 | O81: 11 | X81: =VLOOKUP(B81,[1]generale!A$16:B$1160,2,0) -> 12 | Y81: =VLOOKUP(B81,[1]generale!A$16:C$1160,3,0) -> 4 | Z81: =VLOOKUP(B81,[1]generale!A$16:D$1160,4,0) -> 5 | AA81: =VLOOKUP(B81,[1]generale!A$16:E$1160,5,0) -> 9 | AB81: =VLOOKUP(B81,[1]generale!A$16:G$1160,6,0) -> 10 | AC81: =[1]generale!G386 -> T | AD81: =IF(COUNTIF($C81:$V81,X81)=0,"X",INDEX($C$9:$V$9,MATCH(X81,$C81:$V81,0))) -> 3 | AE81: =IF(COUNTIF($C81:$V81,Y81)=0,"X",INDEX($C$9:$V$9,MATCH(Y81,$C81:$V81,0))) -> 7 | AF81: =IF(COUNTIF($C81:$V81,Z81)=0,"X",INDEX($C$9:$V$9,MATCH(Z81,$C81:$V81,0))) -> 2 | AG81: =IF(COUNTIF($C81:$V81,AA81)=0,"X",INDEX($C$9:$V$9,MATCH(AA81,$C81:$V81,0))) -> 5 | AH81: =IF(COUNTIF($C81:$V81,AB81)=0,"X",INDEX($C$9:$V$9,MATCH(AB81,$C81:$V81,0))) -> 8
A82: =IF(COUNTA(C82:AB82)<17,"",MAX(A$12:A81)+1) -> 70 | B82: 2014-01-10 | C82: 15 | D82: 8 | E82: 10 | F82: 11 | G82: 17 | H82: 5 | I82: 12 | J82: 13 | K82: 7 | L82: 9 | M82: 4 | N82: 16 | O82: 3 | P82: 1 | Q82: 14 | R82: 2 | S82: 6 | X82: =VLOOKUP(B82,[1]generale!A$16:B$1160,2,0) -> 3 | Y82: =VLOOKUP(B82,[1]generale!A$16:C$1160,3,0) -> 8 | Z82: =VLOOKUP(B82,[1]generale!A$16:D$1160,4,0) -> 4 | AA82: =VLOOKUP(B82,[1]generale!A$16:E$1160,5,0) -> 11 | AB82: =VLOOKUP(B82,[1]generale!A$16:G$1160,6,0) -> 10 | AC82: =[1]generale!G387 -> T | AD82: 13 | AE82: 2 | AF82: 11 | AG82: 4 | AH82: 3
A83: =IF(COUNTA(C83:AB83)<17,"",MAX(A$12:A82)+1) -> 71 | B83: 2014-01-11 | C83: 18 | D83: 14 | E83: 15 | F83: 13 | G83: 5 | H83: 8 | I83: 9 | J83: 17 | K83: 16 | L83: 4 | M83: 3 | N83: 6 | O83: 7 | P83: 11 | Q83: 1 | R83: 2 | S83: 10 | T83: 12 | X83: =VLOOKUP(B83,[1]generale!A$16:B$1160,2,0) -> 16 | Y83: =VLOOKUP(B83,[1]generale!A$16:C$1160,3,0) -> 5 | Z83: =VLOOKUP(B83,[1]generale!A$16:D$1160,4,0) -> 8 | AA83: =VLOOKUP(B83,[1]generale!A$16:E$1160,5,0) -> 15 | AB83: =VLOOKUP(B83,[1]generale!A$16:G$1160,6,0) -> 1 | AC83: =[1]generale!G388 -> T | AD83: 9 | AE83: 5 | AF83: 6 | AG83: 3 | AH83: 15
A84: =IF(COUNTA(C84:AB84)<17,"",MAX(A$12:A83)+1) -> 72 | B84: 2014-01-12 | C84: 6 | D84: 4 | E84: 1 | F84: 3 | G84: 11 | H84: 2 | I84: 7 | J84: 12 | K84: 9 | L84: 13 | M84: 14 | N84: 15 | O84: 5 | P84: 8 | Q84: 10 | X84: =VLOOKUP(B84,[1]generale!A$16:B$1160,2,0) -> 11 | Y84: =VLOOKUP(B84,[1]generale!A$16:C$1160,3,0) -> 6 | Z84: =VLOOKUP(B84,[1]generale!A$16:D$1160,4,0) -> 3 | AA84: =VLOOKUP(B84,[1]generale!A$16:E$1160,5,0) -> 14 | AB84: =VLOOKUP(B84,[1]generale!A$16:G$1160,6,0) -> 7 | AC84: =[1]generale!G389 -> T | AD84: 5 | AE84: 1 | AF84: 4 | AG84: 11 | AH84: 7
A85: =IF(COUNTA(C85:AB85)<17,"",MAX(A$12:A84)+1) -> 73 | B85: 2014-01-13 | C85: 12 | D85: 13 | E85: 17 | F85: 15 | G85: 16 | H85: 6 | I85: 9 | J85: 14 | K85: 5 | L85: 11 | M85: 4 | N85: 10 | O85: 1 | P85: 18 | Q85: 2 | R85: 3 | S85: 7 | T85: 8 | X85: =VLOOKUP(B85,[1]generale!A$16:B$1160,2,0) -> 17 | Y85: =VLOOKUP(B85,[1]generale!A$16:C$1160,3,0) -> 12 | Z85: =VLOOKUP(B85,[1]generale!A$16:D$1160,4,0) -> 9 | AA85: =VLOOKUP(B85,[1]generale!A$16:E$1160,5,0) -> 15 | AB85: =VLOOKUP(B85,[1]generale!A$16:G$1160,6,0) -> 6 | AC85: =[1]generale!G390 -> T | AD85: 3 | AE85: 1 | AF85: 7 | AG85: 4 | AH85: 6
A86: =IF(COUNTA(C86:AB86)<17,"",MAX(A$12:A85)+1) -> 74 | B86: 2014-01-14 | C86: 5 | D86: 1 | E86: 9 | F86: 11 | G86: 6 | H86: 14 | I86: 3 | J86: 15 | K86: 4 | L86: 8 | M86: 12 | N86: 10 | O86: 16 | P86: 2 | Q86: 17 | R86: 13 | S86: 7 | X86: =VLOOKUP(B86,[1]generale!A$16:B$1160,2,0) -> 8 | Y86: =VLOOKUP(B86,[1]generale!A$16:C$1160,3,0) -> 11 | Z86: =VLOOKUP(B86,[1]generale!A$16:D$1160,4,0) -> 10 | AA86: =VLOOKUP(B86,[1]generale!A$16:E$1160,5,0) -> 14 | AB86: =VLOOKUP(B86,[1]generale!A$16:G$1160,6,0) -> 9 | AC86: =[1]generale!G391 -> O | AD86: 10 | AE86: 4 | AF86: 12 | AG86: 6 | AH86: 3
A87: =IF(COUNTA(C87:AB87)<17,"",MAX(A$12:A86)+1) -> 75 | B87: 2014-01-15 | C87: 9 | D87: 1 | E87: 11 | F87: 5 | G87: 4 | H87: 3 | I87: 15 | J87: 16 | K87: 13 | L87: 7 | M87: 2 | N87: 10 | O87: 14 | P87: 8 | Q87: 17 | R87: 12 | S87: 18 | T87: 6 | X87: =VLOOKUP(B87,[1]generale!A$16:B$1160,2,0) -> 16 | Y87: =VLOOKUP(B87,[1]generale!A$16:C$1160,3,0) -> 11 | Z87: =VLOOKUP(B87,[1]generale!A$16:D$1160,4,0) -> 1 | AA87: =VLOOKUP(B87,[1]generale!A$16:E$1160,5,0) -> 17 | AB87: =VLOOKUP(B87,[1]generale!A$16:G$1160,6,0) -> 14 | AC87: =[1]generale!G392 -> P | AD87: 8 | AE87: 3 | AF87: 2 | AG87: 15 | AH87: 13
A88: =IF(COUNTA(C88:AB88)<17,"",MAX(A$12:A87)+1) -> 76 | B88: 2014-01-16 | C88: 18 | D88: 12 | E88: 10 | F88: 13 | G88: 9 | H88: 16 | I88: 17 | J88: 1 | K88: 15 | L88: 14 | M88: 5 | N88: 7 | O88: 4 | P88: 2 | Q88: 3 | R88: 6 | S88: 8 | T88: 11 | X88: =VLOOKUP(B88,[1]generale!A$16:B$1160,2,0) -> 10 | Y88: =VLOOKUP(B88,[1]generale!A$16:C$1160,3,0) -> 12 | Z88: =VLOOKUP(B88,[1]generale!A$16:D$1160,4,0) -> 13 | AA88: =VLOOKUP(B88,[1]generale!A$16:E$1160,5,0) -> 18 | AB88: =VLOOKUP(B88,[1]generale!A$16:G$1160,6,0) -> 1 | AC88: =[1]generale!G393 -> T | AD88: 3 | AE88: 2 | AF88: 4 | AG88: 1 | AH88: 8
A89: =IF(COUNTA(C89:AB89)<17,"",MAX(A$12:A88)+1) -> 77 | B89: 2014-01-17 | C89: 1 | D89: 4 | E89: 2 | F89: 3 | G89: 9 | H89: 7 | I89: 14 | J89: 5 | K89: 13 | L89: 10 | M89: 8 | N89: 6 | O89: 15 | P89: 12 | Q89: 11 | X89: =VLOOKUP(B89,[1]generale!A$16:B$1160,2,0) -> 9 | Y89: =VLOOKUP(B89,[1]generale!A$16:C$1160,3,0) -> 15 | Z89: =VLOOKUP(B89,[1]generale!A$16:D$1160,4,0) -> 3 | AA89: =VLOOKUP(B89,[1]generale!A$16:E$1160,5,0) -> 4 | AB89: =VLOOKUP(B89,[1]generale!A$16:G$1160,6,0) -> 10 | AC89: =[1]generale!G394 -> P | AD89: 5 | AE89: 13 | AF89: 4 | AG89: 2 | AH89: 10
A90: =IF(COUNTA(C90:AB90)<17,"",MAX(A$12:A89)+1) -> 78 | B90: 2014-01-18 | C90: 11 | D90: 6 | E90: 1 | F90: 3 | G90: 5 | H90: 4 | I90: 16 | J90: 2 | K90: 14 | L90: 10 | M90: 7 | N90: 13 | O90: 8 | P90: 9 | Q90: 12 | R90: 15 | S90: 17 | X90: =VLOOKUP(B90,[1]generale!A$16:B$1160,2,0) -> 16 | Y90: =VLOOKUP(B90,[1]generale!A$16:C$1160,3,0) -> 3 | Z90: =VLOOKUP(B90,[1]generale!A$16:D$1160,4,0) -> 10 | AA90: =VLOOKUP(B90,[1]generale!A$16:E$1160,5,0) -> 11 | AB90: =VLOOKUP(B90,[1]generale!A$16:G$1160,6,0) -> 7 | AC90: =[1]generale!G395 -> T | AD90: 7 | AE90: 4 | AF90: 10 | AG90: 1 | AH90: 11
A91: =IF(COUNTA(C91:AB91)<17,"",MAX(A$12:A90)+1) -> 79 | B91: 2014-01-19 | C91: 16 | D91: 13 | E91: 15 | F91: 14 | G91: 6 | H91: 17 | I91: 11 | J91: 5 | K91: 7 | L91: 10 | M91: 4 | N91: 12 | O91: 1 | P91: 2 | Q91: 3 | R91: 8 | S91: 9 | X91: =VLOOKUP(B91,[1]generale!A$16:B$1160,2,0) -> 17 | Y91: =VLOOKUP(B91,[1]generale!A$16:C$1160,3,0) -> 13 | Z91: =VLOOKUP(B91,[1]generale!A$16:D$1160,4,0) -> 4 | AA91: =VLOOKUP(B91,[1]generale!A$16:E$1160,5,0) -> 10 | AB91: =VLOOKUP(B91,[1]generale!A$16:G$1160,6,0) -> 7 | AC91: =[1]generale!G396 -> T | AD91: 6 | AE91: 2 | AF91: 11 | AG91: 10 | AH91: 9
A92: =IF(COUNTA(C92:AB92)<17,"",MAX(A$12:A91)+1) -> 80 | B92: 2014-01-20 | C92: 9 | D92: 1 | E92: 16 | F92: 2 | G92: 3 | H92: 4 | I92: 7 | J92: 6 | K92: 10 | L92: 13 | M92: 11 | N92: 8 | O92: 14 | P92: 15 | Q92: 12 | R92: 5 | X92: =VLOOKUP(B92,[1]generale!A$16:B$1160,2,0) -> 16 | Y92: =VLOOKUP(B92,[1]generale!A$16:C$1160,3,0) -> 14 | Z92: =VLOOKUP(B92,[1]generale!A$16:D$1160,4,0) -> 11 | AA92: =VLOOKUP(B92,[1]generale!A$16:E$1160,5,0) -> 5 | AB92: =VLOOKUP(B92,[1]generale!A$16:G$1160,6,0) -> 7 | AC92: =[1]generale!G397 -> P | AD92: 3 | AE92: 13 | AF92: 11 | AG92: 16 | AH92: 7
A93: =IF(COUNTA(C93:AB93)<17,"",MAX(A$12:A92)+1) -> 81 | B93: 2014-01-21 | C93: 8 | D93: 9 | E93: 7 | F93: 12 | G93: 1 | H93: 11 | I93: 5 | J93: 10 | K93: 14 | L93: 2 | M93: 6 | N93: 15 | O93: 13 | P93: 16 | Q93: 3 | R93: 4 | X93: =VLOOKUP(B93,[1]generale!A$16:B$1160,2,0) -> 9 | Y93: =VLOOKUP(B93,[1]generale!A$16:C$1160,3,0) -> 2 | Z93: =VLOOKUP(B93,[1]generale!A$16:D$1160,4,0) -> 10 | AA93: =VLOOKUP(B93,[1]generale!A$16:E$1160,5,0) -> 11 | AB93: =VLOOKUP(B93,[1]generale!A$16:G$1160,6,0) -> 13 | AC93: =[1]generale!G398 -> P | AD93: 2 | AE93: 10 | AF93: 8 | AG93: 6 | AH93: 13
A94: =IF(COUNTA(C94:AB94)<17,"",MAX(A$12:A93)+1) -> 82 | B94: 2014-01-22 | C94: 5 | D94: 8 | E94: 4 | F94: 12 | G94: 16 | H94: 11 | I94: 15 | J94: 3 | K94: 6 | L94: 7 | M94: 1 | N94: 2 | O94: 13 | P94: 14 | Q94: 9 | R94: 10 | S94: 17 | T94: 18 | X94: =VLOOKUP(B94,[1]generale!A$16:B$1160,2,0) -> 8 | Y94: =VLOOKUP(B94,[1]generale!A$16:C$1160,3,0) -> 15 | Z94: =VLOOKUP(B94,[1]generale!A$16:D$1160,4,0) -> 3 | AA94: =VLOOKUP(B94,[1]generale!A$16:E$1160,5,0) -> 11 | AB94: =VLOOKUP(B94,[1]generale!A$16:G$1160,6,0) -> 1 | AC94: =[1]generale!G399 -> T | AD94: 2 | AE94: 7 | AF94: 8 | AG94: 6 | AH94: 11
A95: =IF(COUNTA(C95:AB95)<17,"",MAX(A$12:A94)+1) -> 83 | B95: 2014-01-23 | C95: 10 | D95: 16 | E95: 7 | F95: 2 | G95: 18 | H95: 5 | I95: 15 | J95: 17 | K95: 6 | L95: 8 | M95: 9 | N95: 3 | O95: 13 | P95: 1 | Q95: 4 | R95: 11 | S95: 12 | T95: 14 | X95: =VLOOKUP(B95,[1]generale!A$16:B$1160,2,0) -> 18 | Y95: =VLOOKUP(B95,[1]generale!A$16:C$1160,3,0) -> 6 | Z95: =VLOOKUP(B95,[1]generale!A$16:D$1160,4,0) -> 7 | AA95: =VLOOKUP(B95,[1]generale!A$16:E$1160,5,0) -> 13 | AB95: =VLOOKUP(B95,[1]generale!A$16:G$1160,6,0) -> 10 | AC95: =[1]generale!G400 -> T | AD95: 5 | AE95: 9 | AF95: 3 | AG95: 13 | AH95: 1
A96: =IF(COUNTA(C96:AB96)<17,"",MAX(A$12:A95)+1) -> 84 | B96: 2014-01-24 | C96: 7 | D96: 17 | E96: 6 | F96: 5 | G96: 2 | H96: 13 | I96: 14 | J96: 9 | K96: 10 | L96: 11 | M96: 3 | N96: 18 | O96: 15 | P96: 12 | Q96: 1 | R96: 16 | S96: 8 | T96: 4 | X96: =VLOOKUP(B96,[1]generale!A$16:B$1160,2,0) -> 1 | Y96: =VLOOKUP(B96,[1]generale!A$16:C$1160,3,0) -> 12 | Z96: =VLOOKUP(B96,[1]generale!A$16:D$1160,4,0) -> 16 | AA96: =VLOOKUP(B96,[1]generale!A$16:E$1160,5,0) -> 5 | AB96: =VLOOKUP(B96,[1]generale!A$16:G$1160,6,0) -> 6 | AC96: =[1]generale!G401 -> O | AD96: 15 | AE96: 14 | AF96: 16 | AG96: 4 | AH96: 3
A97: =IF(COUNTA(C97:AB97)<17,"",MAX(A$12:A96)+1) -> 85 | B97: 2014-01-25 | C97: 2 | D97: 18 | E97: 19 | F97: 14 | G97: 9 | H97: 10 | I97: 11 | J97: 17 | K97: 8 | L97: 13 | M97: 12 | N97: 15 | O97: 5 | P97: 4 | Q97: 7 | R97: 6 | S97: 3 | T97: 16 | U97: 1 | X97: =VLOOKUP(B97,[1]generale!A$16:B$1160,2,0) -> 14 | Y97: =VLOOKUP(B97,[1]generale!A$16:C$1160,3,0) -> 2 | Z97: =VLOOKUP(B97,[1]generale!A$16:D$1160,4,0) -> 11 | AA97: =VLOOKUP(B97,[1]generale!A$16:E$1160,5,0) -> 15 | AB97: =VLOOKUP(B97,[1]generale!A$16:G$1160,6,0) -> 12 | AC97: =[1]generale!G402 -> T | AD97: 4 | AE97: 1 | AF97: 7 | AG97: 12 | AH97: 11
A98: =IF(COUNTA(C98:AB98)<17,"",MAX(A$12:A97)+1) -> 86 | B98: 2014-01-26 | C98: 4 | D98: 18 | E98: 12 | F98: 10 | G98: 3 | H98: 15 | I98: 13 | J98: 1 | K98: 17 | L98: 16 | M98: 8 | N98: 14 | O98: 11 | P98: 2 | Q98: 5 | R98: 6 | S98: 7 | T98: 9 | X98: =VLOOKUP(B98,[1]generale!A$16:B$1160,2,0) -> 17 | Y98: =VLOOKUP(B98,[1]generale!A$16:C$1160,3,0) -> 4 | Z98: =VLOOKUP(B98,[1]generale!A$16:D$1160,4,0) -> 8 | AA98: =VLOOKUP(B98,[1]generale!A$16:E$1160,5,0) -> 15 | AB98: =VLOOKUP(B98,[1]generale!A$16:G$1160,6,0) -> 16 | AC98: =[1]generale!G403 -> T | AD98: 9 | AE98: 1 | AF98: 11 | AG98: 6 | AH98: 10
A99: =IF(COUNTA(C99:AB99)<17,"",MAX(A$12:A98)+1) -> 87 | B99: 2014-01-27 | C99: 16 | D99: 17 | E99: 6 | F99: 10 | G99: 18 | H99: 8 | I99: 14 | J99: 15 | K99: 1 | L99: 5 | M99: 13 | N99: 11 | O99: 2 | P99: 12 | Q99: 9 | R99: 4 | S99: 3 | T99: 7 | X99: =VLOOKUP(B99,[1]generale!A$16:B$1160,2,0) -> 10 | Y99: =VLOOKUP(B99,[1]generale!A$16:C$1160,3,0) -> 15 | Z99: =VLOOKUP(B99,[1]generale!A$16:D$1160,4,0) -> 12 | AA99: =VLOOKUP(B99,[1]generale!A$16:E$1160,5,0) -> 4 | AB99: =VLOOKUP(B99,[1]generale!A$16:G$1160,6,0) -> 1 | AC99: =[1]generale!G404 -> T | AD99: 4 | AE99: 8 | AF99: 14 | AG99: 16 | AH99: 9
A100: =IF(COUNTA(C100:AB100)<17,"",MAX(A$12:A99)+1) -> 88 | B100: 2014-01-28 | C100: 15 | D100: 10 | E100: 14 | F100: 8 | G100: 13 | H100: 3 | I100: 11 | J100: 4 | K100: 5 | L100: 6 | M100: 9 | N100: 12 | O100: 1 | P100: 2 | Q100: 7 | X100: =VLOOKUP(B100,[1]generale!A$16:B$1160,2,0) -> 3 | Y100: =VLOOKUP(B100,[1]generale!A$16:C$1160,3,0) -> 15 | Z100: =VLOOKUP(B100,[1]generale!A$16:D$1160,4,0) -> 14 | AA100: =VLOOKUP(B100,[1]generale!A$16:E$1160,5,0) -> 8 | AB100: =VLOOKUP(B100,[1]generale!A$16:G$1160,6,0) -> 10 | AC100: =[1]generale!G405 -> T | AD100: 6 | AE100: 1 | AF100: 3 | AG100: 4 | AH100: 2
A101: =IF(COUNTA(C101:AB101)<17,"",MAX(A$12:A100)+1) -> 89 | B101: 2014-01-29 | C101: 8 | D101: 3 | E101: 16 | F101: 4 | G101: 7 | H101: 9 | I101: 5 | J101: 15 | K101: 2 | L101: 12 | M101: 13 | N101: 6 | O101: 14 | P101: 17 | Q101: 1 | R101: 18 | S101: 11 | X101: =VLOOKUP(B101,[1]generale!A$16:B$1160,2,0) -> 8 | Y101: =VLOOKUP(B101,[1]generale!A$16:C$1160,3,0) -> 5 | Z101: =VLOOKUP(B101,[1]generale!A$16:D$1160,4,0) -> 16 | AA101: =VLOOKUP(B101,[1]generale!A$16:E$1160,5,0) -> 15 | AB101: =VLOOKUP(B101,[1]generale!A$16:G$1160,6,0) -> 7 | AC101: =[1]generale!G406 -> P | AD101: 1 | AE101: 7 | AF101: 3 | AG101: 8 | AH101: 5
A102: =IF(COUNTA(C102:AB102)<17,"",MAX(A$12:A101)+1) -> 90 | B102: 2014-01-30 | C102: 6 | D102: 8 | E102: 5 | F102: 12 | G102: 19 | H102: 20 | I102: 16 | J102: 14 | K102: 7 | L102: 1 | M102: 4 | N102: 9 | O102: 13 | P102: 15 | Q102: 2 | R102: 3 | S102: 10 | T102: 11 | U102: 17 | V102: 18 | X102: =VLOOKUP(B102,[1]generale!A$16:B$1160,2,0) -> 6 | Y102: =VLOOKUP(B102,[1]generale!A$16:C$1160,3,0) -> 20 | Z102: =VLOOKUP(B102,[1]generale!A$16:D$1160,4,0) -> 14 | AA102: =VLOOKUP(B102,[1]generale!A$16:E$1160,5,0) -> 19 | AB102: =VLOOKUP(B102,[1]generale!A$16:G$1160,6,0) -> 12 | AC102: =[1]generale!G407 -> T | AD102: 1 | AE102: 6 | AF102: 8 | AG102: 5 | AH102: 4
A103: =IF(COUNTA(C103:AB103)<17,"",MAX(A$12:A102)+1) -> 91 | B103: 2014-01-31 | C103: 11 | D103: 4 | E103: 1 | F103: 3 | G103: 8 | H103: 13 | I103: 7 | J103: 2 | K103: 12 | L103: 6 | M103: 10 | N103: 9 | O103: 14 | P103: 5 | X103: =VLOOKUP(B103,[1]generale!A$16:B$1160,2,0) -> 5 | Y103: =VLOOKUP(B103,[1]generale!A$16:C$1160,3,0) -> 4 | Z103: =VLOOKUP(B103,[1]generale!A$16:D$1160,4,0) -> 3 | AA103: =VLOOKUP(B103,[1]generale!A$16:E$1160,5,0) -> 1 | AB103: =VLOOKUP(B103,[1]generale!A$16:G$1160,6,0) -> 10 | AC103: =[1]generale!G408 -> O | AD103: 14 | AE103: 2 | AF103: 4 | AG103: 3 | AH103: 11
A104: =IF(COUNTA(C104:AB104)<17,"",MAX(A$12:A103)+1) -> 92 | B104: 2014-02-01 | C104: 18 | D104: 11 | E104: 14 | F104: 13 | G104: 4 | H104: 17 | I104: 6 | J104: 7 | K104: 19 | L104: 16 | M104: 9 | N104: 10 | O104: 2 | P104: 8 | Q104: 3 | R104: 1 | S104: 5 | T104: 12 | U104: 15 | X104: =VLOOKUP(B104,[1]generale!A$16:B$1160,2,0) -> 3 | Y104: =VLOOKUP(B104,[1]generale!A$16:C$1160,3,0) -> 7 | Z104: =VLOOKUP(B104,[1]generale!A$16:D$1160,4,0) -> 14 | AA104: =VLOOKUP(B104,[1]generale!A$16:E$1160,5,0) -> 1 | AB104: =VLOOKUP(B104,[1]generale!A$16:G$1160,6,0) -> 10 | AC104: =[1]generale!G409 -> T | AD104: 15 | AE104: 8 | AF104: 3 | AG104: 16 | AH104: 12
A105: =IF(COUNTA(C105:AB105)<17,"",MAX(A$12:A104)+1) -> 93 | B105: 2014-02-02 | C105: 15 | D105: 16 | E105: 11 | F105: 17 | G105: 1 | H105: 9 | I105: 10 | J105: 7 | K105: 12 | L105: 2 | M105: 14 | N105: 3 | O105: 8 | P105: 4 | Q105: 5 | R105: 6 | S105: 13 | X105: =VLOOKUP(B105,[1]generale!A$16:B$1160,2,0) -> 10 | Y105: =VLOOKUP(B105,[1]generale!A$16:C$1160,3,0) -> 14 | Z105: =VLOOKUP(B105,[1]generale!A$16:D$1160,4,0) -> 16 | AA105: =VLOOKUP(B105,[1]generale!A$16:E$1160,5,0) -> 1 | AB105: =VLOOKUP(B105,[1]generale!A$16:G$1160,6,0) -> 11 | AC105: =[1]generale!G410 -> T | AD105: 7 | AE105: 11 | AF105: 2 | AG105: 5 | AH105: 3
A106: =IF(COUNTA(C106:AB106)<17,"",MAX(A$12:A105)+1) -> 94 | B106: 2014-02-03 | C106: 13 | D106: 14 | E106: 4 | F106: 10 | G106: 9 | H106: 18 | I106: 8 | J106: 15 | K106: 7 | L106: 5 | M106: 16 | N106: 12 | O106: 2 | P106: 17 | Q106: 11 | R106: 1 | S106: 3 | T106: 6 | X106: =VLOOKUP(B106,[1]generale!A$16:B$1160,2,0) -> 4 | Y106: =VLOOKUP(B106,[1]generale!A$16:C$1160,3,0) -> 15 | Z106: =VLOOKUP(B106,[1]generale!A$16:D$1160,4,0) -> 7 | AA106: =VLOOKUP(B106,[1]generale!A$16:E$1160,5,0) -> 10 | AB106: =VLOOKUP(B106,[1]generale!A$16:G$1160,6,0) -> 11 | AC106: =[1]generale!G411 -> T | AD106: 3 | AE106: 8 | AF106: 9 | AG106: 4 | AH106: 15 | AQ106: 1 | AR106: 1 | AS106: 1 | AT106: 1 | AU106: 1 | AV106: 1
A107: =IF(COUNTA(C107:AB107)<17,"",MAX(A$12:A106)+1) -> 95 | B107: 2014-02-04 | C107: 17 | D107: 9 | E107: 6 | F107: 13 | G107: 3 | H107: 14 | I107: 18 | J107: 8 | K107: 5 | L107: 7 | M107: 15 | N107: 2 | O107: 10 | P107: 11 | Q107: 1 | R107: 4 | S107: 12 | T107: 16 | X107: =VLOOKUP(B107,[1]generale!A$16:B$1160,2,0) -> 13 | Y107: =VLOOKUP(B107,[1]generale!A$16:C$1160,3,0) -> 17 | Z107: =VLOOKUP(B107,[1]generale!A$16:D$1160,4,0) -> 6 | AA107: =VLOOKUP(B107,[1]generale!A$16:E$1160,5,0) -> 9 | AB107: =VLOOKUP(B107,[1]generale!A$16:G$1160,6,0) -> 14 | AC107: =[1]generale!G412 -> T | AD107: 4 | AE107: 1 | AF107: 1 | AG107: 2 | AH107: 6 | AQ107: 1 | AR107: 1 | AS107: 1 | AT107: 1 | AU107: 1 | AV107: 1
A108: =IF(COUNTA(C108:AB108)<17,"",MAX(A$12:A107)+1) -> 96 | B108: 2014-02-05 | C108: 5 | D108: 2 | E108: 9 | F108: 11 | G108: 14 | H108: 7 | I108: 18 | J108: 6 | K108: 10 | L108: 16 | M108: 1 | N108: 3 | O108: 17 | P108: 12 | Q108: 4 | R108: 8 | S108: 13 | T108: 15 | X108: =VLOOKUP(B108,[1]generale!A$16:B$1160,2,0) -> 18 | Y108: =VLOOKUP(B108,[1]generale!A$16:C$1160,3,0) -> 6 | Z108: =VLOOKUP(B108,[1]generale!A$16:D$1160,4,0) -> 2 | AA108: =VLOOKUP(B108,[1]generale!A$16:E$1160,5,0) -> 13 | AB108: =VLOOKUP(B108,[1]generale!A$16:G$1160,6,0) -> 14 | AC108: =[1]generale!G413 -> T | AD108: 7 | AE108: 8 | AF108: 2 | AG108: 17 | AH108: 5 | AR108: 1 | AS108: 1 | AT108: 1 | AU108: 1 | AV108: 1
A109: =IF(COUNTA(C109:AB109)<17,"",MAX(A$12:A108)+1) -> 97 | B109: 2014-02-06 | C109: 12 | D109: 11 | E109: 9 | F109: 5 | G109: 8 | H109: 3 | I109: 13 | J109: 14 | K109: 7 | L109: 6 | M109: 4 | N109: 2 | O109: 1 | P109: 10 | X109: =VLOOKUP(B109,[1]generale!A$16:B$1160,2,0) -> 14 | Y109: =VLOOKUP(B109,[1]generale!A$16:C$1160,3,0) -> 11 | Z109: =VLOOKUP(B109,[1]generale!A$16:D$1160,4,0) -> 13 | AA109: =VLOOKUP(B109,[1]generale!A$16:E$1160,5,0) -> 5 | AB109: =VLOOKUP(B109,[1]generale!A$16:G$1160,6,0) -> 12 | AC109: =[1]generale!G414 -> T | AD109: 8 | AE109: 2 | AF109: 7 | AG109: 4 | AH109: 1 | AP109: 1 | AQ109: 1 | AR109: 1 | AS109: 1 | AT109: 1 | AU109: 1 | AV109: 1
A110: =IF(COUNTA(C110:AB110)<17,"",MAX(A$12:A109)+1) -> 98 | B110: 2014-02-07 | C110: 2 | D110: 12 | E110: 11 | F110: 4 | G110: 7 | H110: 14 | I110: 3 | J110: 6 | K110: 13 | L110: 9 | M110: 8 | N110: 1 | O110: 10 | P110: 5 | X110: =VLOOKUP(B110,[1]generale!A$16:B$1160,2,0) -> 12 | Y110: =VLOOKUP(B110,[1]generale!A$16:C$1160,3,0) -> 14 | Z110: =VLOOKUP(B110,[1]generale!A$16:D$1160,4,0) -> 1 | AA110: =VLOOKUP(B110,[1]generale!A$16:E$1160,5,0) -> 7 | AB110: =VLOOKUP(B110,[1]generale!A$16:G$1160,6,0) -> 8 | AC110: =[1]generale!G415 -> T | AD110: 2 | AE110: 6 | AF110: 12 | AG110: 5 | AH110: 11
A111: =IF(COUNTA(C111:AB111)<17,"",MAX(A$12:A110)+1) -> 99 | B111: 2014-02-08 | C111: 2 | D111: 10 | E111: 15 | F111: 6 | G111: 12 | H111: 8 | I111: 14 | J111: 3 | K111: 9 | L111: 11 | M111: 5 | N111: 7 | O111: 4 | P111: 1 | Q111: 13 | X111: =VLOOKUP(B111,[1]generale!A$16:B$1160,2,0) -> 12 | Y111: =VLOOKUP(B111,[1]generale!A$16:C$1160,3,0) -> 8 | Z111: =VLOOKUP(B111,[1]generale!A$16:D$1160,4,0) -> 14 | AA111: =VLOOKUP(B111,[1]generale!A$16:E$1160,5,0) -> 4 | AB111: =VLOOKUP(B111,[1]generale!A$16:G$1160,6,0) -> 2 | AC111: =[1]generale!G416 -> T | AD111: 5 | AE111: 6 | AF111: 7 | AG111: 13 | AH111: 1
A112: =IF(COUNTA(C112:AB112)<17,"",MAX(A$12:A111)+1) -> 100 | B112: 2014-02-09 | C112: 7 | D112: 3 | E112: 5 | F112: 2 | G112: 12 | H112: 6 | I112: 10 | J112: 11 | K112: 9 | L112: 8 | M112: 1 | N112: 4 | O112: 13 | X112: =VLOOKUP(B112,[1]generale!A$16:B$1160,2,0) -> 1 | Y112: =VLOOKUP(B112,[1]generale!A$16:C$1160,3,0) -> 10 | Z112: =VLOOKUP(B112,[1]generale!A$16:D$1160,4,0) -> 8 | AA112: =VLOOKUP(B112,[1]generale!A$16:E$1160,5,0) -> 9 | AB112: =VLOOKUP(B112,[1]generale!A$16:G$1160,6,0) -> 11 | AC112: =[1]generale!G417 -> T | AD112: 11 | AE112: 7 | AF112: 10 | AG112: 9 | AH112: 8
A113: =IF(COUNTA(C113:AB113)<17,"",MAX(A$12:A112)+1) -> 101 | B113: 2014-02-10 | C113: 1 | D113: 4 | E113: 17 | F113: 3 | G113: 11 | H113: 15 | I113: 10 | J113: NP | K113: 2 | L113: 5 | M113: 6 | N113: 14 | O113: 7 | P113: 12 | Q113: 16 | R113: 13 | S113: 8 | X113: =VLOOKUP(B113,[1]generale!A$16:B$1160,2,0) -> 2 | Y113: =VLOOKUP(B113,[1]generale!A$16:C$1160,3,0) -> 4 | Z113: =VLOOKUP(B113,[1]generale!A$16:D$1160,4,0) -> 10 | AA113: =VLOOKUP(B113,[1]generale!A$16:E$1160,5,0) -> 15 | AB113: =VLOOKUP(B113,[1]generale!A$16:G$1160,6,0) -> 17 | AC113: =[1]generale!G418 -> T | AD113: 9 | AE113: 2 | AF113: 7 | AG113: 6 | AH113: 3
A114: =IF(COUNTA(C114:AB114)<17,"",MAX(A$12:A113)+1) -> 102 | B114: 2014-02-11 | C114: 4 | D114: 3 | E114: 13 | F114: 2 | G114: 6 | H114: 1 | I114: 11 | J114: 5 | K114: 8 | L114: 9 | M114: 7 | N114: 10 | O114: 12 | P114: 14 | Q114: 15 | R114: 16 | X114: =VLOOKUP(B114,[1]generale!A$16:B$1160,2,0) -> 4 | Y114: =VLOOKUP(B114,[1]generale!A$16:C$1160,3,0) -> 13 | Z114: =VLOOKUP(B114,[1]generale!A$16:D$1160,4,0) -> 6 | AA114: =VLOOKUP(B114,[1]generale!A$16:E$1160,5,0) -> 5 | AB114: =VLOOKUP(B114,[1]generale!A$16:G$1160,6,0) -> 2 | AC114: =[1]generale!G419 -> T | AD114: 1 | AE114: 3 | AF114: 5 | AG114: 8 | AH114: 4
A115: =IF(COUNTA(C115:AB115)<17,"",MAX(A$12:A114)+1) -> 103 | B115: 2014-02-12 | C115: 11 | D115: 5 | E115: 3 | F115: 13 | G115: 6 | H115: 10 | I115: 8 | J115: 15 | K115: 12 | L115: 16 | M115: 9 | N115: 2 | O115: 7 | P115: 14 | Q115: 4 | R115: 1 | X115: =VLOOKUP(B115,[1]generale!A$16:B$1160,2,0) -> 10 | Y115: =VLOOKUP(B115,[1]generale!A$16:C$1160,3,0) -> 3 | Z115: =VLOOKUP(B115,[1]generale!A$16:D$1160,4,0) -> 8 | AA115: =VLOOKUP(B115,[1]generale!A$16:E$1160,5,0) -> 6 | AB115: =VLOOKUP(B115,[1]generale!A$16:G$1160,6,0) -> 11 | AC115: =[1]generale!G420 -> P | AD115: 6 | AE115: =IF(COUNTIF($C115:$V115,Y115)=0,"X",INDEX($C$9:$V$9,MATCH(Y115,$C115:$V115,0))) -> 3 | AF115: 7 | AG115: 5 | AH115: 1
A116: =IF(COUNTA(C116:AB116)<17,"",MAX(A$12:A115)+1) -> 104 | B116: 2014-02-13 | C116: 9 | D116: 10 | E116: NP | F116: 16 | G116: 7 | H116: 2 | I116: 3 | J116: 5 | K116: 13 | L116: 14 | M116: 6 | N116: 8 | O116: 1 | P116: 11 | Q116: 12 | R116: 15 | X116: =VLOOKUP(B116,[1]generale!A$16:B$1160,2,0) -> 7 | Y116: =VLOOKUP(B116,[1]generale!A$16:C$1160,3,0) -> 10 | Z116: =VLOOKUP(B116,[1]generale!A$16:D$1160,4,0) -> 14 | AA116: =VLOOKUP(B116,[1]generale!A$16:E$1160,5,0) -> 5 | AB116: =VLOOKUP(B116,[1]generale!A$16:G$1160,6,0) -> 8 | AC116: =[1]generale!G421 -> T | AD116: =IF(COUNTIF($C116:$V116,X116)=0,"X",INDEX($C$9:$V$9,MATCH(X116,$C116:$V116,0))) -> 5 | AE116: 2 | AF116: 10 | AG116: 8 | AH116: 12
A117: =IF(COUNTA(C117:AB117)<17,"",MAX(A$12:A116)+1) -> 105 | B117: 2014-02-14 | C117: 3 | D117: 2 | E117: 18 | F117: 12 | G117: 4 | H117: 7 | I117: 1 | J117: 8 | K117: 6 | L117: 9 | M117: 15 | N117: 5 | O117: 13 | P117: 16 | Q117: 10 | R117: 11 | S117: 14 | T117: 17 | X117: =VLOOKUP(B117,[1]generale!A$16:B$1160,2,0) -> 15 | Y117: =VLOOKUP(B117,[1]generale!A$16:C$1160,3,0) -> 7 | Z117: =VLOOKUP(B117,[1]generale!A$16:D$1160,4,0) -> 3 | AA117: =VLOOKUP(B117,[1]generale!A$16:E$1160,5,0) -> 12 | AB117: =VLOOKUP(B117,[1]generale!A$16:G$1160,6,0) -> 6 | AC117: =[1]generale!G422 -> T | AD117: 11 | AE117: 6 | AF117: 1 | AG117: 4 | AH117: 9
A118: =IF(COUNTA(C118:AB118)<17,"",MAX(A$12:A117)+1) -> 106 | B118: 2014-02-15 | C118: 4 | D118: 1 | E118: 2 | F118: 5 | G118: 7 | H118: 3 | I118: 8 | J118: 6 | K118: 10 | L118: 11 | M118: 12 | N118: 9 | O118: 13 | X118: =VLOOKUP(B118,[1]generale!A$16:B$1160,2,0) -> 7 | Y118: =VLOOKUP(B118,[1]generale!A$16:C$1160,3,0) -> 11 | Z118: =VLOOKUP(B118,[1]generale!A$16:D$1160,4,0) -> 4 | AA118: =VLOOKUP(B118,[1]generale!A$16:E$1160,5,0) -> 12 | AB118: =VLOOKUP(B118,[1]generale!A$16:G$1160,6,0) -> 1 | AC118: =[1]generale!G423 -> P | AD118: 5 | AE118: 10 | AF118: 1 | AG118: 11 | AH118: 2
A119: =IF(COUNTA(C119:AB119)<17,"",MAX(A$12:A118)+1) -> 107 | B119: 2014-02-16 | C119: 12 | D119: 10 | E119: 15 | F119: 2 | G119: 3 | H119: 7 | I119: 5 | J119: 8 | K119: 9 | L119: 14 | M119: 4 | N119: 11 | O119: 1 | P119: 6 | Q119: 13 | X119: =VLOOKUP(B119,[1]generale!A$16:B$1160,2,0) -> 10 | Y119: =VLOOKUP(B119,[1]generale!A$16:C$1160,3,0) -> 3 | Z119: =VLOOKUP(B119,[1]generale!A$16:D$1160,4,0) -> 4 | AA119: =VLOOKUP(B119,[1]generale!A$16:E$1160,5,0) -> 7 | AB119: =VLOOKUP(B119,[1]generale!A$16:G$1160,6,0) -> 14 | AC119: =[1]generale!G424 -> T | AD119: 2 | AE119: 5 | AF119: 11 | AG119: 6 | AH119: 10
A120: =IF(COUNTA(C120:AB120)<17,"",MAX(A$12:A119)+1) -> 108 | B120: 2014-02-17 | C120: 16 | D120: 17 | E120: 3 | F120: 15 | G120: 13 | H120: 9 | I120: 7 | J120: 8 | K120: 11 | L120: 6 | M120: 4 | N120: 10 | O120: 14 | P120: 1 | Q120: 5 | R120: 12 | S120: 18 | T120: 2 | X120: =VLOOKUP(B120,[1]generale!A$16:B$1160,2,0) -> 16 | Y120: =VLOOKUP(B120,[1]generale!A$16:C$1160,3,0) -> 1 | Z120: =VLOOKUP(B120,[1]generale!A$16:D$1160,4,0) -> 5 | AA120: =VLOOKUP(B120,[1]generale!A$16:E$1160,5,0) -> 15 | AB120: =VLOOKUP(B120,[1]generale!A$16:G$1160,6,0) -> 17 | AC120: =[1]generale!G425 -> T | AD120: 1 | AE120: 14 | AF120: 15 | AG120: 4 | AH120: 2
A121: =IF(COUNTA(C121:AB121)<17,"",MAX(A$12:A120)+1) -> 109 | B121: 2014-02-18 | C121: 15 | D121: 10 | E121: 17 | F121: 14 | G121: 8 | H121: 16 | I121: 11 | J121: 18 | K121: 1 | L121: 13 | M121: 5 | N121: 12 | O121: 6 | P121: 3 | Q121: 9 | R121: 4 | S121: 2 | T121: 7 | X121: =VLOOKUP(B121,[1]generale!A$16:B$1160,2,0) -> 3 | Y121: =VLOOKUP(B121,[1]generale!A$16:C$1160,3,0) -> 4 | Z121: =VLOOKUP(B121,[1]generale!A$16:D$1160,4,0) -> 14 | AA121: =VLOOKUP(B121,[1]generale!A$16:E$1160,5,0) -> 13 | AB121: =VLOOKUP(B121,[1]generale!A$16:G$1160,6,0) -> 1 | AC121: =[1]generale!G426 -> T | AD121: 14 | AE121: 16 | AF121: 4 | AG121: 10 | AH121: 9
A122: =IF(COUNTA(C122:AB122)<17,"",MAX(A$12:A121)+1) -> 110 | B122: 2014-02-19 | C122: 16 | D122: 12 | E122: 11 | F122: 17 | G122: 8 | H122: 2 | I122: 13 | J122: 1 | K122: 5 | L122: 6 | M122: 3 | N122: 7 | O122: 15 | P122: 10 | Q122: 9 | R122: 18 | S122: 14 | T122: 4 | X122: =VLOOKUP(B122,[1]generale!A$16:B$1160,2,0) -> 17 | Y122: =VLOOKUP(B122,[1]generale!A$16:C$1160,3,0) -> 7 | Z122: =VLOOKUP(B122,[1]generale!A$16:D$1160,4,0) -> 2 | AA122: =VLOOKUP(B122,[1]generale!A$16:E$1160,5,0) -> 1 | AB122: =VLOOKUP(B122,[1]generale!A$16:G$1160,6,0) -> 6 | AC122: =[1]generale!G427 -> P | AD122: 4 | AE122: 12 | AF122: 6 | AG122: 8 | AH122: 10
A123: =IF(COUNTA(C123:AB123)<17,"",MAX(A$12:A122)+1) -> 111 | B123: 2014-02-20 | C123: 2 | D123: 10 | E123: 16 | F123: 9 | G123: 6 | H123: 15 | I123: 11 | J123: 4 | K123: 8 | L123: 3 | M123: 5 | N123: 14 | O123: 13 | P123: 1 | Q123: 7 | R123: 12 | X123: =VLOOKUP(B123,[1]generale!A$16:B$1160,2,0) -> 11 | Y123: =VLOOKUP(B123,[1]generale!A$16:C$1160,3,0) -> 10 | Z123: =VLOOKUP(B123,[1]generale!A$16:D$1160,4,0) -> 2 | AA123: =VLOOKUP(B123,[1]generale!A$16:E$1160,5,0) -> 14 | AB123: =VLOOKUP(B123,[1]generale!A$16:G$1160,6,0) -> 4 | AC123: =[1]generale!G428 -> T | AD123: 7 | AE123: 2 | AF123: 1 | AG123: 12 | AH123: 8
A124: =IF(COUNTA(C124:AB124)<17,"",MAX(A$12:A123)+1) -> 112 | B124: 2014-02-21 | C124: 4 | D124: 5 | E124: 12 | F124: 3 | G124: 13 | H124: 10 | I124: 6 | J124: 1 | K124: 7 | L124: 15 | M124: 2 | N124: 8 | O124: 16 | P124: 9 | Q124: 11 | R124: 14 | X124: =VLOOKUP(B124,[1]generale!A$16:B$1160,2,0) -> 10 | Y124: =VLOOKUP(B124,[1]generale!A$16:C$1160,3,0) -> 15 | Z124: =VLOOKUP(B124,[1]generale!A$16:D$1160,4,0) -> 4 | AA124: =VLOOKUP(B124,[1]generale!A$16:E$1160,5,0) -> 6 | AB124: =VLOOKUP(B124,[1]generale!A$16:G$1160,6,0) -> 7 | AC124: =[1]generale!G429 -> T | AD124: 6 | AE124: 10 | AF124: 1 | AG124: 7 | AH124: 9
A125: =IF(COUNTA(C125:AB125)<17,"",MAX(A$12:A124)+1) -> 113 | B125: 2014-02-22 | C125: 10 | D125: 7 | E125: 9 | F125: 3 | G125: 8 | H125: 5 | I125: 18 | J125: 6 | K125: 11 | L125: 2 | M125: 1 | N125: 12 | O125: 16 | P125: 4 | Q125: 17 | R125: 15 | S125: 14 | T125: 13 | X125: =VLOOKUP(B125,[1]generale!A$16:B$1160,2,0) -> 7 | Y125: =VLOOKUP(B125,[1]generale!A$16:C$1160,3,0) -> 3 | Z125: =VLOOKUP(B125,[1]generale!A$16:D$1160,4,0) -> 6 | AA125: =VLOOKUP(B125,[1]generale!A$16:E$1160,5,0) -> 1 | AB125: =VLOOKUP(B125,[1]generale!A$16:G$1160,6,0) -> 9 | AC125: =[1]generale!G430 -> P | AD125: 2 | AE125: 4 | AF125: 8 | AG125: 11 | AH125: 3
A126: =IF(COUNTA(C126:AB126)<17,"",MAX(A$12:A125)+1) -> 114 | B126: 2014-02-23 | C126: 11 | D126: 6 | E126: 15 | F126: 13 | G126: 12 | H126: 14 | I126: 9 | J126: 10 | K126: 2 | L126: 5 | M126: 8 | N126: 4 | O126: 3 | P126: 7 | Q126: 1 | X126: =VLOOKUP(B126,[1]generale!A$16:B$1160,2,0) -> 11 | Y126: =VLOOKUP(B126,[1]generale!A$16:C$1160,3,0) -> 12 | Z126: =VLOOKUP(B126,[1]generale!A$16:D$1160,4,0) -> 15 | AA126: =VLOOKUP(B126,[1]generale!A$16:E$1160,5,0) -> 2 | AB126: =VLOOKUP(B126,[1]generale!A$16:G$1160,6,0) -> 3 | AC126: =[1]generale!G431 -> T | AD126: 1 | AE126: 5 | AF126: 3 | AG126: 9 | AH126: 13
A127: =IF(COUNTA(C127:AB127)<17,"",MAX(A$12:A126)+1) -> 115 | B127: 2014-02-24 | C127: 7 | D127: 11 | E127: 9 | F127: 12 | G127: 3 | H127: 6 | I127: 16 | J127: 13 | K127: 8 | L127: 14 | M127: 10 | N127: 1 | O127: 2 | P127: 5 | Q127: 4 | R127: 15 | X127: =VLOOKUP(B127,[1]generale!A$16:B$1160,2,0) -> 4 | Y127: =VLOOKUP(B127,[1]generale!A$16:C$1160,3,0) -> 2 | Z127: =VLOOKUP(B127,[1]generale!A$16:D$1160,4,0) -> 7 | AA127: =VLOOKUP(B127,[1]generale!A$16:E$1160,5,0) -> 16 | AB127: =VLOOKUP(B127,[1]generale!A$16:G$1160,6,0) -> 1 | AC127: =[1]generale!G432 -> P | AD127: 15 | AE127: 13 | AF127: 1 | AG127: 7 | AH127: 12
A128: =IF(COUNTA(C128:AB128)<17,"",MAX(A$12:A127)+1) -> 116 | B128: 2014-02-25 | C128: 5 | D128: 12 | E128: 4 | F128: 1 | G128: 3 | H128: 14 | I128: 8 | J128: 7 | K128: 10 | L128: 2 | M128: 15 | N128: 6 | O128: 17 | P128: 11 | Q128: 16 | R128: 13 | S128: 9 | T128: 18 | X128: =VLOOKUP(B128,[1]generale!A$16:B$1160,2,0) -> 6 | Y128: =VLOOKUP(B128,[1]generale!A$16:C$1160,3,0) -> 12 | Z128: =VLOOKUP(B128,[1]generale!A$16:D$1160,4,0) -> 14 | AA128: =VLOOKUP(B128,[1]generale!A$16:E$1160,5,0) -> 7 | AB128: =VLOOKUP(B128,[1]generale!A$16:G$1160,6,0) -> 1 | AC128: =[1]generale!G433 -> O | AD128: 12 | AE128: 2 | AF128: 6 | AG128: 8 | AH128: 4
A129: =IF(COUNTA(C129:AB129)<17,"",MAX(A$12:A128)+1) -> 117 | B129: 2014-02-26 | C129: 3 | D129: 7 | E129: 9 | F129: 16 | G129: 2 | H129: 13 | I129: 11 | J129: 10 | K129: 15 | L129: 6 | M129: 4 | N129: 14 | O129: 8 | P129: 5 | Q129: 1 | R129: 12 | X129: =VLOOKUP(B129,[1]generale!A$16:B$1160,2,0) -> 16 | Y129: =VLOOKUP(B129,[1]generale!A$16:C$1160,3,0) -> 9 | Z129: =VLOOKUP(B129,[1]generale!A$16:D$1160,4,0) -> 6 | AA129: =VLOOKUP(B129,[1]generale!A$16:E$1160,5,0) -> 10 | AB129: =VLOOKUP(B129,[1]generale!A$16:G$1160,6,0) -> 1 | AC129: =[1]generale!G434 -> T | AD129: 4 | AE129: 3 | AF129: 10 | AG129: 8 | AH129: 15
A130: =IF(COUNTA(C130:AB130)<17,"",MAX(A$12:A129)+1) -> 118 | B130: 2014-02-27 | C130: 4 | D130: 5 | E130: 16 | F130: 3 | G130: 11 | H130: 7 | I130: 1 | J130: 12 | K130: 2 | L130: 15 | M130: 13 | N130: 6 | O130: 9 | P130: 8 | Q130: 10 | R130: 14 | S130: 17 | T130: 18 | X130: =VLOOKUP(B130,[1]generale!A$16:B$1160,2,0) -> 7 | Y130: =VLOOKUP(B130,[1]generale!A$16:C$1160,3,0) -> 13 | Z130: =VLOOKUP(B130,[1]generale!A$16:D$1160,4,0) -> 11 | AA130: =VLOOKUP(B130,[1]generale!A$16:E$1160,5,0) -> 4 | AB130: =VLOOKUP(B130,[1]generale!A$16:G$1160,6,0) -> 1 | AC130: =[1]generale!G435 -> T | AD130: 6 | AE130: 11 | AF130: 5 | AG130: 1 | AH130: 7
A131: =IF(COUNTA(C131:AB131)<17,"",MAX(A$12:A130)+1) -> 119 | B131: 2014-02-28 | C131: 13 | D131: 9 | E131: 4 | F131: 6 | G131: 2 | H131: 1 | I131: NP | J131: 10 | K131: 8 | L131: 5 | M131: 14 | N131: 3 | O131: 15 | P131: 7 | Q131: 12 | X131: =VLOOKUP(B131,[1]generale!A$16:B$1160,2,0) -> 9 | Y131: =VLOOKUP(B131,[1]generale!A$16:C$1160,3,0) -> 2 | Z131: =VLOOKUP(B131,[1]generale!A$16:D$1160,4,0) -> 13 | AA131: =VLOOKUP(B131,[1]generale!A$16:E$1160,5,0) -> 1 | AB131: =VLOOKUP(B131,[1]generale!A$16:G$1160,6,0) -> 6 | AC131: =[1]generale!G436 -> T | AD131: 2 | AE131: 5 | AF131: 1 | AG131: 6 | AH131: 4
A132: =IF(COUNTA(C132:AB132)<17,"",MAX(A$12:A131)+1) -> 120 | B132: 2014-03-01 | C132: 5 | D132: 16 | E132: 15 | F132: 14 | G132: 10 | H132: 3 | I132: 13 | J132: 1 | K132: 11 | L132: 4 | M132: 8 | N132: 7 | O132: 2 | P132: 6 | Q132: 9 | R132: 12 | X132: =VLOOKUP(B132,[1]generale!A$16:B$1160,2,0) -> 5 | Y132: =VLOOKUP(B132,[1]generale!A$16:C$1160,3,0) -> 15 | Z132: =VLOOKUP(B132,[1]generale!A$16:D$1160,4,0) -> 1 | AA132: =VLOOKUP(B132,[1]generale!A$16:E$1160,5,0) -> 14 | AB132: =VLOOKUP(B132,[1]generale!A$16:G$1160,6,0) -> 16 | AC132: =[1]generale!G437 -> T | AD132: 1 | AE132: 3 | AF132: 8 | AG132: 4 | AH132: 2
A133: =IF(COUNTA(C133:AB133)<17,"",MAX(A$12:A132)+1) -> 121 | B133: 2014-03-02 | C133: 13 | D133: 4 | E133: 6 | F133: 10 | G133: 1 | H133: 3 | I133: 11 | J133: 5 | K133: 2 | L133: 7 | M133: 12 | N133: 17 | O133: 15 | P133: 14 | Q133: 16 | R133: 18 | S133: 9 | T133: 8 | X133: =VLOOKUP(B133,[1]generale!A$16:B$1160,2,0) -> 15 | Y133: =VLOOKUP(B133,[1]generale!A$16:C$1160,3,0) -> 13 | Z133: =VLOOKUP(B133,[1]generale!A$16:D$1160,4,0) -> 8 | AA133: =VLOOKUP(B133,[1]generale!A$16:E$1160,5,0) -> 18 | AB133: =VLOOKUP(B133,[1]generale!A$16:G$1160,6,0) -> 10 | AC133: =[1]generale!G438 -> O | AD133: 13 | AE133: 1 | AF133: 18 | AG133: 16 | AH133: 4
A134: =IF(COUNTA(C134:AB134)<17,"",MAX(A$12:A133)+1) -> 122 | B134: 2014-03-03 | C134: 1 | D134: 3 | E134: 9 | F134: 6 | G134: 8 | H134: 5 | I134: 14 | J134: 15 | K134: 2 | L134: 4 | M134: 7 | N134: 12 | O134: 18 | P134: 17 | Q134: 16 | R134: 11 | S134: 13 | T134: 10 | X134: =VLOOKUP(B134,[1]generale!A$16:B$1160,2,0) -> 4 | Y134: =VLOOKUP(B134,[1]generale!A$16:C$1160,3,0) -> 1 | Z134: =VLOOKUP(B134,[1]generale!A$16:D$1160,4,0) -> 3 | AA134: =VLOOKUP(B134,[1]generale!A$16:E$1160,5,0) -> 15 | AB134: =VLOOKUP(B134,[1]generale!A$16:G$1160,6,0) -> 6 | AC134: =[1]generale!G439 -> O | AD134: 10 | AE134: 1 | AF134: 2 | AG134: 8 | AH134: 4
A135: =IF(COUNTA(C135:AB135)<17,"",MAX(A$12:A134)+1) -> 123 | B135: 2014-03-04 | C135: 2 | D135: 3 | E135: 4 | F135: 7 | G135: 10 | H135: 6 | I135: 13 | J135: 1 | K135: 14 | L135: 5 | M135: 12 | N135: 12 | O135: 15 | P135: 17 | Q135: 9 | R135: 8 | S135: 16 | X135: =VLOOKUP(B135,[1]generale!A$16:B$1160,2,0) -> 17 | Y135: =VLOOKUP(B135,[1]generale!A$16:C$1160,3,0) -> 5 | Z135: =VLOOKUP(B135,[1]generale!A$16:D$1160,4,0) -> 12 | AA135: =VLOOKUP(B135,[1]generale!A$16:E$1160,5,0) -> 3 | AB135: =VLOOKUP(B135,[1]generale!A$16:G$1160,6,0) -> 2 | AC135: =[1]generale!G440 -> P | AD135: 14 | AE135: 10 | AF135: 11 | AG135: 2 | AH135: 1
A136: =IF(COUNTA(C136:AB136)<17,"",MAX(A$12:A135)+1) -> 124 | B136: 2014-03-05 | C136: 7 | D136: 4 | E136: 6 | F136: 15 | G136: 13 | H136: 3 | I136: 9 | J136: 2 | K136: 11 | L136: 5 | M136: 8 | N136: 1 | O136: 10 | P136: 12 | Q136: 14 | X136: =VLOOKUP(B136,[1]generale!A$16:B$1160,2,0) -> 6 | Y136: =VLOOKUP(B136,[1]generale!A$16:C$1160,3,0) -> 15 | Z136: =VLOOKUP(B136,[1]generale!A$16:D$1160,4,0) -> 13 | AA136: =VLOOKUP(B136,[1]generale!A$16:E$1160,5,0) -> 3 | AB136: =VLOOKUP(B136,[1]generale!A$16:G$1160,6,0) -> 4 | AC136: =[1]generale!G441 -> T | AD136: 3 | AE136: 4 | AF136: 5 | AG136: 6 | AH136: 2
A137: =IF(COUNTA(C137:AB137)<17,"",MAX(A$12:A136)+1) -> 125 | B137: 2014-03-06 | C137: 9 | D137: 3 | E137: 7 | F137: 10 | G137: 5 | H137: 1 | I137: 16 | J137: 6 | K137: 4 | L137: 12 | M137: 2 | N137: 8 | O137: 11 | P137: 14 | Q137: 15 | R137: 13 | X137: =VLOOKUP(B137,[1]generale!A$16:B$1160,2,0) -> 16 | Y137: =VLOOKUP(B137,[1]generale!A$16:C$1160,3,0) -> 11 | Z137: =VLOOKUP(B137,[1]generale!A$16:D$1160,4,0) -> 6 | AA137: =VLOOKUP(B137,[1]generale!A$16:E$1160,5,0) -> 4 | AB137: =VLOOKUP(B137,[1]generale!A$16:G$1160,6,0) -> 5 | AC137: =[1]generale!G442 -> P | AD137: 7 | AE137: 13 | AF137: 8 | AG137: 9 | AH137: 5
A138: =IF(COUNTA(C138:AB138)<17,"",MAX(A$12:A137)+1) -> 126 | B138: 2014-03-07 | C138: 1 | D138: 8 | E138: 4 | F138: 5 | G138: 13 | H138: 7 | I138: 3 | J138: 6 | K138: 15 | L138: 16 | M138: 10 | N138: 11 | O138: 12 | P138: 2 | Q138: 9 | R138: 14 | X138: =VLOOKUP(B138,[1]generale!A$16:B$1160,2,0) -> 1 | Y138: =VLOOKUP(B138,[1]generale!A$16:C$1160,3,0) -> 9 | Z138: =VLOOKUP(B138,[1]generale!A$16:D$1160,4,0) -> 2 | AA138: =VLOOKUP(B138,[1]generale!A$16:E$1160,5,0) -> 7 | AB138: =VLOOKUP(B138,[1]generale!A$16:G$1160,6,0) -> 14 | AC138: =[1]generale!G443 -> P | AD138: 1 | AE138: 15 | AF138: 14 | AG138: 6 | AH138: 16
A139: =IF(COUNTA(C139:AB139)<17,"",MAX(A$12:A138)+1) -> 127 | B139: 2014-03-08 | C139: 10 | D139: 6 | E139: 11 | F139: 12 | G139: 2 | H139: 1 | I139: 5 | J139: 4 | K139: 9 | L139: 8 | M139: 16 | N139: 3 | O139: 15 | P139: 13 | Q139: 7 | R139: 14 | X139: =VLOOKUP(B139,[1]generale!A$16:B$1160,2,0) -> 12 | Y139: =VLOOKUP(B139,[1]generale!A$16:C$1160,3,0) -> 7 | Z139: =VLOOKUP(B139,[1]generale!A$16:D$1160,4,0) -> 14 | AA139: =VLOOKUP(B139,[1]generale!A$16:E$1160,5,0) -> 4 | AB139: =VLOOKUP(B139,[1]generale!A$16:G$1160,6,0) -> 16 | AC139: =[1]generale!G444 -> P | AD139: 4 | AE139: 15 | AF139: 16 | AG139: 8 | AH139: 11
A140: =IF(COUNTA(C140:AB140)<17,"",MAX(A$12:A139)+1) -> 128 | B140: 2014-03-09 | C140: 7 | D140: 15 | E140: 3 | F140: 4 | G140: 1 | H140: 6 | I140: 2 | J140: 5 | K140: 13 | L140: 10 | M140: 12 | N140: 9 | O140: 17 | P140: 19 | Q140: 20 | R140: 11 | S140: 14 | T140: 8 | U140: 18 | V140: 16 | X140: =VLOOKUP(B140,[1]generale!A$16:B$1160,2,0) -> 6 | Y140: =VLOOKUP(B140,[1]generale!A$16:C$1160,3,0) -> 7 | Z140: =VLOOKUP(B140,[1]generale!A$16:D$1160,4,0) -> 20 | AA140: =VLOOKUP(B140,[1]generale!A$16:E$1160,5,0) -> 15 | AB140: 17 | AC140: =[1]generale!G445 -> O | AD140: 6 | AE140: 1 | AF140: 15 | AG140: 2 | AH140: 13
A141: =IF(COUNTA(C141:AB141)<17,"",MAX(A$12:A140)+1) -> 129 | B141: 2014-03-10 | C141: 6 | D141: 7 | E141: 5 | F141: 1 | G141: 11 | H141: 9 | I141: 14 | J141: 12 | K141: 10 | L141: 4 | M141: 3 | N141: 16 | O141: 8 | P141: 2 | Q141: 15 | R141: 13 | X141: =VLOOKUP(B141,[1]generale!A$16:B$1160,2,0) -> 4 | Y141: =VLOOKUP(B141,[1]generale!A$16:C$1160,3,0) -> 16 | Z141: =VLOOKUP(B141,[1]generale!A$16:D$1160,4,0) -> 14 | AA141: =VLOOKUP(B141,[1]generale!A$16:E$1160,5,0) -> 5 | AB141: 1 | AC141: =[1]generale!G446 -> P | AD141: 10 | AE141: 12 | AF141: 7 | AG141: 3 | AH141: 4
A142: =IF(COUNTA(C142:AB142)<17,"",MAX(A$12:A141)+1) -> 130 | B142: 2014-03-11 | C142: 2 | D142: 16 | E142: 5 | F142: 3 | G142: 4 | H142: 1 | I142: 7 | J142: 8 | K142: 6 | L142: 10 | M142: 12 | N142: 15 | O142: 14 | P142: 11 | Q142: 13 | R142: 9 | X142: =VLOOKUP(B142,[1]generale!A$16:B$1160,2,0) -> 8 | Y142: =VLOOKUP(B142,[1]generale!A$16:C$1160,3,0) -> 3 | Z142: =VLOOKUP(B142,[1]generale!A$16:D$1160,4,0) -> 11 | AA142: =VLOOKUP(B142,[1]generale!A$16:E$1160,5,0) -> 4 | AB142: =VLOOKUP(B142,[1]generale!A$16:G$1160,6,0) -> 5 | AC142: =[1]generale!G447 -> P | AD142: 8 | AE142: 4 | AF142: 14 | AG142: 5 | AH142: 3
A143: =IF(COUNTA(C143:AB143)<17,"",MAX(A$12:A142)+1) -> 131 | B143: 2014-03-12 | C143: 4 | D143: 7 | E143: 3 | F143: 2 | G143: 14 | H143: 16 | I143: 17 | J143: 11 | K143: 13 | L143: 5 | M143: 18 | N143: 6 | O143: 1 | P143: 8 | Q143: 9 | R143: 10 | S143: 12 | T143: 15 | X143: =VLOOKUP(B143,[1]generale!A$16:B$1160,2,0) -> 7 | Y143: =VLOOKUP(B143,[1]generale!A$16:C$1160,3,0) -> 3 | Z143: =VLOOKUP(B143,[1]generale!A$16:D$1160,4,0) -> 4 | AA143: =VLOOKUP(B143,[1]generale!A$16:E$1160,5,0) -> 1 | AB143: =VLOOKUP(B143,[1]generale!A$16:G$1160,6,0) -> 16 | AC143: =[1]generale!G448 -> T | AD143: 2 | AE143: 3 | AF143: 1 | AG143: 13 | AH143: 6
A144: =IF(COUNTA(C144:AB144)<17,"",MAX(A$12:A143)+1) -> 132 | B144: 2014-03-13 | C144: 16 | D144: 6 | E144: 3 | F144: 1 | G144: 7 | H144: 9 | I144: 10 | J144: 12 | K144: 14 | L144: 11 | M144: 4 | N144: 2 | O144: 13 | P144: 8 | Q144: 5 | R144: 15 | X144: =VLOOKUP(B144,[1]generale!A$16:B$1160,2,0) -> 14 | Y144: =VLOOKUP(B144,[1]generale!A$16:C$1160,3,0) -> 10 | Z144: =VLOOKUP(B144,[1]generale!A$16:D$1160,4,0) -> 1 | AA144: =VLOOKUP(B144,[1]generale!A$16:E$1160,5,0) -> 12 | AB144: =VLOOKUP(B144,[1]generale!A$16:G$1160,6,0) -> 3 | AC144: =[1]generale!G449 -> P | AD144: 9 | AE144: 7 | AF144: 4 | AG144: 8 | AH144: 3
A145: =IF(COUNTA(C145:AB145)<17,"",MAX(A$12:A144)+1) -> 133 | B145: 2014-03-14 | C145: 3 | D145: 6 | E145: 9 | F145: 8 | G145: 5 | H145: 1 | I145: 10 | J145: 4 | K145: 12 | L145: 2 | M145: 14 | N145: 7 | O145: 11 | P145: 13 | Q145: 15 | R145: 16 | S145: 17 | T145: 18 | X145: =VLOOKUP(B145,[1]generale!A$16:B$1160,2,0) -> 6 | Y145: =VLOOKUP(B145,[1]generale!A$16:C$1160,3,0) -> 5 | Z145: =VLOOKUP(B145,[1]generale!A$16:D$1160,4,0) -> 3 | AA145: =VLOOKUP(B145,[1]generale!A$16:E$1160,5,0) -> 9 | AB145: =VLOOKUP(B145,[1]generale!A$16:G$1160,6,0) -> 1 | AC145: =[1]generale!G450 -> T | AD145: 2 | AE145: 5 | AF145: 1 | AG145: 3 | AH145: 6
A146: =IF(COUNTA(C146:AB146)<17,"",MAX(A$12:A145)+1) -> 134 | B146: 2014-03-15 | C146: 7 | D146: 4 | E146: 3 | F146: 5 | G146: 15 | H146: 10 | I146: 14 | J146: 6 | K146: 1 | L146: 2 | M146: 11 | N146: 9 | O146: 16 | P146: 8 | Q146: 12 | R146: 13 | X146: =VLOOKUP(B146,[1]generale!A$16:B$1160,2,0) -> 4 | Y146: =VLOOKUP(B146,[1]generale!A$16:C$1160,3,0) -> 7 | Z146: =VLOOKUP(B146,[1]generale!A$16:D$1160,4,0) -> 14 | AA146: =VLOOKUP(B146,[1]generale!A$16:E$1160,5,0) -> 2 | AB146: =VLOOKUP(B146,[1]generale!A$16:G$1160,6,0) -> 5 | AC146: =[1]generale!G451 -> P | AD146: 2 | AE146: 1 | AF146: 7 | AG146: 10 | AH146: 4
A147: =IF(COUNTA(C147:AB147)<17,"",MAX(A$12:A146)+1) -> 135 | B147: 2014-03-16 | C147: 11 | D147: 7 | E147: 15 | F147: 6 | G147: 5 | H147: 8 | I147: 10 | J147: 2 | K147: 3 | L147: 17 | M147: 13 | N147: 12 | O147: 14 | P147: 16 | Q147: 1 | R147: 4 | S147: 9 | X147: =VLOOKUP(B147,[1]generale!A$16:B$1160,2,0) -> 11 | Y147: =VLOOKUP(B147,[1]generale!A$16:C$1160,3,0) -> 8 | Z147: =VLOOKUP(B147,[1]generale!A$16:D$1160,4,0) -> 13 | AA147: =VLOOKUP(B147,[1]generale!A$16:E$1160,5,0) -> 7 | AB147: =VLOOKUP(B147,[1]generale!A$16:G$1160,6,0) -> 12 | AC147: =[1]generale!G452 -> O | AD147: 1 | AE147: 6 | AF147: 11 | AG147: 2 | AH147: 12
A148: =IF(COUNTA(C148:AB148)<17,"",MAX(A$12:A147)+1) -> 136 | B148: 2014-03-17 | C148: 2 | D148: 5 | E148: 6 | F148: 15 | G148: 12 | H148: 16 | I148: 7 | J148: 8 | K148: 9 | L148: 3 | M148: 4 | N148: 14 | O148: 11 | P148: 10 | Q148: 13 | R148: 1 | X148: =VLOOKUP(B148,[1]generale!A$16:B$1160,2,0) -> 2 | Y148: =VLOOKUP(B148,[1]generale!A$16:C$1160,3,0) -> 8 | Z148: =VLOOKUP(B148,[1]generale!A$16:D$1160,4,0) -> 3 | AA148: =VLOOKUP(B148,[1]generale!A$16:E$1160,5,0) -> 15 | AB148: =VLOOKUP(B148,[1]generale!A$16:G$1160,6,0) -> 16 | AC148: =[1]generale!G453 -> P | AD148: 1 | AE148: 8 | AF148: 10 | AG148: 4 | AH148: 6
A149: =IF(COUNTA(C149:AB149)<17,"",MAX(A$12:A148)+1) -> 137 | B149: 2014-03-18 | C149: 1 | D149: 6 | E149: 8 | F149: 15 | G149: 3 | H149: 5 | I149: 7 | J149: 16 | K149: 2 | L149: 11 | M149: 4 | N149: 10 | O149: 14 | P149: 13 | Q149: 9 | R149: 12 | X149: =VLOOKUP(B149,[1]generale!A$16:B$1160,2,0) -> 3 | Y149: =VLOOKUP(B149,[1]generale!A$16:C$1160,3,0) -> 6 | Z149: =VLOOKUP(B149,[1]generale!A$16:D$1160,4,0) -> 4 | AA149: =VLOOKUP(B149,[1]generale!A$16:E$1160,5,0) -> 13 | AB149: =VLOOKUP(B149,[1]generale!A$16:G$1160,6,0) -> 7 | AC149: =[1]generale!G454 -> P | AD149: 5 | AE149: 2 | AF149: 11 | AG149: 14 | AH149: 7
A150: =IF(COUNTA(C150:AB150)<17,"",MAX(A$12:A149)+1) -> 138 | B150: 2014-03-19 | C150: 11 | D150: 7 | E150: 4 | F150: 6 | G150: 13 | H150: 12 | I150: 9 | J150: 15 | K150: 3 | L150: 8 | M150: 14 | N150: 5 | O150: 17 | P150: 1 | Q150: 2 | R150: 10 | S150: 16 | T150: 18 | X150: =VLOOKUP(B150,[1]generale!A$16:B$1160,2,0) -> 4 | Y150: =VLOOKUP(B150,[1]generale!A$16:C$1160,3,0) -> 13 | Z150: =VLOOKUP(B150,[1]generale!A$16:D$1160,4,0) -> 11 | AA150: =VLOOKUP(B150,[1]generale!A$16:E$1160,5,0) -> 3 | AB150: =VLOOKUP(B150,[1]generale!A$16:G$1160,6,0) -> 9 | AC150: =[1]generale!G455 -> T | AD150: 3 | AE150: 5 | AF150: 1 | AG150: 9 | AH150: 7
A151: =IF(COUNTA(C151:AB151)<17,"",MAX(A$12:A150)+1) -> 139 | B151: 2014-03-20 | C151: 5 | D151: 7 | E151: 6 | F151: 1 | G151: 10 | H151: 14 | I151: 12 | J151: 13 | K151: 2 | L151: 4 | M151: 11 | N151: 8 | O151: 9 | P151: 15 | Q151: 3 | X151: =VLOOKUP(B151,[1]generale!A$16:B$1160,2,0) -> 10 | Y151: =VLOOKUP(B151,[1]generale!A$16:C$1160,3,0) -> 4 | Z151: =VLOOKUP(B151,[1]generale!A$16:D$1160,4,0) -> 5 | AA151: =VLOOKUP(B151,[1]generale!A$16:E$1160,5,0) -> 14 | AB151: =VLOOKUP(B151,[1]generale!A$16:G$1160,6,0) -> 9 | AC151: =[1]generale!G456 -> P | AD151: 5 | AE151: 10 | AF151: 1 | AG151: 6 | AH151: 13
A152: =IF(COUNTA(C152:AB152)<17,"",MAX(A$12:A151)+1) -> 140 | B152: 2014-03-21 | C152: 16 | D152: 6 | E152: 9 | F152: 14 | G152: 15 | H152: 17 | I152: 18 | J152: 4 | K152: 8 | L152: 3 | M152: 13 | N152: 7 | O152: 10 | P152: 12 | Q152: 1 | R152: 5 | S152: 2 | T152: 11 | X152: =VLOOKUP(B152,[1]generale!A$16:B$1160,2,0) -> 8 | Y152: =VLOOKUP(B152,[1]generale!A$16:C$1160,3,0) -> 18 | Z152: =VLOOKUP(B152,[1]generale!A$16:D$1160,4,0) -> 12 | AA152: =VLOOKUP(B152,[1]generale!A$16:E$1160,5,0) -> 13 | AB152: =VLOOKUP(B152,[1]generale!A$16:G$1160,6,0) -> 16 | AC152: =[1]generale!G457 -> T | AD152: 9 | AE152: 7 | AF152: 14 | AG152: 11 | AH152: 1
A153: =IF(COUNTA(C153:AB153)<17,"",MAX(A$12:A152)+1) -> 141 | B153: 2014-03-22 | C153: 17 | D153: 4 | E153: 6 | F153: 5 | G153: 8 | H153: 14 | I153: 13 | J153: 9 | K153: 1 | L153: 12 | M153: 18 | N153: 15 | O153: 2 | P153: 3 | Q153: 7 | R153: 10 | S153: 11 | T153: 16 | X153: =VLOOKUP(B153,[1]generale!A$16:B$1160,2,0) -> 4 | Y153: =VLOOKUP(B153,[1]generale!A$16:C$1160,3,0) -> 6 | Z153: =VLOOKUP(B153,[1]generale!A$16:D$1160,4,0) -> 13 | AA153: =VLOOKUP(B153,[1]generale!A$16:E$1160,5,0) -> 2 | AB153: =VLOOKUP(B153,[1]generale!A$16:G$1160,6,0) -> 17 | AC153: =[1]generale!G458 -> T | AD153: 2 | AE153: 3 | AF153: 7 | AG153: 13 | AH153: 1
A154: =IF(COUNTA(C154:AB154)<17,"",MAX(A$12:A153)+1) -> 142 | B154: 2014-03-23 | C154: 6 | D154: 8 | E154: 9 | F154: 12 | G154: 2 | H154: 4 | I154: 7 | J154: 5 | K154: 10 | L154: 16 | M154: 15 | N154: 14 | O154: 1 | P154: 3 | Q154: 11 | R154: 13 | X154: =VLOOKUP(B154,[1]generale!A$16:B$1160,2,0) -> 2 | Y154: =VLOOKUP(B154,[1]generale!A$16:C$1160,3,0) -> 4 | Z154: =VLOOKUP(B154,[1]generale!A$16:D$1160,4,0) -> 8 | AA154: =VLOOKUP(B154,[1]generale!A$16:E$1160,5,0) -> 9 | AB154: =VLOOKUP(B154,[1]generale!A$16:G$1160,6,0) -> 7 | AC154: =[1]generale!G459 -> O | AD154: 5 | AE154: 6 | AF154: 2 | AG154: 3 | AH154: 7
A155: =IF(COUNTA(C155:AB155)<17,"",MAX(A$12:A154)+1) -> 143 | B155: 2014-03-24 | C155: 10 | D155: 1 | E155: 3 | F155: 6 | G155: 9 | H155: 2 | I155: 14 | J155: 15 | K155: 4 | L155: 7 | M155: 5 | N155: 17 | O155: 13 | P155: 8 | Q155: 12 | R155: 11 | S155: 16 | T155: 18 | X155: =VLOOKUP(B155,[1]generale!A$16:B$1160,2,0) -> 3 | Y155: =VLOOKUP(B155,[1]generale!A$16:C$1160,3,0) -> 10 | Z155: =VLOOKUP(B155,[1]generale!A$16:D$1160,4,0) -> 2 | AA155: =VLOOKUP(B155,[1]generale!A$16:E$1160,5,0) -> 1 | AB155: =VLOOKUP(B155,[1]generale!A$16:G$1160,6,0) -> 9 | AC155: =[1]generale!G460 -> P | AD155: 3 | AE155: 1 | AF155: 6 | AG155: 2 | AH155: 5
A156: =IF(COUNTA(C156:AB156)<17,"",MAX(A$12:A155)+1) -> 144 | B156: 2014-03-25 | C156: 7 | D156: 15 | E156: 4 | F156: 10 | G156: 2 | H156: 1 | I156: 16 | J156: 5 | K156: 11 | L156: 9 | M156: 8 | N156: 12 | O156: 14 | P156: 13 | Q156: 3 | R156: 6 | X156: =VLOOKUP(B156,[1]generale!A$16:B$1160,2,0) -> 4 | Y156: =VLOOKUP(B156,[1]generale!A$16:C$1160,3,0) -> 14 | Z156: =VLOOKUP(B156,[1]generale!A$16:D$1160,4,0) -> 7 | AA156: =VLOOKUP(B156,[1]generale!A$16:E$1160,5,0) -> 3 | AB156: =VLOOKUP(B156,[1]generale!A$16:G$1160,6,0) -> 12 | AC156: =[1]generale!G461 -> P | AD156: 3 | AE156: 13 | AF156: 1 | AG156: 15 | AH156: 12
A157: =IF(COUNTA(C157:AB157)<17,"",MAX(A$12:A156)+1) -> 145 | B157: 2014-03-26 | C157: 2 | D157: 11 | E157: 3 | F157: 6 | G157: 7 | H157: 1 | I157: 9 | J157: 4 | K157: 13 | L157: 12 | M157: 10 | N157: 14 | O157: 5 | P157: 8 | Q157: 15 | R157: 16 | X157: =VLOOKUP(B157,[1]generale!A$16:B$1160,2,0) -> 7 | Y157: =VLOOKUP(B157,[1]generale!A$16:C$1160,3,0) -> 12 | Z157: =VLOOKUP(B157,[1]generale!A$16:D$1160,4,0) -> 4 | AA157: =VLOOKUP(B157,[1]generale!A$16:E$1160,5,0) -> 1 | AB157: =VLOOKUP(B157,[1]generale!A$16:G$1160,6,0) -> 14 | AC157: =[1]generale!G462 -> T | AD157: 5 | AE157: 10 | AF157: 8 | AG157: 6 | AH157: 12
A158: =IF(COUNTA(C158:AB158)<17,"",MAX(A$12:A157)+1) -> 146 | B158: 2014-03-27 | C158: 3 | D158: 6 | E158: 5 | F158: 10 | G158: 11 | H158: 4 | I158: 7 | J158: 9 | K158: 15 | L158: 14 | M158: 1 | N158: 17 | O158: 16 | P158: 12 | Q158: 13 | R158: 2 | S158: 8 | X158: =VLOOKUP(B158,[1]generale!A$16:B$1160,2,0) -> 7 | Y158: =VLOOKUP(B158,[1]generale!A$16:C$1160,3,0) -> 6 | Z158: =VLOOKUP(B158,[1]generale!A$16:D$1160,4,0) -> 3 | AA158: =VLOOKUP(B158,[1]generale!A$16:E$1160,5,0) -> 14 | AB158: =VLOOKUP(B158,[1]generale!A$16:G$1160,6,0) -> 5 | AC158: =[1]generale!G463 -> P | AD158: 7 | AE158: 2 | AF158: 1 | AG158: 10 | AH158: 3
A159: =IF(COUNTA(C159:AB159)<17,"",MAX(A$12:A158)+1) -> 147 | B159: 2014-03-28 | C159: 7 | D159: 4 | E159: 13 | F159: 14 | G159: 5 | H159: 8 | I159: 17 | J159: 1 | K159: 11 | L159: 10 | M159: 2 | N159: 6 | O159: 16 | P159: 3 | Q159: 9 | R159: 12 | S159: 15 | T159: 18 | X159: =VLOOKUP(B159,[1]generale!A$16:B$1160,2,0) -> 17 | Y159: =VLOOKUP(B159,[1]generale!A$16:C$1160,3,0) -> 5 | Z159: =VLOOKUP(B159,[1]generale!A$16:D$1160,4,0) -> 4 | AA159: =VLOOKUP(B159,[1]generale!A$16:E$1160,5,0) -> 7 | AB159: =VLOOKUP(B159,[1]generale!A$16:G$1160,6,0) -> 14 | AC159: =[1]generale!G464 -> T | AD159: 7 | AE159: 5 | AF159: 2 | AG159: 1 | AH159: 4
A160: =IF(COUNTA(C160:AB160)<17,"",MAX(A$12:A159)+1) -> 148 | B160: 2014-03-29 | C160: 5 | D160: 4 | E160: 14 | F160: 18 | G160: 2 | H160: 7 | I160: 8 | J160: 6 | K160: 3 | L160: 9 | M160: 12 | N160: 11 | O160: 1 | P160: 20 | Q160: 19 | R160: 17 | S160: 16 | T160: 15 | U160: 13 | V160: 10 | X160: =VLOOKUP(B160,[1]generale!A$16:B$1160,2,0) -> 18 | Y160: =VLOOKUP(B160,[1]generale!A$16:C$1160,3,0) -> 5 | Z160: =VLOOKUP(B160,[1]generale!A$16:D$1160,4,0) -> 3 | AA160: =VLOOKUP(B160,[1]generale!A$16:E$1160,5,0) -> 12 | AB160: =VLOOKUP(B160,[1]generale!A$16:G$1160,6,0) -> 7 | AC160: =[1]generale!G465 -> O | AD160: 4 | AE160: 1 | AF160: 9 | AG160: 11 | AH160: 6
A161: =IF(COUNTA(C161:AB161)<17,"",MAX(A$12:A160)+1) -> 149 | B161: 2014-03-30 | C161: 4 | D161: 3 | E161: 5 | F161: 11 | G161: 10 | H161: 6 | I161: 2 | J161: 1 | K161: 12 | L161: 8 | M161: 13 | N161: 7 | O161: 14 | P161: 15 | Q161: 16 | R161: 9 | X161: =VLOOKUP(B161,[1]generale!A$16:B$1160,2,0) -> 8 | Y161: =VLOOKUP(B161,[1]generale!A$16:C$1160,3,0) -> 3 | Z161: =VLOOKUP(B161,[1]generale!A$16:D$1160,4,0) -> 2 | AA161: =VLOOKUP(B161,[1]generale!A$16:E$1160,5,0) -> 4 | AB161: =VLOOKUP(B161,[1]generale!A$16:G$1160,6,0) -> 15 | AC161: =[1]generale!G466 -> P | AD161: 10 | AE161: 2 | AF161: 7 | AG161: 1 | AH161: 14
A162: =IF(COUNTA(C162:AB162)<17,"",MAX(A$12:A161)+1) -> 150 | B162: 2014-03-31 | C162: 6 | D162: 5 | E162: 4 | F162: 7 | G162: 12 | H162: 8 | I162: 3 | J162: 13 | K162: 10 | L162: 14 | M162: 1 | N162: 2 | O162: 16 | P162: 15 | Q162: 9 | R162: 11 | X162: =VLOOKUP(B162,[1]generale!A$16:B$1160,2,0) -> 6 | Y162: =VLOOKUP(B162,[1]generale!A$16:C$1160,3,0) -> 5 | Z162: =VLOOKUP(B162,[1]generale!A$16:D$1160,4,0) -> 11 | AA162: =VLOOKUP(B162,[1]generale!A$16:E$1160,5,0) -> 14 | AB162: =VLOOKUP(B162,[1]generale!A$16:G$1160,6,0) -> 3 | AC162: =[1]generale!G467 -> P | AD162: 1 | AE162: 2 | AF162: 16 | AG162: 10 | AH162: 7
A163: =IF(COUNTA(C163:AB163)<17,"",MAX(A$12:A162)+1) -> 151 | B163: 2014-04-01 | C163: 13 | D163: 8 | E163: 15 | F163: 4 | G163: 7 | H163: 14 | I163: 5 | J163: 3 | K163: 12 | L163: 17 | M163: 9 | N163: 16 | O163: 6 | P163: 10 | Q163: 1 | R163: 2 | S163: 11 | T163: 18 | X163: =VLOOKUP(B163,[1]generale!A$16:B$1160,2,0) -> 3 | Y163: =VLOOKUP(B163,[1]generale!A$16:C$1160,3,0) -> 8 | Z163: =VLOOKUP(B163,[1]generale!A$16:D$1160,4,0) -> 13 | AA163: =VLOOKUP(B163,[1]generale!A$16:E$1160,5,0) -> 10 | AB163: =VLOOKUP(B163,[1]generale!A$16:G$1160,6,0) -> 4 | AC163: =[1]generale!G468 -> O | AD163: 8 | AE163: 2 | AF163: 1 | AG163: 14 | AH163: 4
A164: =IF(COUNTA(C164:AB164)<17,"",MAX(A$12:A163)+1) -> 152 | B164: 2014-04-02 | C164: 12 | D164: 10 | E164: 1 | F164: 14 | G164: 7 | H164: 2 | I164: 3 | J164: 9 | K164: 17 | L164: 11 | M164: 6 | N164: 18 | O164: 4 | P164: 5 | Q164: 8 | R164: 13 | S164: 15 | T164: 16 | X164: =VLOOKUP(B164,[1]generale!A$16:B$1160,2,0) -> 12 | Y164: =VLOOKUP(B164,[1]generale!A$16:C$1160,3,0) -> 7 | Z164: =VLOOKUP(B164,[1]generale!A$16:D$1160,4,0) -> 14 | AA164: =VLOOKUP(B164,[1]generale!A$16:E$1160,5,0) -> 4 | AB164: =VLOOKUP(B164,[1]generale!A$16:G$1160,6,0) -> 9 | AC164: =[1]generale!G469 -> T | AD164: 1 | AE164: 5 | AF164: 4 | AG164: 13 | AH164: 8
A165: =IF(COUNTA(C165:AB165)<17,"",MAX(A$12:A164)+1) -> 153 | B165: 2014-04-03 | C165: 4 | D165: 13 | E165: 2 | F165: 7 | G165: 15 | H165: 10 | I165: 6 | J165: 9 | K165: 3 | L165: 14 | M165: 1 | N165: 11 | O165: 16 | P165: 5 | Q165: 12 | R165: 8 | X165: =VLOOKUP(B165,[1]generale!A$16:B$1160,2,0) -> 3 | Y165: =VLOOKUP(B165,[1]generale!A$16:C$1160,3,0) -> 10 | Z165: =VLOOKUP(B165,[1]generale!A$16:D$1160,4,0) -> 4 | AA165: =VLOOKUP(B165,[1]generale!A$16:E$1160,5,0) -> 11 | AB165: =VLOOKUP(B165,[1]generale!A$16:G$1160,6,0) -> 16 | AC165: =[1]generale!G470 -> P | AD165: 9 | AE165: 6 | AF165: 1 | AG165: 12 | AH165: 13
A166: =IF(COUNTA(C166:AB166)<17,"",MAX(A$12:A165)+1) -> 154 | B166: 2014-04-04 | C166: 12 | D166: 14 | E166: 6 | F166: 7 | G166: 15 | H166: 2 | I166: 8 | J166: 3 | K166: 11 | L166: 13 | M166: 1 | N166: 9 | O166: 10 | P166: 5 | Q166: 4 | X166: =VLOOKUP(B166,[1]generale!A$16:B$1160,2,0) -> 2 | Y166: =VLOOKUP(B166,[1]generale!A$16:C$1160,3,0) -> 13 | Z166: =VLOOKUP(B166,[1]generale!A$16:D$1160,4,0) -> 6 | AA166: =VLOOKUP(B166,[1]generale!A$16:E$1160,5,0) -> 7 | AB166: =VLOOKUP(B166,[1]generale!A$16:G$1160,6,0) -> 9 | AC166: =[1]generale!G471 -> T | AD166: 6 | AE166: 10 | AF166: 3 | AG166: 4 | AH166: 12
A167: =IF(COUNTA(C167:AB167)<17,"",MAX(A$12:A166)+1) -> 155 | B167: 2014-04-05 | C167: 13 | D167: 5 | E167: 2 | F167: 7 | G167: 10 | H167: 3 | I167: 9 | J167: 8 | K167: 11 | L167: 12 | M167: 15 | N167: 4 | O167: 14 | P167: 1 | Q167: 6 | X167: =VLOOKUP(B167,[1]generale!A$16:B$1160,2,0) -> 2 | Y167: =VLOOKUP(B167,[1]generale!A$16:C$1160,3,0) -> 3 | Z167: =VLOOKUP(B167,[1]generale!A$16:D$1160,4,0) -> 7 | AA167: =VLOOKUP(B167,[1]generale!A$16:E$1160,5,0) -> 11 | AB167: =VLOOKUP(B167,[1]generale!A$16:G$1160,6,0) -> 8 | AC167: =[1]generale!G472 -> T | AD167: 3 | AE167: 6 | AF167: 4 | AG167: 9 | AH167: 8
A168: =IF(COUNTA(C168:AB168)<17,"",MAX(A$12:A167)+1) -> 156 | B168: 2014-04-06 | C168: 4 | D168: 10 | E168: 3 | F168: 2 | G168: 14 | H168: 5 | I168: 6 | J168: 7 | K168: 1 | L168: 9 | M168: 13 | N168: 11 | O168: 12 | P168: 15 | Q168: 16 | R168: 8 | X168: =VLOOKUP(B168,[1]generale!A$16:B$1160,2,0) -> 10 | Y168: =VLOOKUP(B168,[1]generale!A$16:C$1160,3,0) -> 2 | Z168: =VLOOKUP(B168,[1]generale!A$16:D$1160,4,0) -> 5 | AA168: =VLOOKUP(B168,[1]generale!A$16:E$1160,5,0) -> 16 | AB168: =VLOOKUP(B168,[1]generale!A$16:G$1160,6,0) -> 14 | AC168: =[1]generale!G473 -> P | AD168: 2 | AE168: 4 | AF168: 6 | AG168: 15 | AH168: 5
A169: =IF(COUNTA(C169:AB169)<17,"",MAX(A$12:A168)+1) -> 157 | B169: 2014-04-07 | C169: 2 | D169: 4 | E169: 7 | F169: 9 | G169: 10 | H169: 3 | I169: 1 | J169: 15 | K169: 6 | L169: 12 | M169: 11 | N169: 8 | O169: 5 | P169: 14 | Q169: 16 | R169: 13 | X169: =VLOOKUP(B169,[1]generale!A$16:B$1160,2,0) -> 5 | Y169: =VLOOKUP(B169,[1]generale!A$16:C$1160,3,0) -> 2 | Z169: =VLOOKUP(B169,[1]generale!A$16:D$1160,4,0) -> 4 | AA169: =VLOOKUP(B169,[1]generale!A$16:E$1160,5,0) -> 11 | AB169: =VLOOKUP(B169,[1]generale!A$16:G$1160,6,0) -> 8 | AC169: =[1]generale!G474 -> O | AD169: 13 | AE169: 1 | AF169: 2 | AG169: 11 | AH169: 12
A170: =IF(COUNTA(C170:AB170)<17,"",MAX(A$12:A169)+1) -> 158 | B170: 2014-04-08 | C170: 8 | D170: 9 | E170: 17 | F170: 4 | G170: 5 | H170: 1 | I170: 14 | J170: 11 | K170: 2 | L170: 6 | M170: 3 | N170: 7 | O170: 15 | P170: 12 | Q170: 10 | R170: 16 | S170: 18 | T170: 13 | X170: =VLOOKUP(B170,[1]generale!A$16:B$1160,2,0) -> 7 | Y170: =VLOOKUP(B170,[1]generale!A$16:C$1160,3,0) -> 13 | Z170: =VLOOKUP(B170,[1]generale!A$16:D$1160,4,0) -> 15 | AA170: =VLOOKUP(B170,[1]generale!A$16:E$1160,5,0) -> 12 | AB170: =VLOOKUP(B170,[1]generale!A$16:G$1160,6,0) -> 17 | AC170: =[1]generale!G475 -> P | AD170: 12 | AE170: 18 | AF170: 13 | AG170: 14 | AH170: 3
A171: =IF(COUNTA(C171:AB171)<17,"",MAX(A$12:A170)+1) -> 159 | B171: 2014-04-09 | C171: 9 | D171: 6 | E171: 5 | F171: 2 | G171: 8 | H171: 1 | I171: 10 | J171: 3 | K171: 4 | L171: 16 | M171: 14 | N171: 12 | O171: 13 | P171: 15 | Q171: 11 | R171: 7 | S171: 17 | X171: =VLOOKUP(B171,[1]generale!A$16:B$1160,2,0) -> 2 | Y171: =VLOOKUP(B171,[1]generale!A$16:C$1160,3,0) -> 10 | Z171: =VLOOKUP(B171,[1]generale!A$16:D$1160,4,0) -> 5 | AA171: =VLOOKUP(B171,[1]generale!A$16:E$1160,5,0) -> 14 | AB171: =VLOOKUP(B171,[1]generale!A$16:G$1160,6,0) -> 12 | AC171: =[1]generale!G476 -> T | AD171: 4 | AE171: 7 | AF171: 3 | AG171: 11 | AH171: 12
A172: =IF(COUNTA(C172:AB172)<17,"",MAX(A$12:A171)+1) -> 160 | B172: 2014-04-10 | C172: 11 | D172: 6 | E172: 1 | F172: 7 | G172: 10 | H172: 8 | I172: 5 | J172: 4 | K172: 12 | L172: 3 | M172: 13 | N172: 9 | O172: 15 | P172: 16 | Q172: 2 | R172: 14 | X172: =VLOOKUP(B172,[1]generale!A$16:B$1160,2,0) -> 1 | Y172: =VLOOKUP(B172,[1]generale!A$16:C$1160,3,0) -> 8 | Z172: =VLOOKUP(B172,[1]generale!A$16:D$1160,4,0) -> 11 | AA172: =VLOOKUP(B172,[1]generale!A$16:E$1160,5,0) -> 9 | AB172: =VLOOKUP(B172,[1]generale!A$16:G$1160,6,0) -> 16 | AC172: =[1]generale!G477 -> P | AD172: 3 | AE172: =IF(COUNTIF($C172:$V172,Y172)=0,"X",INDEX($C$9:$V$9,MATCH(Y172,$C172:$V172,0))) -> 6 | AF172: =IF(COUNTIF($C172:$V172,Z172)=0,"X",INDEX($C$9:$V$9,MATCH(Z172,$C172:$V172,0))) -> 1 | AG172: =IF(COUNTIF($C172:$V172,AA172)=0,"X",INDEX($C$9:$V$9,MATCH(AA172,$C172:$V172,0))) -> 12 | AH172: =IF(COUNTIF($C172:$V172,AB172)=0,"X",INDEX($C$9:$V$9,MATCH(AB172,$C172:$V172,0))) -> 14
A173: =IF(COUNTA(C173:AB173)<17,"",MAX(A$12:A172)+1) -> 161 | B173: 2014-04-11 | C173: 12 | D173: 16 | E173: 3 | F173: 14 | G173: 7 | H173: 10 | I173: 2 | J173: 11 | K173: 1 | L173: 4 | M173: 8 | N173: 13 | O173: 5 | P173: 6 | Q173: 9 | R173: 15 | X173: =VLOOKUP(B173,[1]generale!A$16:B$1160,2,0) -> 12 | Y173: =VLOOKUP(B173,[1]generale!A$16:C$1160,3,0) -> 3 | Z173: =VLOOKUP(B173,[1]generale!A$16:D$1160,4,0) -> 14 | AA173: =VLOOKUP(B173,[1]generale!A$16:E$1160,5,0) -> 2 | AB173: =VLOOKUP(B173,[1]generale!A$16:G$1160,6,0) -> 16 | AC173: =[1]generale!G478 -> T | AD173: 1 | AE173: 3 | AF173: 4 | AG173: 7 | AH173: 2
A174: =IF(COUNTA(C174:AB174)<17,"",MAX(A$12:A173)+1) -> 162 | B174: 2014-04-12 | C174: 2 | D174: 1 | E174: 8 | F174: 13 | G174: 3 | H174: 4 | I174: 11 | J174: 16 | K174: 5 | L174: 9 | M174: 6 | N174: 7 | O174: 18 | P174: 14 | Q174: 10 | R174: 12 | S174: 15 | T174: 17 | X174: =VLOOKUP(B174,[1]generale!A$16:B$1160,2,0) -> 13 | Y174: =VLOOKUP(B174,[1]generale!A$16:C$1160,3,0) -> 8 | Z174: =VLOOKUP(B174,[1]generale!A$16:D$1160,4,0) -> 5 | AA174: =VLOOKUP(B174,[1]generale!A$16:E$1160,5,0) -> 16 | AB174: =VLOOKUP(B174,[1]generale!A$16:G$1160,6,0) -> 1 | AC174: =[1]generale!G479 -> T | AD174: 4 | AE174: 3 | AF174: 9 | AG174: 8 | AH174: 2
A175: =IF(COUNTA(C175:AB175)<17,"",MAX(A$12:A174)+1) -> 163 | B175: 2014-04-13 | C175: 5 | D175: 1 | E175: 4 | F175: 13 | G175: 14 | H175: 8 | I175: 15 | J175: 3 | K175: 9 | L175: 10 | M175: 7 | N175: 16 | O175: 12 | P175: 2 | Q175: 6 | R175: 11 | X175: =VLOOKUP(B175,[1]generale!A$16:B$1160,2,0) -> 5 | Y175: =VLOOKUP(B175,[1]generale!A$16:C$1160,3,0) -> 10 | Z175: =VLOOKUP(B175,[1]generale!A$16:D$1160,4,0) -> 14 | AA175: =VLOOKUP(B175,[1]generale!A$16:E$1160,5,0) -> 7 | AB175: =VLOOKUP(B175,[1]generale!A$16:G$1160,6,0) -> 9 | AC175: =[1]generale!G480 -> P | AD175: 1 | AE175: 10 | AF175: 5 | AG175: 11 | AH175: 9 | AK175: 5 | AM175: 1
A176: =IF(COUNTA(C176:AB176)<17,"",MAX(A$12:A175)+1) -> 164 | B176: 2014-04-14 | C176: 2 | D176: 10 | E176: 4 | F176: 3 | G176: 1 | H176: 6 | I176: 9 | J176: 8 | K176: 7 | L176: 11 | M176: 14 | N176: 5 | O176: 15 | P176: 13 | Q176: 16 | R176: 12 | X176: =VLOOKUP(B176,[1]generale!A$16:B$1160,2,0) -> 14 | Y176: =VLOOKUP(B176,[1]generale!A$16:C$1160,3,0) -> 15 | Z176: =VLOOKUP(B176,[1]generale!A$16:D$1160,4,0) -> 7 | AA176: =VLOOKUP(B176,[1]generale!A$16:E$1160,5,0) -> 2 | AB176: =VLOOKUP(B176,[1]generale!A$16:G$1160,6,0) -> 9 | AC176: =[1]generale!G481 -> P | AD176: 11 | AE176: 13 | AF176: 9 | AG176: 1 | AH176: 7 | AK176: 4 | AM176: 6
A177: =IF(COUNTA(C177:AB177)<17,"",MAX(A$12:A176)+1) -> 165 | B177: 2014-04-15 | C177: 1 | D177: 10 | E177: 8 | F177: 7 | G177: 6 | H177: 4 | I177: 15 | J177: 3 | K177: 12 | L177: 14 | M177: 16 | N177: 11 | O177: 2 | P177: 13 | Q177: 9 | R177: 5 | X177: =VLOOKUP(B177,[1]generale!A$16:B$1160,2,0) -> 8 | Y177: =VLOOKUP(B177,[1]generale!A$16:C$1160,3,0) -> 7 | Z177: =VLOOKUP(B177,[1]generale!A$16:D$1160,4,0) -> 15 | AA177: =VLOOKUP(B177,[1]generale!A$16:E$1160,5,0) -> 16 | AB177: =VLOOKUP(B177,[1]generale!A$16:G$1160,6,0) -> 14 | AC177: =[1]generale!G482 -> P | AD177: 3 | AE177: 4 | AF177: 7 | AG177: 11 | AH177: 10 | AK177: 16 | AM177: 9
A178: =IF(COUNTA(C178:AB178)<17,"",MAX(A$12:A177)+1) -> 166 | B178: 2014-04-16 | C178: 16 | D178: 8 | E178: 4 | F178: 15 | G178: 1 | H178: 6 | I178: 12 | J178: 13 | K178: 5 | L178: 10 | M178: 3 | N178: 9 | O178: 11 | P178: 17 | Q178: 2 | R178: 7 | S178: 14 | T178: 18 | X178: =VLOOKUP(B178,[1]generale!A$16:B$1160,2,0) -> 1 | Y178: =VLOOKUP(B178,[1]generale!A$16:C$1160,3,0) -> 4 | Z178: =VLOOKUP(B178,[1]generale!A$16:D$1160,4,0) -> 6 | AA178: =VLOOKUP(B178,[1]generale!A$16:E$1160,5,0) -> 8 | AB178: =VLOOKUP(B178,[1]generale!A$16:G$1160,6,0) -> 5 | AC178: =[1]generale!G483 -> T | AD178: 5 | AE178: 3 | AF178: 6 | AG178: 2 | AH178: 9 | AK178: 8 | AM178: 5
A179: =IF(COUNTA(C179:AB179)<17,"",MAX(A$12:A178)+1) -> 167 | B179: 2014-04-17 | C179: 9 | D179: 7 | E179: 11 | F179: 18 | G179: 10 | H179: 6 | I179: 2 | J179: 3 | K179: 15 | L179: 1 | M179: 4 | N179: 13 | O179: 8 | P179: 17 | Q179: 16 | R179: 5 | S179: 12 | T179: 14 | X179: =VLOOKUP(B179,[1]generale!A$16:B$1160,2,0) -> 13 | Y179: =VLOOKUP(B179,[1]generale!A$16:C$1160,3,0) -> 9 | Z179: =VLOOKUP(B179,[1]generale!A$16:D$1160,4,0) -> 7 | AA179: =VLOOKUP(B179,[1]generale!A$16:E$1160,5,0) -> 10 | AB179: =VLOOKUP(B179,[1]generale!A$16:G$1160,6,0) -> 17 | AC179: =[1]generale!G484 -> P | AD179: 12 | AE179: =IF(COUNTIF($C179:$V179,Y179)=0,"X",INDEX($C$9:$V$9,MATCH(Y179,$C179:$V179,0))) -> 1 | AF179: =IF(COUNTIF($C179:$V179,Z179)=0,"X",INDEX($C$9:$V$9,MATCH(Z179,$C179:$V179,0))) -> 2 | AG179: =IF(COUNTIF($C179:$V179,AA179)=0,"X",INDEX($C$9:$V$9,MATCH(AA179,$C179:$V179,0))) -> 5 | AH179: =IF(COUNTIF($C179:$V179,AB179)=0,"X",INDEX($C$9:$V$9,MATCH(AB179,$C179:$V179,0))) -> 14 | AK179: 1 | AM179: 11
A180: =IF(COUNTA(C180:AB180)<17,"",MAX(A$12:A179)+1) -> 168 | B180: 2014-04-18 | C180: 1 | D180: 9 | E180: 5 | F180: 6 | G180: 3 | H180: 10 | I180: 15 | J180: 14 | K180: 4 | L180: 16 | M180: 11 | N180: 2 | O180: 8 | P180: 7 | Q180: 12 | R180: 13 | X180: =VLOOKUP(B180,[1]generale!A$16:B$1160,2,0) -> 3 | Y180: =VLOOKUP(B180,[1]generale!A$16:C$1160,3,0) -> 10 | Z180: =VLOOKUP(B180,[1]generale!A$16:D$1160,4,0) -> 6 | AA180: =VLOOKUP(B180,[1]generale!A$16:E$1160,5,0) -> 5 | AB180: =VLOOKUP(B180,[1]generale!A$16:G$1160,6,0) -> 1 | AC180: =[1]generale!G485 -> T | AD180: =IF(COUNTIF($C180:$V180,X180)=0,"X",INDEX($C$9:$V$9,MATCH(X180,$C180:$V180,0))) -> 5 | AE180: 6 | AF180: 4 | AG180: 3 | AH180: 1 | AK180: 12 | AM180: 13
A181: =IF(COUNTA(C181:AB181)<17,"",MAX(A$12:A180)+1) -> 169 | B181: 2014-04-19 | C181: 3 | D181: 1 | E181: 4 | F181: 7 | G181: 14 | H181: 5 | I181: 10 | J181: 11 | K181: 9 | L181: 2 | M181: 13 | N181: 8 | O181: 15 | P181: 6 | Q181: 12 | X181: =VLOOKUP(B181,[1]generale!A$16:B$1160,2,0) -> 3 | Y181: =VLOOKUP(B181,[1]generale!A$16:C$1160,3,0) -> 1 | Z181: =VLOOKUP(B181,[1]generale!A$16:D$1160,4,0) -> 5 | AA181: =VLOOKUP(B181,[1]generale!A$16:E$1160,5,0) -> 10 | AB181: =VLOOKUP(B181,[1]generale!A$16:G$1160,6,0) -> 8 | AC181: =[1]generale!G486 -> T | AD181: 1 | AE181: 2 | AF181: 6 | AG181: 7 | AH181: 12 | AK181: 2 | AM181: 8
A182: =IF(COUNTA(C182:AB182)<17,"",MAX(A$12:A181)+1) -> 170 | B182: 2014-04-20 | C182: 15 | D182: 8 | E182: 5 | F182: 13 | G182: 4 | H182: 1 | I182: 16 | J182: 2 | K182: 6 | L182: 7 | M182: 10 | N182: 12 | O182: 9 | P182: 18 | Q182: 14 | R182: 17 | S182: 3 | T182: 20 | U182: 19 | V182: 11 | X182: =VLOOKUP(B182,[1]generale!A$16:B$1160,2,0) -> 8 | Y182: =VLOOKUP(B182,[1]generale!A$16:C$1160,3,0) -> 1 | Z182: =VLOOKUP(B182,[1]generale!A$16:D$1160,4,0) -> 15 | AA182: =VLOOKUP(B182,[1]generale!A$16:E$1160,5,0) -> 19 | AB182: =VLOOKUP(B182,[1]generale!A$16:G$1160,6,0) -> 5 | AC182: =[1]generale!G487 -> O | AD182: 2 | AE182: 6 | AF182: 1 | AG182: 19 | AH182: 3 | AK182: 10 | AM182: 12
A183: =IF(COUNTA(C183:AB183)<17,"",MAX(A$12:A182)+1) -> 171 | B183: 2014-04-21 | C183: 5 | D183: 4 | E183: 16 | F183: 8 | G183: 1 | H183: 12 | I183: 2 | J183: 10 | K183: 11 | L183: 9 | M183: 6 | N183: 3 | O183: 15 | P183: 13 | Q183: 7 | R183: 14 | X183: =VLOOKUP(B183,[1]generale!A$16:B$1160,2,0) -> 2 | Y183: =VLOOKUP(B183,[1]generale!A$16:C$1160,3,0) -> 10 | Z183: =VLOOKUP(B183,[1]generale!A$16:D$1160,4,0) -> 9 | AA183: =VLOOKUP(B183,[1]generale!A$16:E$1160,5,0) -> 11 | AB183: =VLOOKUP(B183,[1]generale!A$16:G$1160,6,0) -> 1 | AC183: =[1]generale!G488 -> P | AD183: 7 | AE183: 8 | AF183: 10 | AG183: 9 | AH183: 5 | AK183: 11 | AM183: 7
A184: =IF(COUNTA(C184:AB184)<17,"",MAX(A$12:A183)+1) -> 172 | B184: 2014-04-22 | C184: 2 | D184: 3 | E184: 10 | F184: 9 | G184: 8 | H184: 13 | I184: 4 | J184: 11 | K184: 14 | L184: 6 | M184: 1 | N184: 5 | O184: 15 | P184: 12 | Q184: 16 | R184: 7 | X184: =VLOOKUP(B184,[1]generale!A$16:B$1160,2,0) -> 6 | Y184: =VLOOKUP(B184,[1]generale!A$16:C$1160,3,0) -> 2 | Z184: =VLOOKUP(B184,[1]generale!A$16:D$1160,4,0) -> 15 | AA184: =VLOOKUP(B184,[1]generale!A$16:E$1160,5,0) -> 3 | AB184: =VLOOKUP(B184,[1]generale!A$16:G$1160,6,0) -> 13 | AC184: =[1]generale!G489 -> P | AD184: 10 | AE184: 1 | AF184: 13 | AG184: 2 | AH184: 6 | AK184: 9 | AM184: 4
A185: =IF(COUNTA(C185:AB185)<17,"",MAX(A$12:A184)+1) -> 173 | B185: 2014-04-23 | C185: 10 | D185: 11 | E185: 9 | F185: 17 | G185: 3 | H185: 7 | I185: 16 | J185: 5 | K185: 1 | L185: 14 | M185: 18 | N185: 2 | O185: 4 | P185: 6 | Q185: 8 | R185: 12 | S185: 13 | T185: 15 | X185: =VLOOKUP(B185,[1]generale!A$16:B$1160,2,0) -> 3 | Y185: =VLOOKUP(B185,[1]generale!A$16:C$1160,3,0) -> 11 | Z185: =VLOOKUP(B185,[1]generale!A$16:D$1160,4,0) -> 10 | AA185: =VLOOKUP(B185,[1]generale!A$16:E$1160,5,0) -> 7 | AB185: =VLOOKUP(B185,[1]generale!A$16:G$1160,6,0) -> 1 | AC185: =[1]generale!G490 -> T | AD185: 5 | AE185: 2 | AF185: 1 | AG185: 6 | AH185: 9 | AK185: 6 | AM185: 2
A186: =IF(COUNTA(C186:AB186)<17,"",MAX(A$12:A185)+1) -> 174 | B186: 2014-04-24 | C186: 13 | D186: 5 | E186: 15 | F186: 2 | G186: 8 | H186: 6 | I186: 14 | J186: 11 | K186: 4 | L186: 9 | M186: 3 | N186: 10 | O186: 12 | P186: 17 | Q186: 16 | R186: 7 | S186: 1 | X186: =VLOOKUP(B186,[1]generale!A$16:B$1160,2,0) -> 4 | Y186: =VLOOKUP(B186,[1]generale!A$16:C$1160,3,0) -> 11 | Z186: =VLOOKUP(B186,[1]generale!A$16:D$1160,4,0) -> 8 | AA186: =VLOOKUP(B186,[1]generale!A$16:E$1160,5,0) -> 5 | AB186: =VLOOKUP(B186,[1]generale!A$16:G$1160,6,0) -> 16 | AC186: =[1]generale!G491 -> P | AD186: 9 | AE186: 8 | AF186: 5 | AG186: 2 | AH186: 15 | AK186: 3 | AM186: 14
A187: =IF(COUNTA(C187:AB187)<17,"",MAX(A$12:A186)+1) -> 175 | B187: 2014-04-25 | C187: 1 | D187: 15 | E187: 16 | F187: 11 | G187: 3 | H187: 13 | I187: 7 | J187: 4 | K187: 2 | L187: 5 | M187: 8 | N187: 12 | O187: 14 | P187: 6 | Q187: 9 | R187: 10 | X187: =VLOOKUP(B187,[1]generale!A$16:B$1160,2,0) -> 1 | Y187: =VLOOKUP(B187,[1]generale!A$16:C$1160,3,0) -> 11 | Z187: =VLOOKUP(B187,[1]generale!A$16:D$1160,4,0) -> 15 | AA187: =VLOOKUP(B187,[1]generale!A$16:E$1160,5,0) -> 13 | AB187: =VLOOKUP(B187,[1]generale!A$16:G$1160,6,0) -> 4 | AC187: =[1]generale!G492 -> T | AD187: 1 | AE187: 4 | AF187: 2 | AG187: 6 | AH187: 8 | AK187: 15 | AM187: 3
A188: =IF(COUNTA(C188:AB188)<17,"",MAX(A$12:A187)+1) -> 176 | B188: 2014-04-26 | C188: 8 | D188: 2 | E188: 1 | F188: 5 | G188: 13 | H188: 7 | I188: 6 | J188: 3 | K188: 11 | L188: 4 | M188: 16 | N188: 15 | O188: 10 | P188: 14 | Q188: 12 | R188: 9 | X188: =VLOOKUP(B188,[1]generale!A$16:B$1160,2,0) -> 2 | Y188: =VLOOKUP(B188,[1]generale!A$16:C$1160,3,0) -> 13 | Z188: =VLOOKUP(B188,[1]generale!A$16:D$1160,4,0) -> 3 | AA188: =VLOOKUP(B188,[1]generale!A$16:E$1160,5,0) -> 4 | AB188: =VLOOKUP(B188,[1]generale!A$16:G$1160,6,0) -> 1 | AC188: =[1]generale!G493 -> O | AD188: 2 | AE188: 5 | AF188: 8 | AG188: 10 | AH188: 3 | AK188: 13 | AM188: 16
A189: =IF(COUNTA(C189:AB189)<17,"",MAX(A$12:A188)+1) -> 177 | B189: 2014-04-27 | C189: 14 | D189: 10 | E189: 12 | F189: 4 | G189: 6 | H189: 5 | I189: 9 | J189: 2 | K189: 7 | L189: 3 | M189: 16 | N189: 8 | O189: 15 | P189: 13 | Q189: 11 | R189: 1 | X189: =VLOOKUP(B189,[1]generale!A$16:B$1160,2,0) -> 7 | Y189: =VLOOKUP(B189,[1]generale!A$16:C$1160,3,0) -> 12 | Z189: =VLOOKUP(B189,[1]generale!A$16:D$1160,4,0) -> 2 | AA189: =VLOOKUP(B189,[1]generale!A$16:E$1160,5,0) -> 5 | AB189: =VLOOKUP(B189,[1]generale!A$16:G$1160,6,0) -> 11 | AC189: =[1]generale!G494 -> P | AD189: 9 | AE189: 3 | AF189: 8 | AG189: 6 | AH189: 15 | AK189: 7 | AM189: 15
A190: =IF(COUNTA(C190:AB190)<17,"",MAX(A$12:A189)+1) -> 178 | B190: 2014-04-28 | C190: 1 | D190: 6 | E190: 9 | F190: 5 | G190: 11 | H190: 13 | I190: 8 | J190: 12 | K190: 7 | L190: 4 | M190: 2 | N190: 14 | O190: 3 | P190: 16 | Q190: 15 | R190: 10 | X190: =VLOOKUP(B190,[1]generale!A$16:B$1160,2,0) -> 9 | Y190: =VLOOKUP(B190,[1]generale!A$16:C$1160,3,0) -> 3 | Z190: =VLOOKUP(B190,[1]generale!A$16:D$1160,4,0) -> 7 | AA190: =VLOOKUP(B190,[1]generale!A$16:E$1160,5,0) -> 6 | AB190: =VLOOKUP(B190,[1]generale!A$16:G$1160,6,0) -> 1 | AC190: =[1]generale!G495 -> P | AD190: 3 | AE190: 13 | AF190: 9 | AG190: 2 | AH190: 1 | AK190: 14 | AM190: 10
A191: =IF(COUNTA(C191:AB191)<17,"",MAX(A$12:A190)+1) -> 179 | B191: 2014-04-29 | C191: 5 | D191: 3 | E191: 8 | F191: 9 | G191: 10 | H191: 1 | I191: 13 | J191: 7 | K191: 11 | L191: 16 | M191: 6 | N191: 12 | O191: 2 | P191: 4 | Q191: 14 | R191: 15 | X191: =VLOOKUP(B191,[1]generale!A$16:B$1160,2,0) -> 16 | Y191: =VLOOKUP(B191,[1]generale!A$16:C$1160,3,0) -> 11 | Z191: =VLOOKUP(B191,[1]generale!A$16:D$1160,4,0) -> 13 | AA191: =VLOOKUP(B191,[1]generale!A$16:E$1160,5,0) -> 15 | AB191: =VLOOKUP(B191,[1]generale!A$16:G$1160,6,0) -> 10 | AC191: =[1]generale!G496 -> T | AD191: 10 | AE191: 9 | AF191: 7 | AG191: 16 | AH191: 5
A192: =IF(COUNTA(C192:AB192)<17,"",MAX(A$12:A191)+1) -> 180 | B192: 2014-04-30 | C192: 13 | D192: 2 | E192: 16 | F192: 8 | G192: 1 | H192: 15 | I192: 10 | J192: 9 | K192: 4 | L192: 3 | M192: 18 | N192: 12 | O192: 5 | P192: 11 | Q192: 14 | R192: 7 | S192: 17 | T192: 6 | X192: =VLOOKUP(B192,[1]generale!A$16:B$1160,2,0) -> 13 | Y192: =VLOOKUP(B192,[1]generale!A$16:C$1160,3,0) -> 16 | Z192: =VLOOKUP(B192,[1]generale!A$16:D$1160,4,0) -> 1 | AA192: =VLOOKUP(B192,[1]generale!A$16:E$1160,5,0) -> 15 | AB192: =VLOOKUP(B192,[1]generale!A$16:G$1160,6,0) -> 2 | AC192: =[1]generale!G497 -> P | AD192: 1 | AE192: 3 | AF192: 5 | AG192: 6 | AH192: 2 | AK192: 3 | AL192: 15 | AM192: 10 | AN192: 1 | AO192: 4 | AP192: 9 | AQ192: 12 | AR192: 14 | AS192: 13 | AT192: 8 | AU192: 11 | AV192: 2 | AW192: 5 | AX192: 16 | AY192: 6 | AZ192: 7 | BA192: 11
A193: =IF(COUNTA(C193:AB193)<17,"",MAX(A$12:A192)+1) -> 181 | B193: 2014-05-01 | C193: 1 | D193: 5 | E193: 4 | F193: 13 | G193: 3 | H193: 15 | I193: 9 | J193: 2 | K193: 16 | L193: 14 | M193: 10 | N193: 6 | O193: 7 | P193: 11 | Q193: 8 | R193: 12 | X193: =VLOOKUP(B193,[1]generale!A$16:B$1160,2,0) -> 9 | Y193: =VLOOKUP(B193,[1]generale!A$16:C$1160,3,0) -> 4 | Z193: =VLOOKUP(B193,[1]generale!A$16:D$1160,4,0) -> 3 | AA193: =VLOOKUP(B193,[1]generale!A$16:E$1160,5,0) -> 5 | AB193: =VLOOKUP(B193,[1]generale!A$16:G$1160,6,0) -> 15 | AC193: =[1]generale!G498 -> P | AD193: 7 | AE193: 3 | AF193: 5 | AG193: 2 | AH193: 6 | AK193: 11
A194: =IF(COUNTA(C194:AB194)<17,"",MAX(A$12:A193)+1) -> 182 | B194: 2014-05-02 | C194: 4 | D194: 9 | E194: 7 | F194: 13 | G194: 1 | H194: 6 | I194: 5 | J194: 3 | K194: 12 | L194: 11 | M194: 8 | N194: 2 | O194: 10 | P194: 14 | Q194: 15 | X194: =VLOOKUP(B194,[1]generale!A$16:B$1160,2,0) -> 5 | Y194: =VLOOKUP(B194,[1]generale!A$16:C$1160,3,0) -> 13 | Z194: =VLOOKUP(B194,[1]generale!A$16:D$1160,4,0) -> 4 | AA194: =VLOOKUP(B194,[1]generale!A$16:E$1160,5,0) -> 6 | AB194: =VLOOKUP(B194,[1]generale!A$16:G$1160,6,0) -> 14 | AC194: =[1]generale!G499 -> T | AD194: 7 | AE194: 4 | AF194: 1 | AG194: 6 | AH194: 14 | AK194: 8
A195: =IF(COUNTA(C195:AB195)<17,"",MAX(A$12:A194)+1) -> 183 | B195: 2014-05-03 | C195: 15 | D195: 13 | E195: 10 | F195: 12 | G195: 11 | H195: 3 | I195: 6 | J195: 16 | K195: 5 | L195: 17 | M195: 14 | N195: 4 | O195: 9 | P195: 8 | Q195: 7 | R195: 1 | S195: 2 | X195: =VLOOKUP(B195,[1]generale!A$16:B$1160,2,0) -> 16 | Y195: =VLOOKUP(B195,[1]generale!A$16:C$1160,3,0) -> 15 | Z195: =VLOOKUP(B195,[1]generale!A$16:D$1160,4,0) -> 5 | AA195: =VLOOKUP(B195,[1]generale!A$16:E$1160,5,0) -> 17 | AB195: =VLOOKUP(B195,[1]generale!A$16:G$1160,6,0) -> 10 | AC195: =[1]generale!G500 -> T | AD195: 8 | AE195: 1 | AF195: 9 | AG195: 10 | AH195: 3 | AK195: 3
A196: =IF(COUNTA(C196:AB196)<17,"",MAX(A$12:A195)+1) -> 184 | B196: 2014-05-04 | C196: 12 | D196: 6 | E196: 14 | F196: 5 | G196: 11 | H196: 18 | I196: 16 | J196: 2 | K196: 9 | L196: 10 | M196: 8 | N196: 7 | O196: 4 | P196: 19 | Q196: 17 | R196: 15 | S196: 13 | T196: 3 | U196: 1 | X196: =VLOOKUP(B196,[1]generale!A$16:B$1160,2,0) -> 12 | Y196: =VLOOKUP(B196,[1]generale!A$16:C$1160,3,0) -> 14 | Z196: =VLOOKUP(B196,[1]generale!A$16:D$1160,4,0) -> 8 | AA196: =VLOOKUP(B196,[1]generale!A$16:E$1160,5,0) -> 11 | AB196: =VLOOKUP(B196,[1]generale!A$16:G$1160,6,0) -> 18 | AC196: =[1]generale!G501 -> O | AD196: 1 | AE196: 3 | AF196: 11 | AG196: 5 | AH196: 6 | AK196: 2
A197: =IF(COUNTA(C197:AB197)<17,"",MAX(A$12:A196)+1) -> 185 | B197: 2014-05-05 | C197: 15 | D197: 11 | E197: 8 | F197: 3 | G197: 2 | H197: 7 | I197: 9 | J197: 4 | K197: 18 | L197: 14 | M197: 6 | N197: 16 | O197: 5 | P197: 13 | Q197: 12 | R197: 10 | S197: 17 | T197: 1 | X197: =VLOOKUP(B197,[1]generale!A$16:B$1160,2,0) -> 13 | Y197: =VLOOKUP(B197,[1]generale!A$16:C$1160,3,0) -> 7 | Z197: =VLOOKUP(B197,[1]generale!A$16:D$1160,4,0) -> 11 | AA197: =VLOOKUP(B197,[1]generale!A$16:E$1160,5,0) -> 9 | AB197: =VLOOKUP(B197,[1]generale!A$16:G$1160,6,0) -> 18 | AC197: =[1]generale!G502 -> P | AD197: 14 | AE197: 6 | AF197: 2 | AG197: 7 | AH197: 9 | AK197: 7
A198: =IF(COUNTA(C198:AB198)<17,"",MAX(A$12:A197)+1) -> 186 | B198: 2014-05-06 | C198: 8 | D198: 1 | E198: 4 | F198: 9 | G198: 10 | H198: 3 | I198: 6 | J198: 2 | K198: 15 | L198: 14 | M198: 5 | N198: 11 | O198: 16 | P198: 7 | Q198: 13 | R198: 12 | X198: =VLOOKUP(B198,[1]generale!A$16:B$1160,2,0) -> 12 | Y198: =VLOOKUP(B198,[1]generale!A$16:C$1160,3,0) -> 13 | Z198: =VLOOKUP(B198,[1]generale!A$16:D$1160,4,0) -> 15 | AA198: =VLOOKUP(B198,[1]generale!A$16:E$1160,5,0) -> 10 | AB198: =VLOOKUP(B198,[1]generale!A$16:G$1160,6,0) -> 5 | AC198: =[1]generale!G503 -> P | AD198: 16 | AE198: 15 | AF198: 9 | AG198: 5 | AH198: 11 | AK198: 9
A199: =IF(COUNTA(C199:AB199)<17,"",MAX(A$12:A198)+1) -> 187 | B199: 2014-05-07 | C199: 14 | D199: 9 | E199: 4 | F199: 8 | G199: 11 | H199: 5 | I199: 3 | J199: 12 | K199: 7 | L199: 10 | M199: 6 | N199: 15 | O199: 1 | P199: 2 | Q199: 16 | R199: 13 | X199: =VLOOKUP(B199,[1]generale!A$16:B$1160,2,0) -> 5 | Y199: =VLOOKUP(B199,[1]generale!A$16:C$1160,3,0) -> 3 | Z199: =VLOOKUP(B199,[1]generale!A$16:D$1160,4,0) -> 15 | AA199: =VLOOKUP(B199,[1]generale!A$16:E$1160,5,0) -> 9 | AB199: =VLOOKUP(B199,[1]generale!A$16:G$1160,6,0) -> 14 | AC199: =[1]generale!G504 -> P | AD199: 6 | AE199: 7 | AF199: 12 | AG199: 2 | AH199: 1 | AK199: 4
A200: =IF(COUNTA(C200:AB200)<17,"",MAX(A$12:A199)+1) -> 188 | B200: 2014-05-08 | C200: 11 | D200: 14 | E200: 8 | F200: 6 | G200: 9 | H200: 2 | I200: 7 | J200: 1 | K200: 10 | L200: 13 | M200: 4 | N200: 3 | O200: 15 | P200: 5 | Q200: 16 | R200: 12 | X200: =VLOOKUP(B200,[1]generale!A$16:B$1160,2,0) -> 10 | Y200: =VLOOKUP(B200,[1]generale!A$16:C$1160,3,0) -> 2 | Z200: =VLOOKUP(B200,[1]generale!A$16:D$1160,4,0) -> 13 | AA200: =VLOOKUP(B200,[1]generale!A$16:E$1160,5,0) -> 4 | AB200: =VLOOKUP(B200,[1]generale!A$16:G$1160,6,0) -> 6 | AC200: =[1]generale!G505 -> P | AD200: 9 | AE200: 6 | AF200: 10 | AG200: 11 | AH200: 4 | AK200: 18
A201: =IF(COUNTA(C201:AB201)<17,"",MAX(A$12:A200)+1) -> 189 | B201: 2014-05-09 | C201: 5 | D201: 6 | E201: 1 | F201: 8 | G201: 15 | H201: 16 | I201: 7 | J201: 10 | K201: 9 | L201: 14 | M201: 17 | N201: 2 | O201: 13 | P201: 3 | Q201: 4 | R201: 11 | S201: 12 | X201: =VLOOKUP(B201,[1]generale!A$16:B$1160,2,0) -> 5 | Y201: =VLOOKUP(B201,[1]generale!A$16:C$1160,3,0) -> 8 | Z201: =VLOOKUP(B201,[1]generale!A$16:D$1160,4,0) -> 9 | AA201: =VLOOKUP(B201,[1]generale!A$16:E$1160,5,0) -> 14 | AB201: =VLOOKUP(B201,[1]generale!A$16:G$1160,6,0) -> 16 | AC201: =[1]generale!G506 -> T | AD201: 1 | AE201: 4 | AF201: 9 | AG201: 10 | AH201: 6 | AK201: 14
... 1462 more rows
